Workbook

Sheet 目录
B1: 沅江市人民政府2021年预算公开目录
A2: 1 | B2: 2021年公共财政预算收入表
A3: 2 | B3: 2021年预计上级专项补助纳入预算明细表
A4: 2-1 | B4: 2021年一般公共预算专项转移支付表（分地区）
A5: 2-2 | B5: 2021年一般公共预算专项转移支付表（分项目）
A6: 3 | B6: 2021年一般公共预算收支总表
A7: 4 | B7: 2021年一般公共预算支出表
A8: 5 | B8: 2021年一般公共预算本级支出表
A9: 6 | B9: 2021年一般公共预算基本支出总表（按部门预算经济分类）
A10: 6-1 | B10: 2021年一般公共预算本级基本支出表-工资福利支出（按部门预算经济分类）
A11: 6-2 | B11: 2021年一般公共预算本级基本支出表-商品和服务支出（按部门预算经济分类）
A12: 6-3 | B12: 2021年一般公共预算本级基本支出表-对个人和家庭的补助（按部门预算经济分类）
A13: 7 | B13: 2021年一般公共预算税收返还和转移支付表
A14: 8 | B14: 2020年度政府一般债券限额表
A15: 9 | B15: 2020年度政府一般债券余额表
A16: 10 | B16: 2021年政府性基金预算收支总表
A17: 11 | B17: 2021年政府性基金预算收入表
A18: 12 | B18: 2021年政府性基金预算支出表
A19: 13 | B19: 2021年沅江市政府性基金转移支付表
A20: 13-1 | B20: 2021年沅江市政府性基金转移支付表（分地区）
A21: 13-2 | B21: 2021年沅江市政府性基金转移支付表（分项目）
A22: 14 | B22: 2020年度政府专项债券限额表
A23: 15 | B23: 2020年度政府专项债券余额表
A24: 16 | B24: 2021年沅江市国有资本经营预算收支总表
A25: 17 | B25: 2021年沅江市国有资本经营预算收入表
A26: 18 | B26: 2021年沅江市国有资本经营预算支出表
A27: 19 | B27: 2021年社会保险基金预算收支总表
A28: 20 | B28: 2021年社会保险基金预算收入表
A29: 21 | B29: 2021年社会保险基金预算支出表
A30: 22 | B30: 2020年沅江市政府债券还本付息明细表
A31: 23 | B31: 2020年一般债券资金使用安排情况表
A32: 24 | B32: 2020年专项债券资金使用安排情况表
A33: 25 | B33: 2021年沅江市政府债券还本付息明细表
A34: 26 | B34: 2021年本级安排财政扶贫资金预算分配表

Sheet 表1
A2: 2021年公共财政预算收入表
B3: 单位：万元
A4: 项 目 | B4: 2021年预算数
A5: 一、税收收入 | B5: =SUM(B6:B21) -> 56695
A6: 增值税 | B6: 23625
A7: 营业税
A8: 企业所得税 | B8: 4256
A9: 企业所得税退税
A10: 个人所得税 | B10: 700
A11: 资源税 | B11: 1500
A12: 城市维护建设税 | B12: 4200
A13: 房产税 | B13: 2000
A14: 印花税 | B14: 800
A15: 城镇土地使用税 | B15: 1470
A16: 土地增值税 | B16: 6080
A17: 车船税 | B17: 1420
A18: 耕地占用税 | B18: 1850
A19: 契税 | B19: 8600
A20: 环境保护税 | B20: 175
A21: 其他税收收入 | B21: 19
A22: 二、非税收入 | B22: =SUM(B23:B28) -> 24275
A23: 专项收入 | B23: 4070
A24: 行政事业性收费收入 | B24: 5300
A25: 罚没收入 | B25: 8100
A26: 国有资本经营收入
A27: 国有资源（资产）有偿使用收入 | B27: 6500
A28: 其他收入 | B28: 305
A29: 收 入 合 计 | B29: =SUM(B5,B22) -> 80970
A30: 上划中央收入小计 | B30: =SUM(B31:B34) -> 42175
A31: 上划中央国内增值税（50%部分） | B31: 31500
A32: 上划中央消费税（100%部分） | B32: 30
A33: 上划中央所得税（60%部分） | B33: 10620
A34: 上划中央其他税（50%部分） | B34: 25
A35: 上划省收入小计 | B35: =SUM(B36:B38,,B39,B40:B41) -> 11210
A36: 上划省国内增值税（12.5%部分） | B36: 7875
A37: 上划省环境保护税（30%部分） | B37: 75
A38: 上划省所得税（12%部分） | B38: 2124
A39: 上划省城镇土地使用税税（30%部分） | B39: 630
A40: 上划省资源税（25%部分） | B40: 500
A41: 上划省其他税（12.5%部分） | B41: 6
A42: 地方财税收入合计 | B42: =SUM(B29,B30,B35) -> 134355
A43: 税收收入(100%) | B43: =B5+B30+B35 -> 110080
A44: 非税收入(100%) | B44: =B22 -> 24275

Sheet 表2
A2: 2021年预计上级转移支付纳入预算明细表 (指定用途)
A3: 预算股编 | C3: 单位:万元
A4: 科目名称 | B4: 代码 | C4: 金额
A5: 教育共同财政事权转移支付收入 | B5: 205 | C5: 11271
A6: 学前教育幼儿资助 | B6: 2050201 | C6: 650
A7: 学前教育公用经费 | B7: 2050201 | C7: 300
A8: 学前教育建设 | B8: 2050201 | C8: 200
A9: 城乡义务教育生均公用经费 | B9: 2050202 | C9: 3350
A10: 家庭经济困难学生生活补助 | B10: 2050202 | C10: 550
A11: 义务教育薄弱环节改造提升 | B11: 2050202 | C11: 1000
A12: 农村公办学校校舍安全保障 | B12: 2050202 | C12: 1000
A13: 农村义务教育阶段学校教师特设岗位计划中补助 | B13: 2050202 | C13: 1150
A14: 乡村中小学教师人才津贴补助资金 | B14: 2050202 | C14: 500
A15: 消除义务教育大班额奖补资金 | B15: 2050202 | C15: 500
A16: 芙蓉学校建设 | B16: 2050202 | C16: 1004
A17: 普通高中家庭经济困难学生国家助学金 | B17: 2050204 | C17: 280
A18: 免除普高建档立卡等家庭经济困难学生学杂费 | B18: 2050204 | C18: 22
A19: 中职家庭经济困难学生国家助学金 | B19: 2050302 | C19: 125
A20: 中职困难学生免学费 | B20: 2050302 | C20: 340
A21: 改善中职办学条件 | B21: 2050302 | C21: 300
A22: 文化旅游体育与传媒支出（专项转移支付） | B22: 207 | C22: 150
A23: 农村文化建设 | B23: 2070199 | C23: 150
A24: 社会保障与就业共同财政事权转移支付收入 | B24: 208 | C24: =18641+8328 -> 26969
A25: 优抚对象抚恤 | B25: 2080899 | C25: 4500
A26: 义务兵优待金 | B26: 2080805 | C26: 100
A27: 退役士兵安置 | B27: 2080901 | C27: 900
A28: 儿童福利（孤儿保障） | B28: 2081001 | C28: 40
A29: 残疾人补贴 | B29: 2081107 | C29: 600
A30: 城市最低生活保障 | B30: 2081901 | C30: 3200
A31: 农村最低生活保障 | B31: 2081902 | C31: 3050
A32: 城市特困人员供养 | B32: 2082101 | C32: 179
A33: 农村特困人员供养 | B33: 2082102 | C33: 3400
A34: 城乡居民社会养老保险 | B34: 2082602 | C34: 11000
A35: 卫生健康共同财政事权转移支付收入 | B35: 210 | C35: 40455
A36: 基层医疗卫生机构运行 | B36: 2100399 | C36: 900
A37: 基本公共卫生服务 | B37: 2100408 | C37: 4600
A38: 计划生育服务扶持资金（奖扶、特扶） | B38: 2100799 | C38: 872
A39: 城乡居民基本医疗保险 | B39: 2101202 | C39: 33000
A40: 城乡医疗救助 | B40: 2101301 | C40: 1083
A41: 卫生健康支出（专项转移支付） | B41: 210 | C41: 2000
A42: 重大公共卫生服务 | B42: 2100409 | C42: 1000
A43: 其他公共卫生支出 | B43: 2100499 | C43: 200
A44: 计划生育服务 | B44: 2100799 | C44: 800
A45: 节能环保支出（专项转移支付） | B45: 211 | C45: 20000
A46: 污染防治支出 | B46: 2110302 | C46: 10000
A47: 农村生活污水治理 | B47: 2110302 | C47: 3000
A48: 农村环境保护 | B48: 2110402 | C48: 2000
A49: 污染减排支出 | B49: 2111199 | C49: 5000
A50: 革命老区转移支付收入 | B50: 213 | C50: 1178
A51: 革命老区转移支付支出 | B51: 2130199 | C51: 1178
A52: 贫困地区转移支付收入 | B52: 213 | C52: 3200
A53: 专项扶贫资金 | B53: 2130599 | C53: 3200
A54: 农林水共同财政事权转移支付收入 | B54: 213 | C54: 32430
A55: 基层农技推广体系建设 | B55: 2130106 | C55: 350
A56: 动物疫病防控 | B56: 2130108 | C56: 980
A57: 救灾资金 | B57: 2130108 | C57: 1000
A58: 农机购置补贴资金 | B58: 2130122 | C58: 900
A59: 农业生产发展 | B59: 2130122 | C59: 4000
A60: 耕地地力保护补贴资金 | B60: 2130122 | C60: 12000
A61: 农田水利建设 | B61: 2130153 | C61: 3900
A62: 农业保险保费补贴 | B62: 2130803 | C62: 1600
A63: 水利发展资金 | B63: 2130305 | C63: 5000
A64: 稻谷目标价格补贴资金 | B64: 2130999 | C64: 2700
A65: 农林水支出（专项转移支付） | B65: 213 | C65: 20000
A66: 农村厕所改造 | B66: 2130126 | C66: 1200
A67: 农业生产发展 | B67: 2130122 | C67: 5000
A68: 水利工程建设 | B68: 2130305 | C68: 13800
A69: 交通运输共同财政事权转移支付收入 | B69: 214 | C69: 5949
A70: 交通运输事业发展专项补助 | B70: 2140104 | C70: 1250
A71: 车辆购置税收入补助 | B71: 2140199 | C71: 4699
A72: 交通运输支出（专项转移支付） | B72: 214 | C72: 2000
A73: 公路养护 | B73: 2140103 | C73: 1000
A74: 公路建设 | B74: 2140104 | C74: 1000
A75: 住房保障共同财政事权转移支付收入 | B75: 221 | C75: 2675
A76: 公租房、廉租房和棚户区改造 | B76: 2210103 | C76: 1675
A77: 农村危房改造 | B77: 2210103 | C77: 1000
A78: 住房保障支出 | B78: 221 | C78: 4850
A79: 棚户区改造 | B79: 2210103 | C79: 1000
A80: 老旧小区改造 | B80: 2210108 | C80: 3850
A81: 产粮(油)大县奖励资金收入 | B81: 222 | C81: 4453
A82: 产粮大县奖励资金 | B82: 2220199 | C82: 2453
A83: 产油大县奖励资金 | B83: 2220199 | C83: 2000
A84: 其他一般性转移支付收入 | B84: 229 | C84: 1000
A85: 选调生到村任职补助（三支一扶） | B85: 2299999 | C85: 17
A86: 地方美术馆、公共图书馆、文化馆免费开放 | B86: 2079999 | C86: 114
A87: 生猪调出大县奖励 | B87: 2160299 | C87: 500
A88: 农村客运和出租车油价补贴 | B88: 2140199 | C88: 369
A89: 合计 | C89: =SUM(C5:C88)/2 -> 178580

Sheet 表2-1
A2: 沅江市2021年一般公共预算专项转移支付表（分地区）
B3: 单位：万元
A4: 地区 | B4: 预算数
A5: 合计 | B5: =SUM(B6:B17) -> 0
A6: 胭脂湖街道
A7: 琼湖街道
A8: 新湾镇
A9: 南嘴镇
A10: 草尾镇
A11: 阳罗洲镇
A12: 四季红镇
A13: 黄茅洲镇
A14: 南大膳镇
A15: 共华镇
A16: 泗湖山镇
A17: 茶盘洲镇
A18: 说明：我市纳入预算的上级转移支付收入未对乡镇进行分配。

Sheet 表2-2
A2: 沅江市2021年一般公共预算专项转移支付表（分项目）
A3: 预算股编 | B3: 单位:万元
A4: 科目名称 | B4: 金额
A5: 学前教育幼儿资助 | B5: 650
A6: 学前教育公用经费 | B6: 300
A7: 学前教育建设 | B7: 200
A8: 城乡义务教育生均公用经费 | B8: 3350
A9: 家庭经济困难学生生活补助 | B9: 550
A10: 义务教育薄弱环节改造提升 | B10: 1000
A11: 农村公办学校校舍安全保障 | B11: 1000
A12: 农村义务教育阶段学校教师特设岗位计划中补助 | B12: 1150
A13: 乡村中小学教师人才津贴补助资金 | B13: 500
A14: 消除义务教育大班额奖补资金 | B14: 500
A15: 芙蓉学校建设 | B15: 1004
A16: 普通高中家庭经济困难学生国家助学金 | B16: 280
A17: 免除普高建档立卡等家庭经济困难学生学杂费 | B17: 22
A18: 中职家庭经济困难学生国家助学金 | B18: 125
A19: 中职困难学生免学费 | B19: 340
A20: 改善中职办学条件 | B20: 300
A21: 农村文化建设 | B21: 150
A22: 优抚对象抚恤 | B22: 4500
A23: 义务兵优待金 | B23: 100
A24: 退役士兵安置 | B24: 900
A25: 儿童福利（孤儿保障） | B25: 40
A26: 残疾人补贴 | B26: 600
A27: 城市最低生活保障 | B27: 3200
A28: 农村最低生活保障 | B28: 3050
A29: 城市特困人员供养 | B29: 179
A30: 农村特困人员供养 | B30: 3400
A31: 城乡居民社会养老保险 | B31: 11000
A32: 基层医疗卫生机构运行 | B32: 900
A33: 基本公共卫生服务 | B33: 4600
A34: 计划生育服务扶持资金（奖扶、特扶） | B34: 872
A35: 城乡居民基本医疗保险 | B35: 33000
A36: 城乡医疗救助 | B36: 1083
A37: 重大公共卫生服务 | B37: 1000
A38: 其他公共卫生支出 | B38: 200
A39: 计划生育服务 | B39: 800
A40: 污染防治支出 | B40: 10000
A41: 农村生活污水治理 | B41: 3000
A42: 农村环境保护 | B42: 2000
A43: 污染减排支出 | B43: 5000
A44: 革命老区转移支付支出 | B44: 1178
A45: 专项扶贫资金 | B45: 3200
A46: 基层农技推广体系建设 | B46: 350
A47: 动物疫病防控 | B47: 980
A48: 救灾资金 | B48: 1000
A49: 农机购置补贴资金 | B49: 900
A50: 农业生产发展 | B50: 4000
A51: 耕地地力保护补贴资金 | B51: 12000
A52: 农田水利建设 | B52: 3900
A53: 农业保险保费补贴 | B53: 1600
A54: 水利发展资金 | B54: 5000
A55: 稻谷目标价格补贴资金 | B55: 2700
A56: 农村厕所改造 | B56: 1200
A57: 农业生产发展 | B57: 5000
A58: 水利工程建设 | B58: 13800
A59: 交通运输事业发展专项补助 | B59: 1250
A60: 车辆购置税收入补助 | B60: 4699
A61: 公路养护 | B61: 1000
A62: 公路建设 | B62: 1000
A63: 公租房、廉租房和棚户区改造 | B63: 1675
A64: 农村危房改造 | B64: 1000
A65: 棚户区改造 | B65: 1000
A66: 老旧小区改造 | B66: 3850
A67: 产粮大县奖励资金 | B67: 2453
A68: 产油大县奖励资金 | B68: 2000
A69: 选调生到村任职补助（三支一扶） | B69: 17
A70: 地方美术馆、公共图书馆、文化馆免费开放 | B70: 114
A71: 生猪调出大县奖励 | B71: 500
A72: 农村客运和出租车油价补贴 | B72: 369
A73: 合计 | B73: =SUM(B5:B72) -> 178580

Sheet 表3
A2: 2021年一般公共预算收支平衡表
D3: 单位：万元
A4: 收 入 | C4: 支 出
A5: 项 目 | B5: 预算数 | C5: 项 目 | D5: 预算数
A6: 本级收入合计 | B6: 80970 | C6: 本级支出合计 | D6: =B55-D8-D43-D44 -> 445332
A7: 转移性收入 | B7: =SUM(B8) -> 295548
A8: 上级补助收入 | B8: =SUM(B9,B14,B32) -> 295548 | C8: 转移性支出 | D8: =SUM(D9) -> 7186
A9: 返还性收入 | B9: =SUM(B10:B13) -> 7869 | C9: 上解上级支出 | D9: =SUM(D10:D13) -> 7186
A10: 增值税和消费税税收返还收入 | B10: 4059 | C10: 体制上解支出 | D10: 580
A11: 所得税基数返还收入 | B11: 726 | C11: 出口退税专项上解支出 | D11: 155
A12: 成品油价格和税费改革税收返还收入 | B12: 1112 | C12: 成品油价格和税费改革专项上解支出
A13: 其他税收返还收入 | B13: 1972 | C13: 专项上解支出 | D13: 6451
A14: 一般性转移支付收入 | B14: =SUM(B15:B31) -> 238679
A15: 均衡性转移支付收入 | B15: 54122
A16: 调整工资转移支付补助收入 | B16: 17954
A17: 固定基数补助收入（农村税改） | B17: 10286
A18: 县级基本财力保障机制奖补资金收入 | B18: 17939
A19: 结算补助收入 | B19: 3058
A20: 产粮(油)大县奖励资金收入 | B20: 4453
A21: 重点生态功能区转移支付收入 | B21: 2902
A22: 革命老区转移支付收入 | B22: 1178
A23: 贫困地区转移支付收入 | B23: 3200
A24: 公共安全共同财政事权转移支付收入 | B24: 928
A25: 教育共同财政事权转移支付收入 | B25: 12581
A26: 社会保障与就业共同财政事权转移支付收入 | B26: =18641+8328 -> 26969
A27: 卫生健康共同财政事权转移支付收入 | B27: 40455
A28: 农林水共同财政事权转移支付收入 | B28: 33030
A29: 交通运输共同财政事权转移支付收入 | B29: 5949
A30: 住房保障共同财政事权转移支付收入 | B30: 2675
A31: 其他一般性转移支付收入 | B31: 1000
A32: 专项转移支付收入 | B32: =SUM(B33:B48) -> 49000
A33: 一般公共服务支出
A34: 公共安全支出
A35: 教育支出
A36: 科学技术支出
A37: 科技支出
A38: 文化旅游体育与传媒支出 | B38: 150
A39: 社会保障和就业支出
A40: 卫生健康支出 | B40: 2000
A41: 节能环保支出 | B41: 20000
A42: 城乡社区支出
A43: 农林水支出 | B43: 20000 | C43: 地方政府一般债券还本支出
A44: 交通运输支出 | B44: 2000 | C44: 转贷地方政府债券支出
A45: 商业服务业等支出 | C45: 援助其他地区支出
A46: 自然海洋气象等支出
A47: 住房保障支出 | B47: 4850
A48: 粮油物资储备支出
A49: 调入资金 | B49: =SUM(B50:B51) -> 76000
A50: 政府性基金调入 | B50: 76000
A51: 其他调入（盘活存量）
A52: 债务转贷收入
A53: 调入预算稳定调节基金
A55: 收入总计 | B55: =SUM(B6:B7,B49,B52,B53) -> 452518 | C55: 支出总计 | D55: =SUM(D6:D8,D43) -> 452518

Sheet 表4
A2: 2021年一般公共预算支出表
D3: 单位：万元
A4: 项目 | B4: 上年决算（执行)数 | C4: 预算数 | D4: 备注
A5: 一、一般公共服务 | B5: =SUM(B6,B18,B27,B38,B49,B60,B71,B79,B88,B101,B110,B121,B133,B140,B148,B154,B161,B168,B175,B182,B189,B197,B203,B209,B216,B231) -> 47969 | C5: =SUM(C6,C18,C27,C38,C49,C60,C71,C79,C88,C101,C110,C121,C133,C140,C148,C154,C161,C168,C175,C182,C189,C197,C203,C209,C216,C231) -> 53215
A6: 人大事务 | B6: =SUM(B7:B17) -> 942 | C6: =SUM(C7:C17) -> 608
A7: 行政运行 | B7: 462 | C7: 393
A8: 一般行政管理事务 | B8: 287 | C8: 52
A9: 机关服务 | B9: 0 | C9: 5
A10: 人大会议 | B10: 125 | C10: 24
A11: 人大立法 | B11: 0
A12: 人大监督 | B12: 35 | C12: 62
A13: 人大代表履职能力提升 | B13: 0
A14: 代表工作 | B14: 3 | C14: 72
A15: 人大信访工作 | B15: 0
A16: 事业运行 | B16: 0
A17: 其他人大事务支出 | B17: 30
A18: 政协事务 | B18: =SUM(B19:B26) -> 679 | C18: =SUM(C19:C26) -> 574
A19: 行政运行 | B19: 421 | C19: 396
A20: 一般行政管理事务 | B20: 117 | C20: 69
A21: 机关服务 | B21: 0
A22: 政协会议 | B22: 39
A23: 委员视察 | B23: 7
A24: 参政议政 | B24: 15
A25: 事业运行 | B25: 0
A26: 其他政协事务支出 | B26: 80 | C26: 109
A27: 政府办公厅(室)及相关机构事务 | B27: =SUM(B28:B37) -> 22460 | C27: =SUM(C28:C37) -> 30489
A28: 行政运行 | B28: 12260 | C28: 23982
A29: 一般行政管理事务 | B29: 7805 | C29: 4557
A30: 机关服务 | B30: 1182 | C30: 335
A31: 专项服务 | B31: 0
A32: 专项业务及机关事务管理 | B32: 61 | C32: 1218
A33: 政务公开审批 | B33: 1019 | C33: 144
A34: 信访事务 | B34: 133 | C34: 108
A35: 参事事务 | B35: 0
A36: 事业运行 | B36: 0
A37: 其他政府办公厅（室）及相关机构事务支出 | B37: 0 | C37: 145
A38: 发展与改革事务 | B38: =SUM(B39:B48) -> 3119 | C38: =SUM(C39:C48) -> 2324
A39: 行政运行 | B39: 881 | C39: 779
A40: 一般行政管理事务 | B40: 263 | C40: 145
A41: 机关服务 | B41: 0
A42: 战略规划与实施 | B42: 822 | C42: 1000
A43: 日常经济运行调节 | B43: 0
A44: 社会事业发展规划 | B44: 0
A45: 经济体制改革研究 | B45: 0
A46: 物价管理 | B46: 0
A47: 事业运行 | B47: 0
A48: 其他发展与改革事务支出 | B48: 1153 | C48: 400
A49: 统计信息事务 | B49: =SUM(B50:B59) -> 467 | C49: =SUM(C50:C59) -> 552
A50: 行政运行 | B50: 254 | C50: 198
A51: 一般行政管理事务 | B51: 50 | C51: 6
A52: 机关服务 | B52: 0
A53: 信息事务 | B53: 34 | C53: 150
A54: 专项统计业务 | B54: 22 | C54: 32
A55: 统计管理 | B55: 0
A56: 专项普查活动 | B56: 67 | C56: 150
A57: 统计抽样调查 | B57: 27 | C57: 16
A58: 事业运行 | B58: 0
A59: 其他统计信息事务支出 | B59: 13
A60: 财政事务 | B60: =SUM(B61:B70) -> 4037 | C60: =SUM(C61:C70) -> 3955
A61: 行政运行 | B61: 1948 | C61: 1952
A62: 一般行政管理事务 | B62: 1402 | C62: 1062
A63: 机关服务 | B63: 0
A64: 预算改革业务 | B64: 0
A65: 财政国库业务 | B65: 35 | C65: 40
A66: 财政监察 | B66: 0
A67: 信息化建设 | B67: 234 | C67: 896
A68: 财政委托业务支出 | B68: 0
A69: 事业运行 | B69: 0
A70: 其他财政事务支出 | B70: 418 | C70: 5
A71: 税收事务 | B71: =SUM(B72:B78) -> 5798 | C71: =SUM(C72:C78) -> 4000
A72: 行政运行 | B72: 7
A73: 一般行政管理事务
A74: 机关服务
A75: 信息化建设
A76: 税收业务
A77: 事业运行
A78: 其他税收事务支出 | B78: 5791 | C78: 4000
A79: 审计事务 | B79: =SUM(B80:B87) -> 578 | C79: =SUM(C80:C87) -> 587
A80: 行政运行 | B80: 349 | C80: 401
A81: 一般行政管理事务 | B81: 93 | C81: 50
A82: 机关服务 | B82: 0
A83: 审计业务 | B83: 136 | C83: 136
A84: 审计管理
A85: 信息化建设
A86: 事业运行
A87: 其他审计事务支出
A88: 海关事务 | B88: =SUM(B89:B100) -> 0 | C88: =SUM(C89:C100) -> 0
A89: 行政运行
A90: 一般行政管理事务
A91: 机关服务
A92: 缉私办案
A93: 口岸管理
A94: 信息化建设
A95: 海关关务
A96: 关税征管
A97: 海关监管
A98: 检验检疫
A99: 事业运行
A100: 其他海关事务支出
A101: 纪检监察事务 | B101: =SUM(B102:B109) -> 1167 | C101: =SUM(C102:C109) -> 1605
A102: 行政运行 | B102: 596 | C102: 1228
A103: 一般行政管理事务 | B103: 491 | C103: 377
A104: 机关服务 | B104: 0
A105: 大案要案查处 | B105: 0
A106: 派驻派出机构 | B106: 0
A107: 巡视工作 | B107: 0
A108: 事业运行 | B108: 0
A109: 其他纪检监察事务支出 | B109: 80
A110: 商贸事务 | B110: =SUM(B111:B120) -> 522 | C110: =SUM(C111:C120) -> 358
A111: 行政运行 | B111: 454
A112: 一般行政管理事务 | B112: 68
A113: 机关服务
A114: 对外贸易管理
A115: 国际经济合作
A116: 外资管理
A117: 国内贸易管理
A118: 招商引资 | C118: 358
A119: 事业运行
A120: 其他商贸事务支出
A121: 知识产权事务 | B121: =SUM(B122:B132) -> 10 | C121: =SUM(C122:C132) -> 0
A122: 行政运行
A123: 一般行政管理事务
A124: 机关服务
A125: 专利审批
A126: 知识产权战略和规划 | B126: 10
A127: 国际合作与交流
A128: 知识产权宏观管理
A129: 商标管理
A130: 原产地地理标志管理
A131: 事业运行
A132: 其他知识产权事务支出
A133: 民族事务 | B133: =SUM(B134:B139) -> 0 | C133: =SUM(C134:C139) -> 0
A134: 行政运行
A135: 一般行政管理事务
A136: 机关服务
A137: 民族工作专项
A138: 事业运行
A139: 其他民族事务支出
A140: 港澳台事务 | B140: =SUM(B141:B147) -> 0 | C140: =SUM(C141:C147) -> 0
A141: 行政运行
A142: 一般行政管理事务
A143: 机关服务
A144: 港澳事务
A145: 台湾事务
A146: 事业运行
A147: 其他港澳台事务支出
A148: 档案事务 | B148: =SUM(B149:B153) -> 209 | C148: =SUM(C149:C153) -> 199
A149: 行政运行 | B149: 127 | C149: 129
A150: 一般行政管理事务 | B150: 82 | C150: 70
A151: 机关服务
A152: 档案馆
A153: 其他档案事务支出
A154: 民主党派及工商联事务 | B154: =SUM(B155:B160) -> 88 | C154: =SUM(C155:C160) -> 81
A155: 行政运行 | B155: 59 | C155: 57
A156: 一般行政管理事务 | B156: 29 | C156: 24
A157: 机关服务
A158: 参政议政
A159: 事业运行
A160: 其他民主党派及工商联事务支出
A161: 群众团体事务 | B161: =SUM(B162:B167) -> 635 | C161: =SUM(C162:C167) -> 637
A162: 行政运行 | B162: 241 | C162: 272
A163: 一般行政管理事务 | B163: 281 | C163: 240
A164: 机关服务 | B164: 0
A165: 工会事务 | B165: 0
A166: 事业运行 | B166: 71 | C166: 75
A167: 其他群众团体事务支出 | B167: 42 | C167: 50
A168: 党委办公厅（室）及相关机构事务 | B168: =SUM(B169:B174) -> 1380 | C168: =SUM(C169:C174) -> 794
A169: 行政运行 | B169: 569 | C169: 457
A170: 一般行政管理事务 | B170: 633 | C170: 337
A171: 机关服务 | B171: 0
A172: 专项业务 | B172: 0
A173: 事业运行 | B173: 0
A174: 其他党委办公厅（室）及相关机构事务支出 | B174: 178
A175: 组织事务 | B175: =SUM(B176:B181) -> 1014 | C175: =SUM(C176:C181) -> 687
A176: 行政运行 | B176: 338 | C176: 297
A177: 一般行政管理事务 | B177: 408 | C177: 390
A178: 机关服务 | B178: 19
A179: 公务员事务 | B179: 0
A180: 事业运行 | B180: 0
A181: 其他组织事务支出 | B181: 249
A182: 宣传事务 | B182: =SUM(B183:B188) -> 591 | C182: =SUM(C183:C188) -> 335
A183: 行政运行 | B183: 244 | C183: 154
A184: 一般行政管理事务 | B184: 181 | C184: 181
A185: 机关服务 | B185: 0
A186: 宣传管理 | B186: 0
A187: 事业运行 | B187: 0
A188: 其他宣传事务支出 | B188: 166
A189: 统战事务 | B189: =SUM(B190:B196) -> 374 | C189: =SUM(C190:C196) -> 261
A190: 行政运行 | B190: 235 | C190: 218
A191: 一般行政管理事务 | B191: 114 | C191: 21
A192: 机关服务 | B192: 0
A193: 宗教事务 | B193: 4 | C193: 10
A194: 华侨事务 | B194: 0
A195: 事业运行 | B195: 0
A196: 其他统战事务支出 | B196: 21 | C196: 12
A197: 对外联络事务 | B197: =SUM(B198:B202) -> 0 | C197: =SUM(C198:C202) -> 0
A198: 行政运行
A199: 一般行政管理事务
A200: 机关服务
A201: 事业运行
... 1065 more rows

Sheet 表5
A1: 2021年一般公共预算本级支出表
E2: 单位：千元
A3: 类 | B3: 款 | C3: 项 | D3: 功能科目名称 | E3: 金额
D5: 合计 | E5: 2667520.00
A6: 201 | D6: 一般公共服务支出 | E6: 532139.29
B7: 01 | D7: 人大事务 | E7: 6069.52
A8: 201 | B8: 01 | C8: 01 | D8: 行政运行（人大事务） | E8: 3920.52
A9: 201 | B9: 01 | C9: 02 | D9: 一般行政管理事务（人大事务） | E9: 520.00
A10: 201 | B10: 01 | C10: 03 | D10: 机关服务（人大事务） | E10: 50.00
A11: 201 | B11: 01 | C11: 04 | D11: 人大会议 | E11: 240.00
A12: 201 | B12: 01 | C12: 06 | D12: 人大监督 | E12: 620.00
A13: 201 | B13: 01 | C13: 08 | D13: 代表工作 | E13: 719.00
B14: 02 | D14: 政协事务 | E14: 5735.75
A15: 201 | B15: 02 | C15: 01 | D15: 行政运行（政协事务） | E15: 3955.75
A16: 201 | B16: 02 | C16: 02 | D16: 一般行政管理事务（政协事务） | E16: 690.00
A17: 201 | B17: 02 | C17: 99 | D17: 其他政协事务支出 | E17: 1090.00
B18: 03 | D18: 政府办公厅（室）及相关机构事务 | E18: 304889.12
A19: 201 | B19: 03 | C19: 01 | D19: 行政运行（政府办公厅（室）及相关机构事务） | E19: 239822.77
A20: 201 | B20: 03 | C20: 02 | D20: 一般行政管理事务（政府办公厅（室）及相关机构事务） | E20: 45566.55
A21: 201 | B21: 03 | C21: 03 | D21: 机关服务（政府办公厅（室）及相关机构事务） | E21: 3350.00
A22: 201 | B22: 03 | C22: 05 | D22: 专项业务及机关事物管理 | E22: 12179.80
A23: 201 | B23: 03 | C23: 06 | D23: 政务公开审批 | E23: 1440.00
A24: 201 | B24: 03 | C24: 08 | D24: 信访事务 | E24: 1080.00
A25: 201 | B25: 03 | C25: 99 | D25: 其他政府办公厅（室）及相关机构事务支出 | E25: 1450.00
B26: 04 | D26: 发展与改革事务 | E26: 23234.98
A27: 201 | B27: 04 | C27: 01 | D27: 行政运行（发展与改革事务） | E27: 7787.11
A28: 201 | B28: 04 | C28: 02 | D28: 一般行政管理事务（发展与改革事务） | E28: 1447.87
A29: 201 | B29: 04 | C29: 04 | D29: 战略规划与实施 | E29: 10000.00
A30: 201 | B30: 04 | C30: 99 | D30: 其他发展与改革事务支出 | E30: 4000.00
B31: 05 | D31: 统计信息事务 | E31: 5516.49
A32: 201 | B32: 05 | C32: 01 | D32: 行政运行（统计信息事务） | E32: 1981.49
A33: 201 | B33: 05 | C33: 02 | D33: 一般行政管理事务（统计信息事务） | E33: 60.00
A34: 201 | B34: 05 | C34: 04 | D34: 信息事务 | E34: 1495.00
A35: 201 | B35: 05 | C35: 05 | D35: 专项统计业务 | E35: 316.00
A36: 201 | B36: 05 | C36: 07 | D36: 专项普查活动 | E36: 1500.00
A37: 201 | B37: 05 | C37: 08 | D37: 统计抽样调查 | E37: 164.00
B38: 06 | D38: 财政事务 | E38: 39547.65
A39: 201 | B39: 06 | C39: 01 | D39: 行政运行（财政事务） | E39: 19522.65
A40: 201 | B40: 06 | C40: 02 | D40: 一般行政管理事务（财政事务） | E40: 10615.00
A41: 201 | B41: 06 | C41: 05 | D41: 财政国库业务 | E41: 400.00
A42: 201 | B42: 06 | C42: 07 | D42: 信息化建设（财政事务） | E42: 8960.00
A43: 201 | B43: 06 | C43: 99 | D43: 其他财政事务支出 | E43: 50.00
B44: 07 | D44: 税收事务 | E44: 40000.00
A45: 201 | B45: 07 | C45: 99 | D45: 其他税收事务支出 | E45: 40000.00
B46: 08 | D46: 审计事务 | E46: 5874.36
A47: 201 | B47: 08 | C47: 01 | D47: 行政运行（审计事务） | E47: 4014.36
A48: 201 | B48: 08 | C48: 02 | D48: 一般行政管理事务（审计事务） | E48: 500.00
A49: 201 | B49: 08 | C49: 04 | D49: 审计业务 | E49: 1360.00
B50: 11 | D50: 纪检监察事务 | E50: 16049.36
A51: 201 | B51: 11 | C51: 01 | D51: 行政运行（纪检监察事务） | E51: 12279.36
A52: 201 | B52: 11 | C52: 02 | D52: 一般行政管理事务（纪检监察事务） | E52: 3770.00
B53: 13 | D53: 商贸事务 | E53: 3580.00
A54: 201 | B54: 13 | C54: 08 | D54: 招商引资 | E54: 3580.00
B55: 26 | D55: 档案事务 | E55: 1992.26
A56: 201 | B56: 26 | C56: 01 | D56: 行政运行（档案事务） | E56: 1292.26
A57: 201 | B57: 26 | C57: 02 | D57: 一般行政管理事务（档案事务） | E57: 700.00
B58: 28 | D58: 民主党派及工商联事务 | E58: 811.10
A59: 201 | B59: 28 | C59: 01 | D59: 行政运行（民主党派及工商联事务） | E59: 571.10
A60: 201 | B60: 28 | C60: 02 | D60: 一般行政管理事务（民主党派及工商联事务） | E60: 240.00
B61: 29 | D61: 群众团体事务 | E61: 6366.61
A62: 201 | B62: 29 | C62: 01 | D62: 行政运行（群众团体事务） | E62: 2716.61
A63: 201 | B63: 29 | C63: 02 | D63: 一般行政管理事务（群众团体事务） | E63: 2400.00
A64: 201 | B64: 29 | C64: 50 | D64: 事业运行（群众团体事务） | E64: 750.00
A65: 201 | B65: 29 | C65: 99 | D65: 其他群众团体事务支出 | E65: 500.00
B66: 31 | D66: 党委办公厅（室）及相关机构事务 | E66: 7935.59
A67: 201 | B67: 31 | C67: 01 | D67: 行政运行（党委办公厅（室）及相关机构事务） | E67: 4565.59
A68: 201 | B68: 31 | C68: 02 | D68: 一般行政管理事务（党委办公厅（室）及相关机构事务） | E68: 3370.00
B69: 32 | D69: 组织事务 | E69: 6871.95
A70: 201 | B70: 32 | C70: 01 | D70: 行政运行（组织事务） | E70: 2971.95
A71: 201 | B71: 32 | C71: 02 | D71: 一般行政管理事务（组织事务） | E71: 3900.00
B72: 33 | D72: 宣传事务 | E72: 3347.62
A73: 201 | B73: 33 | C73: 01 | D73: 行政运行（宣传事务） | E73: 1537.62
A74: 201 | B74: 33 | C74: 02 | D74: 一般行政管理事务（宣传事务） | E74: 1810.00
B75: 34 | D75: 统战事务 | E75: 2611.56
A76: 201 | B76: 34 | C76: 01 | D76: 行政运行（统战事务） | E76: 2183.56
A77: 201 | B77: 34 | C77: 02 | D77: 一般行政管理事务（统战事务） | E77: 210.00
A78: 201 | B78: 34 | C78: 04 | D78: 宗教事务 | E78: 98.00
A79: 201 | B79: 34 | C79: 99 | D79: 其他统战事务支出 | E79: 120.00
B80: 37 | D80: 网信事务 | E80: 1025.63
A81: 201 | B81: 37 | C81: 01 | D81: 行政运行 | E81: 485.63
A82: 201 | B82: 37 | C82: 02 | D82: 一般行政管理事务 | E82: 540.00
B83: 38 | D83: 市场监督管理事务 | E83: 31579.74
A84: 201 | B84: 38 | C84: 01 | D84: 行政运行 | E84: 23433.74
A85: 201 | B85: 38 | C85: 04 | D85: 市场主体管理 | E85: 1500.00
A86: 201 | B86: 38 | C86: 05 | D86: 市场秩序执法 | E86: 1484.00
A87: 201 | B87: 38 | C87: 08 | D87: 信息化建设 | E87: 100.00
A88: 201 | B88: 38 | C88: 10 | D88: 质量基础 | E88: 65.00
A89: 201 | B89: 38 | C89: 12 | D89: 药品事务 | E89: 357.00
A90: 201 | B90: 38 | C90: 15 | D90: 质量安全监管 | E90: 1370.00
A91: 201 | B91: 38 | C91: 16 | D91: 食品安全监管 | E91: 1550.00
A92: 201 | B92: 38 | C92: 99 | D92: 其他市场监督管理事务 | E92: 1720.00
B93: 99 | D93: 其他一般公共服务支出 | E93: 19100.00
A94: 201 | B94: 99 | C94: 01 | D94: 国家赔偿费用支出 | E94: 100.00
A95: 201 | B95: 99 | C95: 99 | D95: 其他一般公共服务支出 | E95: 19000.00
A96: 203 | D96: 国防支出 | E96: 2500.00
B97: 06 | D97: 国防动员 | E97: 2400.00
A98: 203 | B98: 06 | C98: 99 | D98: 其他国防动员支出 | E98: 2400.00
B99: 99 | D99: 其他国防支出 | E99: 100.00
A100: 203 | B100: 99 | C100: 99 | D100: 其它国防支出 | E100: 100.00
A101: 204 | D101: 公共安全支出 | E101: 118201.92
B102: 01 | D102: 武装警察部队 | E102: 300.00
A103: 204 | B103: 01 | C103: 01 | D103: 武装警察部队 | E103: 300.00
B104: 02 | D104: 公安 | E104: 104236.56
A105: 204 | B105: 02 | C105: 01 | D105: 行政运行（公安） | E105: 66811.36
A106: 204 | B106: 02 | C106: 02 | D106: 一般行政管理事务（公安） | E106: 2908.80
A107: 204 | B107: 02 | C107: 19 | D107: 信息化建设（公安） | E107: 3900.00
A108: 204 | B108: 02 | C108: 20 | D108: 执法办案 | E108: 29616.40
A109: 204 | B109: 02 | C109: 99 | D109: 其他公安支出 | E109: 1000.00
B110: 06 | D110: 司法 | E110: 13265.36
A111: 204 | B111: 06 | C111: 01 | D111: 行政运行（司法） | E111: 8779.63
A112: 204 | B112: 06 | C112: 02 | D112: 一般行政管理事务（司法） | E112: 1584.00
A113: 204 | B113: 06 | C113: 05 | D113: 普法宣传 | E113: 380.00
A114: 204 | B114: 06 | C114: 07 | D114: 公共法律服务 | E114: 1021.73
A115: 204 | B115: 06 | C115: 10 | D115: 社区矫正 | E115: 1500.00
B116: 99 | D116: 其他公共安全支出 | E116: 400.00
A117: 204 | B117: 99 | C117: 99 | D117: 其他公共安全支出 | E117: 400.00
A118: 205 | D118: 教育支出 | E118: 630421.48
B119: 01 | D119: 教育管理事务 | E119: 29393.99
A120: 205 | B120: 01 | C120: 01 | D120: 行政运行（教育管理事务） | E120: 26303.99
A121: 205 | B121: 01 | C121: 02 | D121: 一般行政管理事务（教育管理事务） | E121: 1230.00
A122: 205 | B122: 01 | C122: 99 | D122: 其他教育管理事务支出 | E122: 1860.00
B123: 02 | D123: 普通教育 | E123: 538239.02
A124: 205 | B124: 02 | C124: 01 | D124: 学前教育 | E124: 12275.90
A125: 205 | B125: 02 | C125: 02 | D125: 小学教育 | E125: 241173.22
A126: 205 | B126: 02 | C126: 03 | D126: 初中教育 | E126: 175399.75
A127: 205 | B127: 02 | C127: 04 | D127: 高中教育 | E127: 99767.89
A128: 205 | B128: 02 | C128: 99 | D128: 其他普通教育支出 | E128: 9622.26
B129: 03 | D129: 职业教育 | E129: 23807.10
A130: 205 | B130: 03 | C130: 02 | D130: 中等职业教育 | E130: 21477.10
A131: 205 | B131: 03 | C131: 99 | D131: 其他职业教育支出 | E131: 2330.00
B132: 07 | D132: 特殊教育 | E132: 2734.14
A133: 205 | B133: 07 | C133: 01 | D133: 特殊学校教育 | E133: 2734.14
B134: 08 | D134: 进修及培训 | E134: 6531.74
A135: 205 | B135: 08 | C135: 01 | D135: 教师进修 | E135: 4756.74
A136: 205 | B136: 08 | C136: 02 | D136: 干部教育 | E136: 1075.00
A137: 205 | B137: 08 | C137: 99 | D137: 其他进修及培训 | E137: 700.00
B138: 09 | D138: 教育费附加安排的支出 | E138: 26420.00
A139: 205 | B139: 09 | C139: 01 | D139: 农村中小学校舍建设（教育费附加安排的支出） | E139: 1160.00
A140: 205 | B140: 09 | C140: 02 | D140: 农村中小学教学设施（教育费附加安排的支出） | E140: 1180.00
A141: 205 | B141: 09 | C141: 03 | D141: 城市中小学校舍建设（教育费附加安排的支出） | E141: 3980.00
A142: 205 | B142: 09 | C142: 05 | D142: 中等职业学校教学设施（教育费附加安排的支出） | E142: 100.00
A143: 205 | B143: 09 | C143: 99 | D143: 其他教育费附加安排的支出 | E143: 20000.00
B144: 99 | D144: 其他教育支出 | E144: 3295.49
A145: 205 | B145: 99 | C145: 99 | D145: 其他教育支出 | E145: 3295.49
A146: 206 | D146: 科学技术支出 | E146: 8613.95
B147: 01 | D147: 科学技术管理事务 | E147: 3300.00
A148: 206 | B148: 01 | C148: 02 | D148: 一般行政管理事务（科学技术管理事务） | E148: 300.00
A149: 206 | B149: 01 | C149: 99 | D149: 其他科学技术管理事务支出 | E149: 3000.00
B150: 04 | D150: 技术研究与开发 | E150: 2000.00
A151: 206 | B151: 04 | C151: 99 | D151: 其他技术研究与开发支出 | E151: 2000.00
B152: 07 | D152: 科学技术普及 | E152: 2813.95
A153: 206 | B153: 07 | C153: 01 | D153: 机构运行（科学技术普及） | E153: 1673.95
A154: 206 | B154: 07 | C154: 02 | D154: 科普活动 | E154: 1140.00
B155: 99 | D155: 其他科学技术支出 | E155: 500.00
A156: 206 | B156: 99 | C156: 99 | D156: 其他科学技术支出 | E156: 500.00
A157: 207 | D157: 文化旅游体育与传媒支出 | E157: 26822.31
B158: 01 | D158: 文化和旅游 | E158: 14794.66
A159: 207 | B159: 01 | C159: 01 | D159: 行政运行（文化） | E159: 11372.66
A160: 207 | B160: 01 | C160: 02 | D160: 一般行政管理事务（文化） | E160: 2822.00
A161: 207 | B161: 01 | C161: 11 | D161: 文化创作与保护 | E161: 200.00
A162: 207 | B162: 01 | C162: 99 | D162: 其他文化和旅游支出 | E162: 400.00
B163: 02 | D163: 文物 | E163: 952.93
A164: 207 | B164: 02 | C164: 01 | D164: 行政运行（文物） | E164: 872.93
A165: 207 | B165: 02 | C165: 05 | D165: 博物馆 | E165: 80.00
B166: 03 | D166: 体育 | E166: 1178.38
A167: 207 | B167: 03 | C167: 01 | D167: 行政运行（体育） | E167: 1042.38
A168: 207 | B168: 03 | C168: 02 | D168: 一般行政管理事务（体育） | E168: 136.00
B169: 08 | D169: 广播电视 | E169: 9896.34
A170: 207 | B170: 08 | C170: 01 | D170: 行政运行 | E170: 9896.34
A171: 208 | D171: 社会保障和就业支出 | E171: 322073.61
B172: 01 | D172: 人力资源和社会保障管理事务 | E172: 16392.00
A173: 208 | B173: 01 | C173: 01 | D173: 行政运行（人力资源和社会保障管理事务） | E173: 5326.49
A174: 208 | B174: 01 | C174: 02 | D174: 一般行政管理事务（人力资源和社会保障管理事务） | E174: 1300.00
A175: 208 | B175: 01 | C175: 05 | D175: 劳动保障监察 | E175: 895.89
A176: 208 | B176: 01 | C176: 09 | D176: 社会保险经办机构 | E176: 8869.62
B177: 02 | D177: 民政管理事务 | E177: 14166.51
A178: 208 | B178: 02 | C178: 01 | D178: 行政运行（民政管理事务） | E178: 11062.31
A179: 208 | B179: 02 | C179: 99 | D179: 其他民政管理事务支出 | E179: 3104.20
B180: 05 | D180: 行政事业单位养老支出 | E180: 220000.00
A181: 208 | B181: 05 | C181: 06 | D181: 机关事业单位职业年金缴费支出 | E181: 20000.00
A182: 208 | B182: 05 | C182: 07 | D182: 对机关事业单位基本养老保险基金的补助 | E182: 200000.00
B183: 06 | D183: 企业改革补助 | E183: 1000.00
A184: 208 | B184: 06 | C184: 99 | D184: 其他企业改革发展补助 | E184: 1000.00
B185: 07 | D185: 就业补助 | E185: 840.00
A186: 208 | B186: 07 | C186: 99 | D186: 其他就业补助支出 | E186: 840.00
B187: 08 | D187: 抚恤 | E187: 10585.80
A188: 208 | B188: 08 | C188: 01 | D188: 死亡抚恤 | E188: 9238.00
A189: 208 | B189: 08 | C189: 05 | D189: 义务兵优待 | E189: 1000.00
A190: 208 | B190: 08 | C190: 99 | D190: 其他优抚支出 | E190: 347.80
B191: 09 | D191: 退役安置 | E191: 500.00
A192: 208 | B192: 09 | C192: 99 | D192: 其他退役安置支出 | E192: 500.00
B193: 10 | D193: 社会福利 | E193: 19030.00
A194: 208 | B194: 10 | C194: 04 | D194: 殡葬 | E194: 16350.00
A195: 208 | B195: 10 | C195: 05 | D195: 社会福利事业单位 | E195: 2680.00
B196: 11 | D196: 残疾人事业 | E196: 11569.79
A197: 208 | B197: 11 | C197: 01 | D197: 行政运行（残疾人事业） | E197: 1529.79
A198: 208 | B198: 11 | C198: 04 | D198: 残疾人康复 | E198: 1030.00
A199: 208 | B199: 11 | C199: 05 | D199: 残疾人就业和扶贫 | E199: 5532.00
A200: 208 | B200: 11 | C200: 06 | D200: 残疾人体育 | E200: 15.00
A201: 208 | B201: 11 | C201: 07 | D201: 残疾人生活和护理补贴 | E201: 3440.00
... 179 more rows

Sheet 表6
A1: 2021年一般公共预算本级基本支出总表（按部门预算经济分类）
H2: 单位：千元
A3: 功能科目 | E3: 基本支出
A4: 科目编码 | D4: 科目名称 | E4: 合计 | F4: 工资福利支出 | G4: 商品和服务支出 | H4: 对个人和家庭的补助
A5: 类 | B5: 款 | C5: 项
D6: 合计 | E6: 1755199.55 | F6: 1460631.19 | G6: 268776.80 | H6: 25791.56
A7: 201 | D7: 一般公共服务支出 | E7: 178247.94 | F7: 153233.25 | G7: 22891.00 | H7: 2123.69
B8: 01 | D8: 人大事务 | E8: 3920.52 | F8: 3545.30 | G8: 360.00 | H8: 15.22
A9: 201 | B9: 01 | C9: 01 | D9: 行政运行（人大事务） | E9: 3920.52 | F9: 3545.30 | G9: 360.00 | H9: 15.22
A10: 201 | B10: 01 | C10: 02 | D10: 一般行政管理事务（人大事务） | E10: 0.00 | F10: 0.00 | G10: 0.00 | H10: 0.00
A11: 201 | B11: 01 | C11: 03 | D11: 机关服务（人大事务） | E11: 0.00 | F11: 0.00 | G11: 0.00 | H11: 0.00
A12: 201 | B12: 01 | C12: 04 | D12: 人大会议 | E12: 0.00 | F12: 0.00 | G12: 0.00 | H12: 0.00
A13: 201 | B13: 01 | C13: 06 | D13: 人大监督 | E13: 0.00 | F13: 0.00 | G13: 0.00 | H13: 0.00
A14: 201 | B14: 01 | C14: 08 | D14: 代表工作 | E14: 0.00 | F14: 0.00 | G14: 0.00 | H14: 0.00
B15: 02 | D15: 政协事务 | E15: 3535.75 | F15: 3209.19 | G15: 310.00 | H15: 16.56
A16: 201 | B16: 02 | C16: 01 | D16: 行政运行（政协事务） | E16: 3535.75 | F16: 3209.19 | G16: 310.00 | H16: 16.56
A17: 201 | B17: 02 | C17: 02 | D17: 一般行政管理事务（政协事务） | E17: 0.00 | F17: 0.00 | G17: 0.00 | H17: 0.00
A18: 201 | B18: 02 | C18: 99 | D18: 其他政协事务支出 | E18: 0.00 | F18: 0.00 | G18: 0.00 | H18: 0.00
B19: 03 | D19: 政府办公厅（室）及相关机构事务 | E19: 85722.77 | F19: 73560.51 | G19: 10537.00 | H19: 1625.26
A20: 201 | B20: 03 | C20: 01 | D20: 行政运行（政府办公厅（室）及相关机构事务） | E20: 85722.77 | F20: 73560.51 | G20: 10537.00 | H20: 1625.26
A21: 201 | B21: 03 | C21: 02 | D21: 一般行政管理事务（政府办公厅（室）及相关机构事务） | E21: 0.00 | F21: 0.00 | G21: 0.00 | H21: 0.00
A22: 201 | B22: 03 | C22: 03 | D22: 机关服务（政府办公厅（室）及相关机构事务） | E22: 0.00 | F22: 0.00 | G22: 0.00 | H22: 0.00
A23: 201 | B23: 03 | C23: 05 | D23: 专项业务及机关事物管理 | E23: 0.00 | F23: 0.00 | G23: 0.00 | H23: 0.00
A24: 201 | B24: 03 | C24: 06 | D24: 政务公开审批 | E24: 0.00 | F24: 0.00 | G24: 0.00 | H24: 0.00
A25: 201 | B25: 03 | C25: 08 | D25: 信访事务 | E25: 0.00 | F25: 0.00 | G25: 0.00 | H25: 0.00
A26: 201 | B26: 03 | C26: 99 | D26: 其他政府办公厅（室）及相关机构事务支出 | E26: 0.00 | F26: 0.00 | G26: 0.00 | H26: 0.00
B27: 04 | D27: 发展与改革事务 | E27: 7864.98 | F27: 6879.69 | G27: 850.00 | H27: 135.29
A28: 201 | B28: 04 | C28: 01 | D28: 行政运行（发展与改革事务） | E28: 7787.11 | F28: 6879.69 | G28: 850.00 | H28: 57.42
A29: 201 | B29: 04 | C29: 02 | D29: 一般行政管理事务（发展与改革事务） | E29: 77.87 | F29: 0.00 | G29: 0.00 | H29: 77.87
A30: 201 | B30: 04 | C30: 04 | D30: 战略规划与实施 | E30: 0.00 | F30: 0.00 | G30: 0.00 | H30: 0.00
A31: 201 | B31: 04 | C31: 99 | D31: 其他发展与改革事务支出 | E31: 0.00 | F31: 0.00 | G31: 0.00 | H31: 0.00
B32: 05 | D32: 统计信息事务 | E32: 1981.49 | F32: 1771.49 | G32: 210.00 | H32: 0.00
A33: 201 | B33: 05 | C33: 01 | D33: 行政运行（统计信息事务） | E33: 1981.49 | F33: 1771.49 | G33: 210.00 | H33: 0.00
A34: 201 | B34: 05 | C34: 02 | D34: 一般行政管理事务（统计信息事务） | E34: 0.00 | F34: 0.00 | G34: 0.00 | H34: 0.00
A35: 201 | B35: 05 | C35: 04 | D35: 信息事务 | E35: 0.00 | F35: 0.00 | G35: 0.00 | H35: 0.00
A36: 201 | B36: 05 | C36: 05 | D36: 专项统计业务 | E36: 0.00 | F36: 0.00 | G36: 0.00 | H36: 0.00
A37: 201 | B37: 05 | C37: 07 | D37: 专项普查活动 | E37: 0.00 | F37: 0.00 | G37: 0.00 | H37: 0.00
A38: 201 | B38: 05 | C38: 08 | D38: 统计抽样调查 | E38: 0.00 | F38: 0.00 | G38: 0.00 | H38: 0.00
B39: 06 | D39: 财政事务 | E39: 19522.65 | F39: 17375.55 | G39: 2120.00 | H39: 27.10
A40: 201 | B40: 06 | C40: 01 | D40: 行政运行（财政事务） | E40: 19522.65 | F40: 17375.55 | G40: 2120.00 | H40: 27.10
A41: 201 | B41: 06 | C41: 02 | D41: 一般行政管理事务（财政事务） | E41: 0.00 | F41: 0.00 | G41: 0.00 | H41: 0.00
A42: 201 | B42: 06 | C42: 05 | D42: 财政国库业务 | E42: 0.00 | F42: 0.00 | G42: 0.00 | H42: 0.00
A43: 201 | B43: 06 | C43: 07 | D43: 信息化建设（财政事务） | E43: 0.00 | F43: 0.00 | G43: 0.00 | H43: 0.00
A44: 201 | B44: 06 | C44: 99 | D44: 其他财政事务支出 | E44: 0.00 | F44: 0.00 | G44: 0.00 | H44: 0.00
B45: 07 | D45: 税收事务 | E45: 0.00 | F45: 0.00 | G45: 0.00 | H45: 0.00
A46: 201 | B46: 07 | C46: 99 | D46: 其他税收事务支出 | E46: 0.00 | F46: 0.00 | G46: 0.00 | H46: 0.00
B47: 08 | D47: 审计事务 | E47: 4014.36 | F47: 3103.99 | G47: 824.00 | H47: 86.37
A48: 201 | B48: 08 | C48: 01 | D48: 行政运行（审计事务） | E48: 4014.36 | F48: 3103.99 | G48: 824.00 | H48: 86.37
A49: 201 | B49: 08 | C49: 02 | D49: 一般行政管理事务（审计事务） | E49: 0.00 | F49: 0.00 | G49: 0.00 | H49: 0.00
A50: 201 | B50: 08 | C50: 04 | D50: 审计业务 | E50: 0.00 | F50: 0.00 | G50: 0.00 | H50: 0.00
B51: 11 | D51: 纪检监察事务 | E51: 12279.36 | F51: 8949.36 | G51: 3330.00 | H51: 0.00
A52: 201 | B52: 11 | C52: 01 | D52: 行政运行（纪检监察事务） | E52: 12279.36 | F52: 8949.36 | G52: 3330.00 | H52: 0.00
A53: 201 | B53: 11 | C53: 02 | D53: 一般行政管理事务（纪检监察事务） | E53: 0.00 | F53: 0.00 | G53: 0.00 | H53: 0.00
B54: 13 | D54: 商贸事务 | E54: 0.00 | F54: 0.00 | G54: 0.00 | H54: 0.00
A55: 201 | B55: 13 | C55: 08 | D55: 招商引资 | E55: 0.00 | F55: 0.00 | G55: 0.00 | H55: 0.00
B56: 26 | D56: 档案事务 | E56: 1292.26 | F56: 1152.26 | G56: 140.00 | H56: 0.00
A57: 201 | B57: 26 | C57: 01 | D57: 行政运行（档案事务） | E57: 1292.26 | F57: 1152.26 | G57: 140.00 | H57: 0.00
A58: 201 | B58: 26 | C58: 02 | D58: 一般行政管理事务（档案事务） | E58: 0.00 | F58: 0.00 | G58: 0.00 | H58: 0.00
B59: 28 | D59: 民主党派及工商联事务 | E59: 571.10 | F59: 511.10 | G59: 60.00 | H59: 0.00
A60: 201 | B60: 28 | C60: 01 | D60: 行政运行（民主党派及工商联事务） | E60: 571.10 | F60: 511.10 | G60: 60.00 | H60: 0.00
A61: 201 | B61: 28 | C61: 02 | D61: 一般行政管理事务（民主党派及工商联事务） | E61: 0.00 | F61: 0.00 | G61: 0.00 | H61: 0.00
B62: 29 | D62: 群众团体事务 | E62: 2716.61 | F62: 2406.61 | G62: 310.00 | H62: 0.00
A63: 201 | B63: 29 | C63: 01 | D63: 行政运行（群众团体事务） | E63: 2716.61 | F63: 2406.61 | G63: 310.00 | H63: 0.00
A64: 201 | B64: 29 | C64: 02 | D64: 一般行政管理事务（群众团体事务） | E64: 0.00 | F64: 0.00 | G64: 0.00 | H64: 0.00
A65: 201 | B65: 29 | C65: 50 | D65: 事业运行（群众团体事务） | E65: 0.00 | F65: 0.00 | G65: 0.00 | H65: 0.00
A66: 201 | B66: 29 | C66: 99 | D66: 其他群众团体事务支出 | E66: 0.00 | F66: 0.00 | G66: 0.00 | H66: 0.00
B67: 31 | D67: 党委办公厅（室）及相关机构事务 | E67: 4565.59 | F67: 4048.67 | G67: 500.00 | H67: 16.92
A68: 201 | B68: 31 | C68: 01 | D68: 行政运行（党委办公厅（室）及相关机构事务） | E68: 4565.59 | F68: 4048.67 | G68: 500.00 | H68: 16.92
A69: 201 | B69: 31 | C69: 02 | D69: 一般行政管理事务（党委办公厅（室）及相关机构事务） | E69: 0.00 | F69: 0.00 | G69: 0.00 | H69: 0.00
B70: 32 | D70: 组织事务 | E70: 2971.95 | F70: 2631.95 | G70: 340.00 | H70: 0.00
A71: 201 | B71: 32 | C71: 01 | D71: 行政运行（组织事务） | E71: 2971.95 | F71: 2631.95 | G71: 340.00 | H71: 0.00
A72: 201 | B72: 32 | C72: 02 | D72: 一般行政管理事务（组织事务） | E72: 0.00 | F72: 0.00 | G72: 0.00 | H72: 0.00
B73: 33 | D73: 宣传事务 | E73: 1537.62 | F73: 1367.62 | G73: 170.00 | H73: 0.00
A74: 201 | B74: 33 | C74: 01 | D74: 行政运行（宣传事务） | E74: 1537.62 | F74: 1367.62 | G74: 170.00 | H74: 0.00
A75: 201 | B75: 33 | C75: 02 | D75: 一般行政管理事务（宣传事务） | E75: 0.00 | F75: 0.00 | G75: 0.00 | H75: 0.00
A76: 201 | B76: 33 | C76: 99 | D76: 其他宣传事务支出 | E76: 0.00 | F76: 0.00 | G76: 0.00 | H76: 0.00
B77: 34 | D77: 统战事务 | E77: 1831.56 | F77: 1661.56 | G77: 170.00 | H77: 0.00
A78: 201 | B78: 34 | C78: 01 | D78: 行政运行（统战事务） | E78: 1831.56 | F78: 1661.56 | G78: 170.00 | H78: 0.00
A79: 201 | B79: 34 | C79: 02 | D79: 一般行政管理事务（统战事务） | E79: 0.00 | F79: 0.00 | G79: 0.00 | H79: 0.00
A80: 201 | B80: 34 | C80: 04 | D80: 宗教事务 | E80: 0.00 | F80: 0.00 | G80: 0.00 | H80: 0.00
A81: 201 | B81: 34 | C81: 99 | D81: 其他统战事务支出 | E81: 0.00 | F81: 0.00 | G81: 0.00 | H81: 0.00
B82: 37 | D82: 网信事务 | E82: 485.63 | F82: 425.63 | G82: 60.00 | H82: 0.00
A83: 201 | B83: 37 | C83: 01 | D83: 行政运行 | E83: 485.63 | F83: 425.63 | G83: 60.00 | H83: 0.00
A84: 201 | B84: 37 | C84: 02 | D84: 一般行政管理事务 | E84: 0.00 | F84: 0.00 | G84: 0.00 | H84: 0.00
B85: 38 | D85: 市场监督管理事务 | E85: 23433.74 | F85: 20632.77 | G85: 2600.00 | H85: 200.97
A86: 201 | B86: 38 | C86: 01 | D86: 行政运行 | E86: 23433.74 | F86: 20632.77 | G86: 2600.00 | H86: 200.97
A87: 201 | B87: 38 | C87: 04 | D87: 市场主体管理 | E87: 0.00 | F87: 0.00 | G87: 0.00 | H87: 0.00
A88: 201 | B88: 38 | C88: 05 | D88: 市场秩序执法 | E88: 0.00 | F88: 0.00 | G88: 0.00 | H88: 0.00
A89: 201 | B89: 38 | C89: 08 | D89: 信息化建设 | E89: 0.00 | F89: 0.00 | G89: 0.00 | H89: 0.00
A90: 201 | B90: 38 | C90: 10 | D90: 质量基础 | E90: 0.00 | F90: 0.00 | G90: 0.00 | H90: 0.00
A91: 201 | B91: 38 | C91: 12 | D91: 药品事务 | E91: 0.00 | F91: 0.00 | G91: 0.00 | H91: 0.00
A92: 201 | B92: 38 | C92: 15 | D92: 质量安全监管 | E92: 0.00 | F92: 0.00 | G92: 0.00 | H92: 0.00
A93: 201 | B93: 38 | C93: 16 | D93: 食品安全监管 | E93: 0.00 | F93: 0.00 | G93: 0.00 | H93: 0.00
A94: 201 | B94: 38 | C94: 99 | D94: 其他市场监督管理事务 | E94: 0.00 | F94: 0.00 | G94: 0.00 | H94: 0.00
B95: 99 | D95: 其他一般公共服务支出 | E95: 0.00 | F95: 0.00 | G95: 0.00 | H95: 0.00
A96: 201 | B96: 99 | C96: 01 | D96: 国家赔偿费用支出 | E96: 0.00 | F96: 0.00 | G96: 0.00 | H96: 0.00
A97: 201 | B97: 99 | C97: 99 | D97: 其他一般公共服务支出 | E97: 0.00 | F97: 0.00 | G97: 0.00 | H97: 0.00
A98: 203 | D98: 国防支出 | E98: 0.00 | F98: 0.00 | G98: 0.00 | H98: 0.00
B99: 06 | D99: 国防动员 | E99: 0.00 | F99: 0.00 | G99: 0.00 | H99: 0.00
A100: 203 | B100: 06 | C100: 07 | D100: 民兵 | E100: 0.00 | F100: 0.00 | G100: 0.00 | H100: 0.00
A101: 203 | B101: 06 | C101: 99 | D101: 其他国防动员支出 | E101: 0.00 | F101: 0.00 | G101: 0.00 | H101: 0.00
B102: 99 | D102: 其他国防支出 | E102: 0.00 | F102: 0.00 | G102: 0.00 | H102: 0.00
A103: 203 | B103: 99 | C103: 99 | D103: 其它国防支出 | E103: 0.00 | F103: 0.00 | G103: 0.00 | H103: 0.00
A104: 204 | D104: 公共安全支出 | E104: 76152.72 | F104: 62824.82 | G104: 13186.00 | H104: 141.90
B105: 01 | D105: 武装警察部队 | E105: 0.00 | F105: 0.00 | G105: 0.00 | H105: 0.00
A106: 204 | B106: 01 | C106: 01 | D106: 武装警察部队 | E106: 0.00 | F106: 0.00 | G106: 0.00 | H106: 0.00
B107: 02 | D107: 公安 | E107: 66811.36 | F107: 55237.80 | G107: 11440.00 | H107: 133.56
A108: 204 | B108: 02 | C108: 01 | D108: 行政运行（公安） | E108: 66811.36 | F108: 55237.80 | G108: 11440.00 | H108: 133.56
A109: 204 | B109: 02 | C109: 02 | D109: 一般行政管理事务（公安） | E109: 0.00 | F109: 0.00 | G109: 0.00 | H109: 0.00
A110: 204 | B110: 02 | C110: 19 | D110: 信息化建设（公安） | E110: 0.00 | F110: 0.00 | G110: 0.00 | H110: 0.00
A111: 204 | B111: 02 | C111: 20 | D111: 执法办案 | E111: 0.00 | F111: 0.00 | G111: 0.00 | H111: 0.00
A112: 204 | B112: 02 | C112: 50 | D112: 事业运行（公安） | E112: 0.00 | F112: 0.00 | G112: 0.00 | H112: 0.00
A113: 204 | B113: 02 | C113: 99 | D113: 其他公安支出 | E113: 0.00 | F113: 0.00 | G113: 0.00 | H113: 0.00
B114: 06 | D114: 司法 | E114: 9341.36 | F114: 7587.02 | G114: 1746.00 | H114: 8.34
A115: 204 | B115: 06 | C115: 01 | D115: 行政运行（司法） | E115: 8779.63 | F115: 7085.29 | G115: 1686.00 | H115: 8.34
A116: 204 | B116: 06 | C116: 02 | D116: 一般行政管理事务（司法） | E116: 0.00 | F116: 0.00 | G116: 0.00 | H116: 0.00
A117: 204 | B117: 06 | C117: 05 | D117: 普法宣传 | E117: 0.00 | F117: 0.00 | G117: 0.00 | H117: 0.00
A118: 204 | B118: 06 | C118: 07 | D118: 公共法律服务 | E118: 561.73 | F118: 501.73 | G118: 60.00 | H118: 0.00
A119: 204 | B119: 06 | C119: 10 | D119: 社区矫正 | E119: 0.00 | F119: 0.00 | G119: 0.00 | H119: 0.00
A120: 204 | B120: 06 | C120: 99 | D120: 其他司法支出 | E120: 0.00 | F120: 0.00 | G120: 0.00 | H120: 0.00
B121: 99 | D121: 其他公共安全支出 | E121: 0.00 | F121: 0.00 | G121: 0.00 | H121: 0.00
A122: 204 | B122: 99 | C122: 99 | D122: 其他公共安全支出 | E122: 0.00 | F122: 0.00 | G122: 0.00 | H122: 0.00
A123: 205 | D123: 教育支出 | E123: 678203.30 | F123: 578760.21 | G123: 84980.22 | H123: 14462.87
B124: 01 | D124: 教育管理事务 | E124: 24003.99 | F124: 20336.71 | G124: 3590.00 | H124: 77.28
A125: 205 | B125: 01 | C125: 01 | D125: 行政运行（教育管理事务） | E125: 24003.99 | F125: 20336.71 | G125: 3590.00 | H125: 77.28
A126: 205 | B126: 01 | C126: 02 | D126: 一般行政管理事务（教育管理事务） | E126: 0.00 | F126: 0.00 | G126: 0.00 | H126: 0.00
A127: 205 | B127: 01 | C127: 99 | D127: 其他教育管理事务支出 | E127: 0.00 | F127: 0.00 | G127: 0.00 | H127: 0.00
B128: 02 | D128: 普通教育 | E128: 613020.31 | F128: 525153.49 | G128: 74172.69 | H128: 13694.13
A129: 205 | B129: 02 | C129: 01 | D129: 学前教育 | E129: 15812.25 | F129: 11603.22 | G129: 3880.50 | H129: 328.53
A130: 205 | B130: 02 | C130: 02 | D130: 小学教育 | E130: 268884.56 | F130: 229945.02 | G130: 33470.89 | H130: 5468.65
A131: 205 | B131: 02 | C131: 03 | D131: 初中教育 | E131: 195327.23 | F131: 172292.49 | G131: 19316.54 | H131: 3718.20
A132: 205 | B132: 02 | C132: 04 | D132: 高中教育 | E132: 131214.01 | F132: 110020.50 | G132: 17014.76 | H132: 4178.75
A133: 205 | B133: 02 | C133: 99 | D133: 其他普通教育支出 | E133: 1782.26 | F133: 1292.26 | G133: 490.00 | H133: 0.00
B134: 03 | D134: 职业教育 | E134: 27930.88 | F134: 23829.70 | G134: 3571.78 | H134: 529.40
A135: 205 | B135: 03 | C135: 02 | D135: 中等职业教育 | E135: 27930.88 | F135: 23829.70 | G135: 3571.78 | H135: 529.40
A136: 205 | B136: 03 | C136: 99 | D136: 其他职业教育支出 | E136: 0.00 | F136: 0.00 | G136: 0.00 | H136: 0.00
B137: 07 | D137: 特殊教育 | E137: 3842.89 | F137: 2410.14 | G137: 1432.75 | H137: 0.00
A138: 205 | B138: 07 | C138: 01 | D138: 特殊学校教育 | E138: 3842.89 | F138: 2410.14 | G138: 1432.75 | H138: 0.00
B139: 08 | D139: 进修及培训 | E139: 6409.74 | F139: 4334.68 | G139: 1913.00 | H139: 162.06
A140: 205 | B140: 08 | C140: 01 | D140: 教师进修 | E140: 6409.74 | F140: 4334.68 | G140: 1913.00 | H140: 162.06
A141: 205 | B141: 08 | C141: 02 | D141: 干部教育 | E141: 0.00 | F141: 0.00 | G141: 0.00 | H141: 0.00
A142: 205 | B142: 08 | C142: 99 | D142: 其他进修及培训 | E142: 0.00 | F142: 0.00 | G142: 0.00 | H142: 0.00
B143: 09 | D143: 教育费附加安排的支出 | E143: 0.00 | F143: 0.00 | G143: 0.00 | H143: 0.00
A144: 205 | B144: 09 | C144: 01 | D144: 农村中小学校舍建设（教育费附加安排的支出） | E144: 0.00 | F144: 0.00 | G144: 0.00 | H144: 0.00
A145: 205 | B145: 09 | C145: 02 | D145: 农村中小学教学设施（教育费附加安排的支出） | E145: 0.00 | F145: 0.00 | G145: 0.00 | H145: 0.00
A146: 205 | B146: 09 | C146: 03 | D146: 城市中小学校舍建设（教育费附加安排的支出） | E146: 0.00 | F146: 0.00 | G146: 0.00 | H146: 0.00
A147: 205 | B147: 09 | C147: 05 | D147: 中等职业学校教学设施（教育费附加安排的支出） | E147: 0.00 | F147: 0.00 | G147: 0.00 | H147: 0.00
A148: 205 | B148: 09 | C148: 99 | D148: 其他教育费附加安排的支出 | E148: 0.00 | F148: 0.00 | G148: 0.00 | H148: 0.00
B149: 99 | D149: 其他教育支出 | E149: 2995.49 | F149: 2695.49 | G149: 300.00 | H149: 0.00
A150: 205 | B150: 99 | C150: 99 | D150: 其他教育支出 | E150: 2995.49 | F150: 2695.49 | G150: 300.00 | H150: 0.00
A151: 206 | D151: 科学技术支出 | E151: 1673.95 | F151: 1503.95 | G151: 170.00 | H151: 0.00
B152: 01 | D152: 科学技术管理事务 | E152: 0.00 | F152: 0.00 | G152: 0.00 | H152: 0.00
A153: 206 | B153: 01 | C153: 02 | D153: 一般行政管理事务（科学技术管理事务） | E153: 0.00 | F153: 0.00 | G153: 0.00 | H153: 0.00
A154: 206 | B154: 01 | C154: 99 | D154: 其他科学技术管理事务支出 | E154: 0.00 | F154: 0.00 | G154: 0.00 | H154: 0.00
B155: 04 | D155: 技术研究与开发 | E155: 0.00 | F155: 0.00 | G155: 0.00 | H155: 0.00
A156: 206 | B156: 04 | C156: 99 | D156: 其他技术研究与开发支出 | E156: 0.00 | F156: 0.00 | G156: 0.00 | H156: 0.00
B157: 07 | D157: 科学技术普及 | E157: 1673.95 | F157: 1503.95 | G157: 170.00 | H157: 0.00
A158: 206 | B158: 07 | C158: 01 | D158: 机构运行（科学技术普及） | E158: 1673.95 | F158: 1503.95 | G158: 170.00 | H158: 0.00
A159: 206 | B159: 07 | C159: 02 | D159: 科普活动 | E159: 0.00 | F159: 0.00 | G159: 0.00 | H159: 0.00
B160: 99 | D160: 其他科学技术支出 | E160: 0.00 | F160: 0.00 | G160: 0.00 | H160: 0.00
A161: 206 | B161: 99 | C161: 99 | D161: 其他科学技术支出 | E161: 0.00 | F161: 0.00 | G161: 0.00 | H161: 0.00
A162: 207 | D162: 文化旅游体育与传媒支出 | E162: 18297.31 | F162: 16171.55 | G162: 2060.00 | H162: 65.76
B163: 01 | D163: 文化和旅游 | E163: 9785.66 | F163: 8710.86 | G163: 1040.00 | H163: 34.80
A164: 207 | B164: 01 | C164: 01 | D164: 行政运行（文化） | E164: 9785.66 | F164: 8710.86 | G164: 1040.00 | H164: 34.80
A165: 207 | B165: 01 | C165: 02 | D165: 一般行政管理事务（文化） | E165: 0.00 | F165: 0.00 | G165: 0.00 | H165: 0.00
A166: 207 | B166: 01 | C166: 08 | D166: 文化活动 | E166: 0.00 | F166: 0.00 | G166: 0.00 | H166: 0.00
A167: 207 | B167: 01 | C167: 11 | D167: 文化创作与保护 | E167: 0.00 | F167: 0.00 | G167: 0.00 | H167: 0.00
A168: 207 | B168: 01 | C168: 99 | D168: 其他文化和旅游支出 | E168: 0.00 | F168: 0.00 | G168: 0.00 | H168: 0.00
B169: 02 | D169: 文物 | E169: 872.93 | F169: 772.93 | G169: 100.00 | H169: 0.00
A170: 207 | B170: 02 | C170: 01 | D170: 行政运行（文物） | E170: 872.93 | F170: 772.93 | G170: 100.00 | H170: 0.00
A171: 207 | B171: 02 | C171: 05 | D171: 博物馆 | E171: 0.00 | F171: 0.00 | G171: 0.00 | H171: 0.00
B172: 03 | D172: 体育 | E172: 1042.38 | F172: 932.38 | G172: 110.00 | H172: 0.00
A173: 207 | B173: 03 | C173: 01 | D173: 行政运行（体育） | E173: 1042.38 | F173: 932.38 | G173: 110.00 | H173: 0.00
A174: 207 | B174: 03 | C174: 02 | D174: 一般行政管理事务（体育） | E174: 0.00 | F174: 0.00 | G174: 0.00 | H174: 0.00
B175: 08 | D175: 广播电视 | E175: 6596.34 | F175: 5755.38 | G175: 810.00 | H175: 30.96
A176: 207 | B176: 08 | C176: 01 | D176: 行政运行 | E176: 6596.34 | F176: 5755.38 | G176: 810.00 | H176: 30.96
B177: 99 | D177: 其他文化旅游体育与传媒支出 | E177: 0.00 | F177: 0.00 | G177: 0.00 | H177: 0.00
A178: 207 | B178: 99 | C178: 99 | D178: 其他文化旅游体育与传媒支出 | E178: 0.00 | F178: 0.00 | G178: 0.00 | H178: 0.00
A179: 208 | D179: 社会保障和就业支出 | E179: 28646.21 | F179: 21482.96 | G179: 6394.90 | H179: 768.35
B180: 01 | D180: 人力资源和社会保障管理事务 | E180: 10912.00 | F180: 9004.25 | G180: 1170.00 | H180: 737.75
A181: 208 | B181: 01 | C181: 01 | D181: 行政运行（人力资源和社会保障管理事务） | E181: 5134.49 | F181: 4571.07 | G181: 560.00 | H181: 3.42
A182: 208 | B182: 01 | C182: 02 | D182: 一般行政管理事务（人力资源和社会保障管理事务） | E182: 0.00 | F182: 0.00 | G182: 0.00 | H182: 0.00
A183: 208 | B183: 01 | C183: 05 | D183: 劳动保障监察 | E183: 545.89 | F183: 475.89 | G183: 70.00 | H183: 0.00
A184: 208 | B184: 01 | C184: 09 | D184: 社会保险经办机构 | E184: 5231.62 | F184: 3957.29 | G184: 540.00 | H184: 734.33
B185: 02 | D185: 民政管理事务 | E185: 12334.31 | F185: 8341.71 | G185: 3962.00 | H185: 30.60
A186: 208 | B186: 02 | C186: 01 | D186: 行政运行（民政管理事务） | E186: 12334.31 | F186: 8341.71 | G186: 3962.00 | H186: 30.60
A187: 208 | B187: 02 | C187: 02 | D187: 一般行政管理事务（民政管理事务） | E187: 0.00 | F187: 0.00 | G187: 0.00 | H187: 0.00
A188: 208 | B188: 02 | C188: 99 | D188: 其他民政管理事务支出 | E188: 0.00 | F188: 0.00 | G188: 0.00 | H188: 0.00
B189: 05 | D189: 行政事业单位养老支出 | E189: 0.00 | F189: 0.00 | G189: 0.00 | H189: 0.00
A190: 208 | B190: 05 | C190: 06 | D190: 机关事业单位职业年金缴费支出 | E190: 0.00 | F190: 0.00 | G190: 0.00 | H190: 0.00
A191: 208 | B191: 05 | C191: 07 | D191: 对机关事业单位基本养老保险基金的补助 | E191: 0.00 | F191: 0.00 | G191: 0.00 | H191: 0.00
B192: 06 | D192: 企业改革补助 | E192: 0.00 | F192: 0.00 | G192: 0.00 | H192: 0.00
A193: 208 | B193: 06 | C193: 99 | D193: 其他企业改革发展补助 | E193: 0.00 | F193: 0.00 | G193: 0.00 | H193: 0.00
B194: 07 | D194: 就业补助 | E194: 0.00 | F194: 0.00 | G194: 0.00 | H194: 0.00
A195: 208 | B195: 07 | C195: 99 | D195: 其他就业补助支出 | E195: 0.00 | F195: 0.00 | G195: 0.00 | H195: 0.00
B196: 08 | D196: 抚恤 | E196: 0.00 | F196: 0.00 | G196: 0.00 | H196: 0.00
A197: 208 | B197: 08 | C197: 01 | D197: 死亡抚恤 | E197: 0.00 | F197: 0.00 | G197: 0.00 | H197: 0.00
A198: 208 | B198: 08 | C198: 05 | D198: 义务兵优待 | E198: 0.00 | F198: 0.00 | G198: 0.00 | H198: 0.00
A199: 208 | B199: 08 | C199: 99 | D199: 其他优抚支出 | E199: 0.00 | F199: 0.00 | G199: 0.00 | H199: 0.00
B200: 09 | D200: 退役安置 | E200: 0.00 | F200: 0.00 | G200: 0.00 | H200: 0.00
... 193 more rows

Sheet 表6-1
A1: 基本支出预算明细表-工资福利支出（按部门预算经济分类）
R2: 单位：千元
A3: 功能科目 | E3: 总计 | F3: 工资津补贴 | K3: 社会保障缴费 | Q3: 住房公积金 | R3: 其他工资福利支出
A4: 科目编码 | D4: 科目名称 | F4: 合计 | G4: 基本工资 | H4: 津贴补贴 | I4: 奖金 | J4: 绩效工资 | K4: 合计 | L4: 机关事业单位基本养老保险缴费 | M4: 职业年金缴费 | N4: 职工基本医疗保险缴费 | O4: 公务员医疗补助缴费 | P4: 其他社会保障缴费
A5: 类 | B5: 款 | C5: 项
D6: 合计 | E6: 1460631.19 | F6: 995900.08 | G6: 560624.78 | H6: 116234.23 | I6: 9803.79 | J6: 309237.28 | K6: 358535.02 | L6: 149146.90 | M6: 0.00 | N6: 75051.76 | O6: 0.00 | P6: 19260.45 | Q6: 106196.09 | R6: 115075.91
A7: 201 | D7: 一般公共服务支出 | E7: 153233.25 | F7: 119393.15 | G7: 68585.51 | H7: 36292.78 | I7: 4708.88 | J7: 9805.98 | K7: 33840.10 | L7: 19667.32 | M7: 0.00 | N7: 10636.78 | O7: 0.00 | P7: 2241.66 | Q7: 0.00 | R7: 1294.34
B8: 01 | D8: 人大事务 | E8: 3545.30 | F8: 2812.10 | G8: 1806.49 | H8: 863.41 | I8: 142.20 | J8: 0.00 | K8: 733.20 | L8: 434.45 | M8: 0.00 | N8: 255.45 | O8: 0.00 | P8: 43.30 | Q8: 0.00 | R8: 0.00
A9: 201 | B9: 01 | C9: 01 | D9: 行政运行（人大事务） | E9: 3545.30 | F9: 2812.10 | G9: 1806.49 | H9: 863.41 | I9: 142.20 | J9: 0.00 | K9: 733.20 | L9: 434.45 | M9: 0.00 | N9: 255.45 | O9: 0.00 | P9: 43.30 | Q9: 0.00 | R9: 0.00
B10: 02 | D10: 政协事务 | E10: 3209.19 | F10: 2562.13 | G10: 1624.02 | H10: 782.00 | I10: 132.97 | J10: 23.14 | K10: 647.06 | L10: 388.67 | M10: 0.00 | N10: 220.47 | O10: 0.00 | P10: 37.92 | Q10: 0.00 | R10: 0.00
A11: 201 | B11: 02 | C11: 01 | D11: 行政运行（政协事务） | E11: 3209.19 | F11: 2562.13 | G11: 1624.02 | H11: 782.00 | I11: 132.97 | J11: 23.14 | K11: 647.06 | L11: 388.67 | M11: 0.00 | N11: 220.47 | O11: 0.00 | P11: 37.92 | Q11: 0.00 | R11: 0.00
B12: 03 | D12: 政府办公厅（室）及相关机构事务 | E12: 73560.51 | F12: 55182.49 | G12: 30563.48 | H12: 17798.50 | I12: 2209.49 | J12: 4611.02 | K12: 18378.02 | L12: 10031.37 | M12: 0.00 | N12: 5901.60 | O12: 0.00 | P12: 1150.71 | Q12: 0.00 | R12: 1294.34
A13: 201 | B13: 03 | C13: 01 | D13: 行政运行（政府办公厅（室）及相关机构事务） | E13: 73560.51 | F13: 55182.49 | G13: 30563.48 | H13: 17798.50 | I13: 2209.49 | J13: 4611.02 | K13: 18378.02 | L13: 10031.37 | M13: 0.00 | N13: 5901.60 | O13: 0.00 | P13: 1150.71 | Q13: 0.00 | R13: 1294.34
B14: 04 | D14: 发展与改革事务 | E14: 6879.69 | F14: 5494.14 | G14: 3301.01 | H14: 1622.20 | I14: 183.69 | J14: 387.24 | K14: 1385.55 | L14: 834.48 | M14: 0.00 | N14: 457.21 | O14: 0.00 | P14: 93.86 | Q14: 0.00 | R14: 0.00
A15: 201 | B15: 04 | C15: 01 | D15: 行政运行（发展与改革事务） | E15: 6879.69 | F15: 5494.14 | G15: 3301.01 | H15: 1622.20 | I15: 183.69 | J15: 387.24 | K15: 1385.55 | L15: 834.48 | M15: 0.00 | N15: 457.21 | O15: 0.00 | P15: 93.86 | Q15: 0.00 | R15: 0.00
B16: 05 | D16: 统计信息事务 | E16: 1771.49 | F16: 1421.77 | G16: 877.49 | H16: 271.09 | I16: 40.07 | J16: 233.12 | K16: 349.72 | L16: 218.77 | M16: 0.00 | N16: 107.21 | O16: 0.00 | P16: 23.74 | Q16: 0.00 | R16: 0.00
A17: 201 | B17: 05 | C17: 01 | D17: 行政运行（统计信息事务） | E17: 1771.49 | F17: 1421.77 | G17: 877.49 | H17: 271.09 | I17: 40.07 | J17: 233.12 | K17: 349.72 | L17: 218.77 | M17: 0.00 | N17: 107.21 | O17: 0.00 | P17: 23.74 | Q17: 0.00 | R17: 0.00
B18: 06 | D18: 财政事务 | E18: 17375.55 | F18: 14079.62 | G18: 8491.36 | H18: 4172.37 | I18: 620.37 | J18: 795.52 | K18: 3295.93 | L18: 2123.11 | M18: 0.00 | N18: 921.35 | O18: 0.00 | P18: 251.47 | Q18: 0.00 | R18: 0.00
A19: 201 | B19: 06 | C19: 01 | D19: 行政运行（财政事务） | E19: 17375.55 | F19: 14079.62 | G19: 8491.36 | H19: 4172.37 | I19: 620.37 | J19: 795.52 | K19: 3295.93 | L19: 2123.11 | M19: 0.00 | N19: 921.35 | O19: 0.00 | P19: 251.47 | Q19: 0.00 | R19: 0.00
B20: 08 | D20: 审计事务 | E20: 3103.99 | F20: 2458.57 | G20: 1406.34 | H20: 937.34 | I20: 114.89 | J20: 0.00 | K20: 645.42 | L20: 357.40 | M20: 0.00 | N20: 246.74 | O20: 0.00 | P20: 41.28 | Q20: 0.00 | R20: 0.00
A21: 201 | B21: 08 | C21: 01 | D21: 行政运行（审计事务） | E21: 3103.99 | F21: 2458.57 | G21: 1406.34 | H21: 937.34 | I21: 114.89 | J21: 0.00 | K21: 645.42 | L21: 357.40 | M21: 0.00 | N21: 246.74 | O21: 0.00 | P21: 41.28 | Q21: 0.00 | R21: 0.00
B22: 11 | D22: 纪检监察事务 | E22: 8949.36 | F22: 7355.41 | G22: 4019.54 | H22: 3000.90 | I22: 334.97 | J22: 0.00 | K22: 1593.95 | L22: 1040.43 | M22: 0.00 | N22: 433.10 | O22: 0.00 | P22: 120.42 | Q22: 0.00 | R22: 0.00
A23: 201 | B23: 11 | C23: 01 | D23: 行政运行（纪检监察事务） | E23: 8949.36 | F23: 7355.41 | G23: 4019.54 | H23: 3000.90 | I23: 334.97 | J23: 0.00 | K23: 1593.95 | L23: 1040.43 | M23: 0.00 | N23: 433.10 | O23: 0.00 | P23: 120.42 | Q23: 0.00 | R23: 0.00
B24: 26 | D24: 档案事务 | E24: 1152.26 | F24: 921.75 | G24: 569.92 | H24: 206.80 | I24: 32.71 | J24: 112.32 | K24: 230.51 | L24: 142.25 | M24: 0.00 | N24: 72.59 | O24: 0.00 | P24: 15.67 | Q24: 0.00 | R24: 0.00
A25: 201 | B25: 26 | C25: 01 | D25: 行政运行（档案事务） | E25: 1152.26 | F25: 921.75 | G25: 569.92 | H25: 206.80 | I25: 32.71 | J25: 112.32 | K25: 230.51 | L25: 142.25 | M25: 0.00 | N25: 72.59 | O25: 0.00 | P25: 15.67 | Q25: 0.00 | R25: 0.00
B26: 28 | D26: 民主党派及工商联事务 | E26: 511.10 | F26: 409.91 | G26: 231.72 | H26: 158.88 | I26: 19.31 | J26: 0.00 | K26: 101.19 | L26: 58.66 | M26: 0.00 | N26: 35.91 | O26: 0.00 | P26: 6.62 | Q26: 0.00 | R26: 0.00
A27: 201 | B27: 28 | C27: 01 | D27: 行政运行（民主党派及工商联事务） | E27: 511.10 | F27: 409.91 | G27: 231.72 | H27: 158.88 | I27: 19.31 | J27: 0.00 | K27: 101.19 | L27: 58.66 | M27: 0.00 | N27: 35.91 | O27: 0.00 | P27: 6.62 | Q27: 0.00 | R27: 0.00
B28: 29 | D28: 群众团体事务 | E28: 2406.61 | F28: 1932.69 | G28: 1148.64 | H28: 644.47 | I28: 89.07 | J28: 50.51 | K28: 473.92 | L28: 294.01 | M28: 0.00 | N28: 146.14 | O28: 0.00 | P28: 33.77 | Q28: 0.00 | R28: 0.00
A29: 201 | B29: 29 | C29: 01 | D29: 行政运行（群众团体事务） | E29: 2406.61 | F29: 1932.69 | G29: 1148.64 | H29: 644.47 | I29: 89.07 | J29: 50.51 | K29: 473.92 | L29: 294.01 | M29: 0.00 | N29: 146.14 | O29: 0.00 | P29: 33.77 | Q29: 0.00 | R29: 0.00
B30: 31 | D30: 党委办公厅（室）及相关机构事务 | E30: 4048.67 | F30: 3260.26 | G30: 1942.82 | H30: 1112.16 | I30: 157.24 | J30: 48.04 | K30: 788.41 | L30: 493.40 | M30: 0.00 | N30: 239.68 | O30: 0.00 | P30: 55.33 | Q30: 0.00 | R30: 0.00
A31: 201 | B31: 31 | C31: 01 | D31: 行政运行（党委办公厅（室）及相关机构事务） | E31: 4048.67 | F31: 3260.26 | G31: 1942.82 | H31: 1112.16 | I31: 157.24 | J31: 48.04 | K31: 788.41 | L31: 493.40 | M31: 0.00 | N31: 239.68 | O31: 0.00 | P31: 55.33 | Q31: 0.00 | R31: 0.00
B32: 32 | D32: 组织事务 | E32: 2631.95 | F32: 2099.16 | G32: 1216.98 | H32: 780.76 | I32: 101.42 | J32: 0.00 | K32: 532.79 | L32: 317.33 | M32: 0.00 | N32: 178.64 | O32: 0.00 | P32: 36.82 | Q32: 0.00 | R32: 0.00
A33: 201 | B33: 32 | C33: 01 | D33: 行政运行（组织事务） | E33: 2631.95 | F33: 2099.16 | G33: 1216.98 | H33: 780.76 | I33: 101.42 | J33: 0.00 | K33: 532.79 | L33: 317.33 | M33: 0.00 | N33: 178.64 | O33: 0.00 | P33: 36.82 | Q33: 0.00 | R33: 0.00
B34: 33 | D34: 宣传事务 | E34: 1367.62 | F34: 1088.45 | G34: 643.22 | H34: 324.41 | I34: 44.57 | J34: 76.25 | K34: 279.17 | L34: 167.02 | M34: 0.00 | N34: 93.37 | O34: 0.00 | P34: 18.78 | Q34: 0.00 | R34: 0.00
A35: 201 | B35: 33 | C35: 01 | D35: 行政运行（宣传事务） | E35: 1367.62 | F35: 1088.45 | G35: 643.22 | H35: 324.41 | I35: 44.57 | J35: 76.25 | K35: 279.17 | L35: 167.02 | M35: 0.00 | N35: 93.37 | O35: 0.00 | P35: 18.78 | Q35: 0.00 | R35: 0.00
B36: 34 | D36: 统战事务 | E36: 1661.56 | F36: 1339.93 | G36: 813.84 | H36: 394.61 | I36: 59.26 | J36: 72.22 | K36: 321.63 | L36: 197.99 | M36: 0.00 | N36: 103.51 | O36: 0.00 | P36: 20.13 | Q36: 0.00 | R36: 0.00
A37: 201 | B37: 34 | C37: 01 | D37: 行政运行（统战事务） | E37: 1661.56 | F37: 1339.93 | G37: 813.84 | H37: 394.61 | I37: 59.26 | J37: 72.22 | K37: 321.63 | L37: 197.99 | M37: 0.00 | N37: 103.51 | O37: 0.00 | P37: 20.13 | Q37: 0.00 | R37: 0.00
B38: 37 | D38: 网信事务 | E38: 425.63 | F38: 346.63 | G38: 197.35 | H38: 132.83 | I38: 16.45 | J38: 0.00 | K38: 79.00 | L38: 52.83 | M38: 0.00 | N38: 19.81 | O38: 0.00 | P38: 6.36 | Q38: 0.00 | R38: 0.00
A39: 201 | B39: 37 | C39: 01 | D39: 行政运行 | E39: 425.63 | F39: 346.63 | G39: 197.35 | H39: 132.83 | I39: 16.45 | J39: 0.00 | K39: 79.00 | L39: 52.83 | M39: 0.00 | N39: 19.81 | O39: 0.00 | P39: 6.36 | Q39: 0.00 | R39: 0.00
B40: 38 | D40: 市场监督管理事务 | E40: 20632.77 | F40: 16628.14 | G40: 9731.29 | H40: 3090.05 | I40: 410.20 | J40: 3396.60 | K40: 4004.63 | L40: 2515.15 | M40: 0.00 | N40: 1204.00 | O40: 0.00 | P40: 285.48 | Q40: 0.00 | R40: 0.00
A41: 201 | B41: 38 | C41: 01 | D41: 行政运行 | E41: 20632.77 | F41: 16628.14 | G41: 9731.29 | H41: 3090.05 | I41: 410.20 | J41: 3396.60 | K41: 4004.63 | L41: 2515.15 | M41: 0.00 | N41: 1204.00 | O41: 0.00 | P41: 285.48 | Q41: 0.00 | R41: 0.00
A42: 204 | D42: 公共安全支出 | E42: 62824.82 | F42: 52779.63 | G42: 22108.90 | H42: 29011.44 | I42: 1518.71 | J42: 140.58 | K42: 10045.19 | L42: 6476.77 | M42: 0.00 | N42: 2827.02 | O42: 0.00 | P42: 741.40 | Q42: 0.00 | R42: 0.00
B43: 02 | D43: 公安 | E43: 55237.80 | F43: 46437.26 | G43: 19028.26 | H43: 26105.56 | I43: 1303.44 | J43: 0.00 | K43: 8800.54 | L43: 5681.15 | M43: 0.00 | N43: 2471.51 | O43: 0.00 | P43: 647.88 | Q43: 0.00 | R43: 0.00
A44: 204 | B44: 02 | C44: 01 | D44: 行政运行（公安） | E44: 55237.80 | F44: 46437.26 | G44: 19028.26 | H44: 26105.56 | I44: 1303.44 | J44: 0.00 | K44: 8800.54 | L44: 5681.15 | M44: 0.00 | N44: 2471.51 | O44: 0.00 | P44: 647.88 | Q44: 0.00 | R44: 0.00
B45: 06 | D45: 司法 | E45: 7587.02 | F45: 6342.37 | G45: 3080.64 | H45: 2905.88 | I45: 215.27 | J45: 140.58 | K45: 1244.65 | L45: 795.62 | M45: 0.00 | N45: 355.51 | O45: 0.00 | P45: 93.52 | Q45: 0.00 | R45: 0.00
A46: 204 | B46: 06 | C46: 01 | D46: 行政运行（司法） | E46: 7085.29 | F46: 5936.77 | G46: 2816.34 | H46: 2905.16 | I46: 215.27 | J46: 0.00 | K46: 1148.52 | L46: 730.72 | M46: 0.00 | N46: 331.17 | O46: 0.00 | P46: 86.63 | Q46: 0.00 | R46: 0.00
A47: 204 | B47: 06 | C47: 07 | D47: 公共法律服务 | E47: 501.73 | F47: 405.60 | G47: 264.30 | H47: 0.72 | I47: 0.00 | J47: 140.58 | K47: 96.13 | L47: 64.90 | M47: 0.00 | N47: 24.34 | O47: 0.00 | P47: 6.89 | Q47: 0.00 | R47: 0.00
A48: 205 | D48: 教育支出 | E48: 578760.21 | F48: 447650.83 | G48: 276529.93 | H48: 25833.12 | I48: 81.90 | J48: 145205.88 | K48: 131109.38 | L48: 67709.01 | M48: 0.00 | N48: 34052.81 | O48: 0.00 | P48: 9621.45 | Q48: 0.00 | R48: 19726.11
B49: 01 | D49: 教育管理事务 | E49: 20336.71 | F49: 16129.77 | G49: 11025.59 | H49: 101.64 | I49: 36.39 | J49: 4966.15 | K49: 4206.94 | L49: 2560.87 | M49: 0.00 | N49: 1307.97 | O49: 0.00 | P49: 338.10 | Q49: 0.00 | R49: 0.00
A50: 205 | B50: 01 | C50: 01 | D50: 行政运行（教育管理事务） | E50: 20336.71 | F50: 16129.77 | G50: 11025.59 | H50: 101.64 | I50: 36.39 | J50: 4966.15 | K50: 4206.94 | L50: 2560.87 | M50: 0.00 | N50: 1307.97 | O50: 0.00 | P50: 338.10 | Q50: 0.00 | R50: 0.00
B51: 02 | D51: 普通教育 | E51: 525153.49 | F51: 406760.60 | G51: 249804.59 | H51: 24335.48 | I51: 0.00 | J51: 132620.53 | K51: 118392.89 | L51: 61354.99 | M51: 0.00 | N51: 31017.69 | O51: 0.00 | P51: 8755.10 | Q51: 0.00 | R51: 17265.11
A52: 205 | B52: 02 | C52: 01 | D52: 学前教育 | E52: 11603.22 | F52: 8261.43 | G52: 4866.27 | H52: 499.08 | I52: 0.00 | J52: 2896.08 | K52: 3341.79 | L52: 1247.09 | M52: 0.00 | N52: 522.02 | O52: 0.00 | P52: 186.68 | Q52: 0.00 | R52: 1386.00
A53: 205 | B53: 02 | C53: 02 | D53: 小学教育 | E53: 229945.02 | F53: 182941.20 | G53: 110530.39 | H53: 12331.81 | I53: 0.00 | J53: 60079.00 | K53: 47003.82 | L53: 27381.58 | M53: 0.00 | N53: 14804.01 | O53: 0.00 | P53: 3955.23 | Q53: 0.00 | R53: 863.00
A54: 205 | B54: 02 | C54: 03 | D54: 初中教育 | E54: 172292.49 | F54: 137376.12 | G54: 84834.70 | H54: 8821.03 | I54: 0.00 | J54: 43720.39 | K54: 34916.37 | L54: 20621.02 | M54: 0.00 | N54: 10255.76 | O54: 0.00 | P54: 2909.59 | Q54: 0.00 | R54: 1130.00
A55: 205 | B55: 02 | C55: 04 | D55: 高中教育 | E55: 110020.50 | F55: 77141.75 | G55: 48891.44 | H55: 2682.12 | I55: 0.00 | J55: 25568.19 | K55: 32878.75 | L55: 11938.88 | M55: 0.00 | N55: 5373.49 | O55: 0.00 | P55: 1680.27 | Q55: 0.00 | R55: 13886.11
A56: 205 | B56: 02 | C56: 99 | D56: 其他普通教育支出 | E56: 1292.26 | F56: 1040.10 | G56: 681.79 | H56: 1.44 | I56: 0.00 | J56: 356.87 | K56: 252.16 | L56: 166.42 | M56: 0.00 | N56: 62.41 | O56: 0.00 | P56: 23.33 | Q56: 0.00 | R56: 0.00
B57: 03 | D57: 职业教育 | E57: 23829.70 | F57: 17214.44 | G57: 10904.85 | H57: 867.84 | I57: 0.00 | J57: 5441.75 | K57: 6615.26 | L57: 2619.71 | M57: 0.00 | N57: 1172.40 | O57: 0.00 | P57: 362.15 | Q57: 0.00 | R57: 2461.00
A58: 205 | B58: 03 | C58: 02 | D58: 中等职业教育 | E58: 23829.70 | F58: 17214.44 | G58: 10904.85 | H58: 867.84 | I58: 0.00 | J58: 5441.75 | K58: 6615.26 | L58: 2619.71 | M58: 0.00 | N58: 1172.40 | O58: 0.00 | P58: 362.15 | Q58: 0.00 | R58: 2461.00
B59: 07 | D59: 特殊教育 | E59: 2410.14 | F59: 1955.19 | G59: 1111.19 | H59: 174.41 | I59: 0.00 | J59: 669.59 | K59: 454.95 | L59: 286.19 | M59: 0.00 | N59: 126.18 | O59: 0.00 | P59: 42.58 | Q59: 0.00 | R59: 0.00
A60: 205 | B60: 07 | C60: 01 | D60: 特殊学校教育 | E60: 2410.14 | F60: 1955.19 | G60: 1111.19 | H60: 174.41 | I60: 0.00 | J60: 669.59 | K60: 454.95 | L60: 286.19 | M60: 0.00 | N60: 126.18 | O60: 0.00 | P60: 42.58 | Q60: 0.00 | R60: 0.00
B61: 08 | D61: 进修及培训 | E61: 4334.68 | F61: 3449.52 | G61: 2343.29 | H61: 5.40 | I61: 0.00 | J61: 1100.83 | K61: 885.16 | L61: 551.92 | M61: 0.00 | N61: 259.30 | O61: 0.00 | P61: 73.94 | Q61: 0.00 | R61: 0.00
A62: 205 | B62: 08 | C62: 01 | D62: 教师进修 | E62: 4334.68 | F62: 3449.52 | G62: 2343.29 | H62: 5.40 | I62: 0.00 | J62: 1100.83 | K62: 885.16 | L62: 551.92 | M62: 0.00 | N62: 259.30 | O62: 0.00 | P62: 73.94 | Q62: 0.00 | R62: 0.00
B63: 99 | D63: 其他教育支出 | E63: 2695.49 | F63: 2141.31 | G63: 1340.42 | H63: 348.35 | I63: 45.51 | J63: 407.03 | K63: 554.18 | L63: 335.33 | M63: 0.00 | N63: 169.27 | O63: 0.00 | P63: 49.58 | Q63: 0.00 | R63: 0.00
A64: 205 | B64: 99 | C64: 99 | D64: 其他教育支出 | E64: 2695.49 | F64: 2141.31 | G64: 1340.42 | H64: 348.35 | I64: 45.51 | J64: 407.03 | K64: 554.18 | L64: 335.33 | M64: 0.00 | N64: 169.27 | O64: 0.00 | P64: 49.58 | Q64: 0.00 | R64: 0.00
A65: 206 | D65: 科学技术支出 | E65: 1503.95 | F65: 1212.57 | G65: 733.36 | H65: 312.98 | I65: 46.57 | J65: 119.66 | K65: 291.38 | L65: 183.10 | M65: 0.00 | N65: 85.92 | O65: 0.00 | P65: 22.36 | Q65: 0.00 | R65: 0.00
B66: 07 | D66: 科学技术普及 | E66: 1503.95 | F66: 1212.57 | G66: 733.36 | H66: 312.98 | I66: 46.57 | J66: 119.66 | K66: 291.38 | L66: 183.10 | M66: 0.00 | N66: 85.92 | O66: 0.00 | P66: 22.36 | Q66: 0.00 | R66: 0.00
A67: 206 | B67: 07 | C67: 01 | D67: 机构运行（科学技术普及） | E67: 1503.95 | F67: 1212.57 | G67: 733.36 | H67: 312.98 | I67: 46.57 | J67: 119.66 | K67: 291.38 | L67: 183.10 | M67: 0.00 | N67: 85.92 | O67: 0.00 | P67: 22.36 | Q67: 0.00 | R67: 0.00
A68: 207 | D68: 文化旅游体育与传媒支出 | E68: 16171.55 | F68: 12961.88 | G68: 7749.41 | H68: 1427.54 | I68: 221.14 | J68: 3563.79 | K68: 3209.67 | L68: 2013.70 | M68: 0.00 | N68: 913.96 | O68: 0.00 | P68: 282.01 | Q68: 0.00 | R68: 0.00
B69: 01 | D69: 文化和旅游 | E69: 8710.86 | F69: 6997.59 | G69: 4269.75 | H69: 1107.63 | I69: 158.67 | J69: 1461.54 | K69: 1713.27 | L69: 1033.74 | M69: 0.00 | N69: 517.09 | O69: 0.00 | P69: 162.44 | Q69: 0.00 | R69: 0.00
A70: 207 | B70: 01 | C70: 01 | D70: 行政运行（文化） | E70: 8710.86 | F70: 6997.59 | G70: 4269.75 | H70: 1107.63 | I70: 158.67 | J70: 1461.54 | K70: 1713.27 | L70: 1033.74 | M70: 0.00 | N70: 517.09 | O70: 0.00 | P70: 162.44 | Q70: 0.00 | R70: 0.00
B71: 02 | D71: 文物 | E71: 772.93 | F71: 615.59 | G71: 366.50 | H71: 201.17 | I71: 28.13 | J71: 19.79 | K71: 157.34 | L71: 93.15 | M71: 0.00 | N71: 49.28 | O71: 0.00 | P71: 14.91 | Q71: 0.00 | R71: 0.00
A72: 207 | B72: 02 | C72: 01 | D72: 行政运行（文物） | E72: 772.93 | F72: 615.59 | G72: 366.50 | H72: 201.17 | I72: 28.13 | J72: 19.79 | K72: 157.34 | L72: 93.15 | M72: 0.00 | N72: 49.28 | O72: 0.00 | P72: 14.91 | Q72: 0.00 | R72: 0.00
B73: 03 | D73: 体育 | E73: 932.38 | F73: 745.64 | G73: 463.23 | H73: 6.00 | I73: 0.00 | J73: 276.41 | K73: 186.74 | L73: 118.46 | M73: 0.00 | N73: 50.50 | O73: 0.00 | P73: 17.78 | Q73: 0.00 | R73: 0.00
A74: 207 | B74: 03 | C74: 01 | D74: 行政运行（体育） | E74: 932.38 | F74: 745.64 | G74: 463.23 | H74: 6.00 | I74: 0.00 | J74: 276.41 | K74: 186.74 | L74: 118.46 | M74: 0.00 | N74: 50.50 | O74: 0.00 | P74: 17.78 | Q74: 0.00 | R74: 0.00
B75: 08 | D75: 广播电视 | E75: 5755.38 | F75: 4603.06 | G75: 2649.93 | H75: 112.74 | I75: 34.34 | J75: 1806.05 | K75: 1152.32 | L75: 768.35 | M75: 0.00 | N75: 297.09 | O75: 0.00 | P75: 86.88 | Q75: 0.00 | R75: 0.00
A76: 207 | B76: 08 | C76: 01 | D76: 行政运行 | E76: 5755.38 | F76: 4603.06 | G76: 2649.93 | H76: 112.74 | I76: 34.34 | J76: 1806.05 | K76: 1152.32 | L76: 768.35 | M76: 0.00 | N76: 297.09 | O76: 0.00 | P76: 86.88 | Q76: 0.00 | R76: 0.00
A77: 208 | D77: 社会保障和就业支出 | E77: 21482.96 | F77: 17172.34 | G77: 10370.82 | H77: 3186.86 | I77: 355.23 | J77: 3259.43 | K77: 4310.62 | L77: 2670.88 | M77: 0.00 | N77: 1290.55 | O77: 0.00 | P77: 349.19 | Q77: 0.00 | R77: 0.00
B78: 01 | D78: 人力资源和社会保障管理事务 | E78: 9004.25 | F78: 7186.50 | G78: 4300.60 | H78: 2005.91 | I78: 215.18 | J78: 664.81 | K78: 1817.75 | L78: 1106.30 | M78: 0.00 | N78: 551.59 | O78: 0.00 | P78: 159.86 | Q78: 0.00 | R78: 0.00
A79: 208 | B79: 01 | C79: 01 | D79: 行政运行（人力资源和社会保障管理事务） | E79: 4571.07 | F79: 3638.62 | G79: 2180.61 | H79: 1111.36 | I79: 144.28 | J79: 202.37 | K79: 932.45 | L79: 549.19 | M79: 0.00 | N79: 313.29 | O79: 0.00 | P79: 69.97 | Q79: 0.00 | R79: 0.00
A80: 208 | B80: 01 | C80: 05 | D80: 劳动保障监察 | E80: 475.89 | F80: 384.49 | G80: 224.58 | H80: 145.88 | I80: 14.03 | J80: 0.00 | K80: 91.40 | L80: 59.27 | M80: 0.00 | N80: 22.23 | O80: 0.00 | P80: 9.90 | Q80: 0.00 | R80: 0.00
A81: 208 | B81: 01 | C81: 09 | D81: 社会保险经办机构 | E81: 3957.29 | F81: 3163.39 | G81: 1895.41 | H81: 748.67 | I81: 56.87 | J81: 462.44 | K81: 793.90 | L81: 497.84 | M81: 0.00 | N81: 216.07 | O81: 0.00 | P81: 79.99 | Q81: 0.00 | R81: 0.00
B82: 02 | D82: 民政管理事务 | E82: 8341.71 | F82: 6653.30 | G82: 4092.38 | H82: 450.31 | I82: 69.74 | J82: 2040.87 | K82: 1688.41 | L82: 1047.36 | M82: 0.00 | N82: 521.69 | O82: 0.00 | P82: 119.36 | Q82: 0.00 | R82: 0.00
A83: 208 | B83: 02 | C83: 01 | D83: 行政运行（民政管理事务） | E83: 8341.71 | F83: 6653.30 | G83: 4092.38 | H83: 450.31 | I83: 69.74 | J83: 2040.87 | K83: 1688.41 | L83: 1047.36 | M83: 0.00 | N83: 521.69 | O83: 0.00 | P83: 119.36 | Q83: 0.00 | R83: 0.00
B84: 11 | D84: 残疾人事业 | E84: 1349.79 | F84: 1090.73 | G84: 660.71 | H84: 402.37 | I84: 27.65 | J84: 0.00 | K84: 259.06 | L84: 167.90 | M84: 0.00 | N84: 71.66 | O84: 0.00 | P84: 19.50 | Q84: 0.00 | R84: 0.00
A85: 208 | B85: 11 | C85: 01 | D85: 行政运行（残疾人事业） | E85: 1349.79 | F85: 1090.73 | G85: 660.71 | H85: 402.37 | I85: 27.65 | J85: 0.00 | K85: 259.06 | L85: 167.90 | M85: 0.00 | N85: 71.66 | O85: 0.00 | P85: 19.50 | Q85: 0.00 | R85: 0.00
B86: 16 | D86: 红十字事业 | E86: 446.07 | F86: 363.25 | G86: 212.35 | H86: 133.20 | I86: 17.70 | J86: 0.00 | K86: 82.82 | L86: 55.52 | M86: 0.00 | N86: 20.82 | O86: 0.00 | P86: 6.48 | Q86: 0.00 | R86: 0.00
A87: 208 | B87: 16 | C87: 01 | D87: 行政运行（红十字事业） | E87: 446.07 | F87: 363.25 | G87: 212.35 | H87: 133.20 | I87: 17.70 | J87: 0.00 | K87: 82.82 | L87: 55.52 | M87: 0.00 | N87: 20.82 | O87: 0.00 | P87: 6.48 | Q87: 0.00 | R87: 0.00
B88: 28 | D88: 退役军人管理事务 | E88: 2341.14 | F88: 1878.56 | G88: 1104.78 | H88: 195.07 | I88: 24.96 | J88: 553.75 | K88: 462.58 | L88: 293.80 | M88: 0.00 | N88: 124.79 | O88: 0.00 | P88: 43.99 | Q88: 0.00 | R88: 0.00
A89: 208 | B89: 28 | C89: 01 | D89: 行政运行 | E89: 622.29 | F89: 508.88 | G89: 299.53 | H89: 184.39 | I89: 24.96 | J89: 0.00 | K89: 113.41 | L89: 76.13 | M89: 0.00 | N89: 28.55 | O89: 0.00 | P89: 8.73 | Q89: 0.00 | R89: 0.00
A90: 208 | B90: 28 | C90: 50 | D90: 事业运行 | E90: 1718.85 | F90: 1369.68 | G90: 805.25 | H90: 10.68 | I90: 0.00 | J90: 553.75 | K90: 349.17 | L90: 217.67 | M90: 0.00 | N90: 96.24 | O90: 0.00 | P90: 35.26 | Q90: 0.00 | R90: 0.00
A91: 210 | D91: 卫生健康支出 | E91: 299811.51 | F91: 178079.06 | G91: 74036.71 | H91: 4363.41 | I91: 608.16 | J91: 99070.78 | K91: 114673.25 | L91: 19121.68 | M91: 0.00 | N91: 9689.80 | O91: 0.00 | P91: 2434.79 | Q91: 7059.20 | R91: 83426.98
B92: 01 | D92: 卫生健康管理事务 | E92: 9132.61 | F92: 7271.89 | G92: 4536.88 | H92: 1493.06 | I92: 133.88 | J92: 1108.07 | K92: 1860.72 | L92: 1134.33 | M92: 0.00 | N92: 603.90 | O92: 0.00 | P92: 122.49 | Q92: 0.00 | R92: 0.00
A93: 210 | B93: 01 | C93: 01 | D93: 行政运行（医疗卫生管理事务） | E93: 9132.61 | F93: 7271.89 | G93: 4536.88 | H93: 1493.06 | I93: 133.88 | J93: 1108.07 | K93: 1860.72 | L93: 1134.33 | M93: 0.00 | N93: 603.90 | O93: 0.00 | P93: 122.49 | Q93: 0.00 | R93: 0.00
B94: 02 | D94: 公立医院 | E94: 102379.49 | F94: 84281.56 | G94: 22991.95 | H94: 751.00 | I94: 255.00 | J94: 60283.61 | K94: 14353.38 | L94: 5979.35 | M94: 0.00 | N94: 3143.87 | O94: 0.00 | P94: 802.16 | Q94: 3744.55 | R94: 4428.00
A95: 210 | B95: 02 | C95: 01 | D95: 综合医院 | E95: 90102.99 | F95: 78136.08 | G95: 19177.58 | H95: 751.00 | I95: 255.00 | J95: 57952.50 | K95: 8222.36 | L95: 4992.73 | M95: 0.00 | N95: 2538.11 | O95: 0.00 | P95: 691.52 | Q95: 3744.55 | R95: 0.00
A96: 210 | B96: 02 | C96: 02 | D96: 中医（民族）医院 | E96: 12276.50 | F96: 6145.48 | G96: 3814.37 | H96: 0.00 | I96: 0.00 | J96: 2331.11 | K96: 6131.02 | L96: 986.62 | M96: 0.00 | N96: 605.76 | O96: 0.00 | P96: 110.64 | Q96: 0.00 | R96: 4428.00
B97: 03 | D97: 基层医疗卫生机构 | E97: 97580.58 | F97: 36264.72 | G97: 22215.78 | H97: 100.00 | I97: 0.00 | J97: 13948.94 | K97: 58192.74 | L97: 5764.13 | M97: 0.00 | N97: 2908.25 | O97: 0.00 | P97: 694.72 | Q97: 3123.12 | R97: 48825.64
A98: 210 | B98: 03 | C98: 01 | D98: 城市社区卫生机构 | E98: 10356.59 | F98: 3069.88 | G98: 1912.09 | H98: 100.00 | I98: 0.00 | J98: 1057.79 | K98: 6929.11 | L98: 476.80 | M98: 0.00 | N98: 272.40 | O98: 0.00 | P98: 52.57 | Q98: 357.60 | R98: 6127.34
A99: 210 | B99: 03 | C99: 02 | D99: 乡镇卫生院 | E99: 87223.99 | F99: 33194.84 | G99: 20303.69 | H99: 0.00 | I99: 0.00 | J99: 12891.15 | K99: 51263.63 | L99: 5287.33 | M99: 0.00 | N99: 2635.85 | O99: 0.00 | P99: 642.15 | Q99: 2765.52 | R99: 42698.30
B100: 04 | D100: 公共卫生 | E100: 80905.86 | F100: 42296.67 | G100: 19656.99 | H100: 710.64 | I100: 75.61 | J100: 21853.43 | K100: 38417.66 | L100: 5039.81 | M100: 0.00 | N100: 2567.32 | O100: 0.00 | P100: 637.19 | Q100: 191.53 | R100: 30173.34
A101: 210 | B101: 04 | C101: 01 | D101: 疾病预防控制机构 | E101: 52989.96 | F101: 23183.92 | G101: 13352.50 | H101: 184.56 | I101: 0.00 | J101: 9646.86 | K101: 29614.51 | L101: 3429.20 | M101: 0.00 | N101: 1831.93 | O101: 0.00 | P101: 426.86 | Q101: 191.53 | R101: 23926.52
A102: 210 | B102: 04 | C102: 02 | D102: 卫生监督机构 | E102: 1867.71 | F102: 1507.25 | G102: 907.36 | H102: 524.28 | I102: 75.61 | J102: 0.00 | K102: 360.46 | L102: 229.06 | M102: 0.00 | N102: 104.51 | O102: 0.00 | P102: 26.89 | Q102: 0.00 | R102: 0.00
A103: 210 | B103: 04 | C103: 03 | D103: 妇幼保健机构 | E103: 24927.01 | F103: 16699.44 | G103: 4839.19 | H103: 0.00 | I103: 0.00 | J103: 11860.25 | K103: 8227.57 | L103: 1236.58 | M103: 0.00 | N103: 576.52 | O103: 0.00 | P103: 167.65 | Q103: 0.00 | R103: 6246.82
A104: 210 | B104: 04 | C104: 10 | D104: 突发公共卫生事件应急处理 | E104: 1121.18 | F104: 906.06 | G104: 557.94 | H104: 1.80 | I104: 0.00 | J104: 346.32 | K104: 215.12 | L104: 144.97 | M104: 0.00 | N104: 54.36 | O104: 0.00 | P104: 15.79 | Q104: 0.00 | R104: 0.00
B105: 07 | D105: 计划生育事务 | E105: 5822.96 | F105: 4739.44 | G105: 2691.32 | H105: 293.95 | I105: 0.00 | J105: 1754.17 | K105: 1083.52 | L105: 712.83 | M105: 0.00 | N105: 267.31 | O105: 0.00 | P105: 103.38 | Q105: 0.00 | R105: 0.00
A106: 210 | B106: 07 | C106: 16 | D106: 计划生育机构 | E106: 5822.96 | F106: 4739.44 | G106: 2691.32 | H106: 293.95 | I106: 0.00 | J106: 1754.17 | K106: 1083.52 | L106: 712.83 | M106: 0.00 | N106: 267.31 | O106: 0.00 | P106: 103.38 | Q106: 0.00 | R106: 0.00
B107: 15 | D107: 医疗保障管理事务 | E107: 3990.01 | F107: 3224.78 | G107: 1943.79 | H107: 1014.76 | I107: 143.67 | J107: 122.56 | K107: 765.23 | L107: 491.23 | M107: 0.00 | N107: 199.15 | O107: 0.00 | P107: 74.85 | Q107: 0.00 | R107: 0.00
A108: 210 | B108: 15 | C108: 01 | D108: 行政运行 | E108: 3990.01 | F108: 3224.78 | G108: 1943.79 | H108: 1014.76 | I108: 143.67 | J108: 122.56 | K108: 765.23 | L108: 491.23 | M108: 0.00 | N108: 199.15 | O108: 0.00 | P108: 74.85 | Q108: 0.00 | R108: 0.00
A109: 212 | D109: 城乡社区支出 | E109: 52327.12 | F109: 38394.91 | G109: 23167.64 | H109: 3534.62 | I109: 640.81 | J109: 11051.84 | K109: 13932.21 | L109: 6021.95 | M109: 0.00 | N109: 2825.98 | O109: 0.00 | P109: 693.88 | Q109: 0.00 | R109: 4390.40
B110: 01 | D110: 城乡社区管理事务 | E110: 25433.80 | F110: 19911.36 | G110: 12004.26 | H110: 2206.04 | I110: 239.86 | J110: 5461.20 | K110: 5522.44 | L110: 3133.02 | M110: 0.00 | N110: 1445.86 | O110: 0.00 | P110: 373.16 | Q110: 0.00 | R110: 570.40
A111: 212 | B111: 01 | C111: 01 | D111: 行政运行（城乡社区管理事务） | E111: 19584.62 | F111: 15171.40 | G111: 9153.93 | H111: 462.66 | I111: 93.61 | J111: 5461.20 | K111: 4413.22 | L111: 2397.97 | M111: 0.00 | N111: 1161.20 | O111: 0.00 | P111: 283.65 | Q111: 0.00 | R111: 570.40
A112: 212 | B112: 01 | C112: 04 | D112: 城管执法 | E112: 5849.18 | F112: 4739.96 | G112: 2850.33 | H112: 1743.38 | I112: 146.25 | J112: 0.00 | K112: 1109.22 | L112: 735.05 | M112: 0.00 | N112: 284.66 | O112: 0.00 | P112: 89.51 | Q112: 0.00 | R112: 0.00
B113: 03 | D113: 城乡社区公共设施 | E113: 2899.92 | F113: 2330.74 | G113: 1406.76 | H113: 0.72 | I113: 0.00 | J113: 923.26 | K113: 569.18 | L113: 372.92 | M113: 0.00 | N113: 153.62 | O113: 0.00 | P113: 42.64 | Q113: 0.00 | R113: 0.00
A114: 212 | B114: 03 | C114: 03 | D114: 小城镇基础设施建设 | E114: 2899.92 | F114: 2330.74 | G114: 1406.76 | H114: 0.72 | I114: 0.00 | J114: 923.26 | K114: 569.18 | L114: 372.92 | M114: 0.00 | N114: 153.62 | O114: 0.00 | P114: 42.64 | Q114: 0.00 | R114: 0.00
B115: 05 | D115: 城乡社区环境卫生 | E115: 9709.55 | F115: 7690.00 | G115: 4685.17 | H115: 3.84 | I115: 0.00 | J115: 3000.99 | K115: 2019.55 | L115: 1230.82 | M115: 0.00 | N115: 651.90 | O115: 0.00 | P115: 136.83 | Q115: 0.00 | R115: 0.00
A116: 212 | B116: 05 | C116: 01 | D116: 城乡社区环境卫生 | E116: 9709.55 | F116: 7690.00 | G116: 4685.17 | H116: 3.84 | I116: 0.00 | J116: 3000.99 | K116: 2019.55 | L116: 1230.82 | M116: 0.00 | N116: 651.90 | O116: 0.00 | P116: 136.83 | Q116: 0.00 | R116: 0.00
B117: 06 | D117: 建设市场管理与监督 | E117: 14283.85 | F117: 8462.81 | G117: 5071.45 | H117: 1324.02 | I117: 400.95 | J117: 1666.39 | K117: 5821.04 | L117: 1285.19 | M117: 0.00 | N117: 574.60 | O117: 0.00 | P117: 141.25 | Q117: 0.00 | R117: 3820.00
A118: 212 | B118: 06 | C118: 01 | D118: 建设市场管理与监督 | E118: 14283.85 | F118: 8462.81 | G118: 5071.45 | H118: 1324.02 | I118: 400.95 | J118: 1666.39 | K118: 5821.04 | L118: 1285.19 | M118: 0.00 | N118: 574.60 | O118: 0.00 | P118: 141.25 | Q118: 0.00 | R118: 3820.00
A119: 213 | D119: 农林水支出 | E119: 116160.83 | F119: 78768.02 | G119: 47813.56 | H119: 8173.65 | I119: 934.71 | J119: 21846.10 | K119: 34408.10 | L119: 17470.51 | M119: 0.00 | N119: 9008.96 | O119: 0.00 | P119: 1758.23 | Q119: 2984.71 | R119: 6170.40
B120: 01 | D120: 农业农村 | E120: 52283.20 | F120: 41517.78 | G120: 25015.04 | H120: 4563.72 | I120: 528.46 | J120: 11410.56 | K120: 10389.38 | L120: 6350.22 | M120: 0.00 | N120: 3132.30 | O120: 0.00 | P120: 906.86 | Q120: 376.04 | R120: 0.00
A121: 213 | B121: 01 | C121: 01 | D121: 行政运行（农业） | E121: 52283.20 | F121: 41517.78 | G121: 25015.04 | H121: 4563.72 | I121: 528.46 | J121: 11410.56 | K121: 10389.38 | L121: 6350.22 | M121: 0.00 | N121: 3132.30 | O121: 0.00 | P121: 906.86 | Q121: 376.04 | R121: 0.00
B122: 02 | D122: 林业和草原 | E122: 7043.07 | F122: 5133.84 | G122: 3153.25 | H122: 887.90 | I122: 137.24 | J122: 955.45 | K122: 1312.43 | L122: 795.73 | M122: 0.00 | N122: 395.80 | O122: 0.00 | P122: 120.90 | Q122: 596.80 | R122: 0.00
A123: 213 | B123: 02 | C123: 01 | D123: 行政运行（林业） | E123: 7043.07 | F123: 5133.84 | G123: 3153.25 | H123: 887.90 | I123: 137.24 | J123: 955.45 | K123: 1312.43 | L123: 795.73 | M123: 0.00 | N123: 395.80 | O123: 0.00 | P123: 120.90 | Q123: 596.80 | R123: 0.00
B124: 03 | D124: 水利 | E124: 56046.72 | F124: 31478.07 | G124: 19275.82 | H124: 2522.73 | I124: 243.40 | J124: 9436.12 | K124: 22556.78 | L124: 10227.40 | M124: 0.00 | N124: 5444.43 | O124: 0.00 | P124: 714.55 | Q124: 2011.87 | R124: 6170.40
A125: 213 | B125: 03 | C125: 01 | D125: 行政运行（水利） | E125: 56046.72 | F125: 31478.07 | G125: 19275.82 | H125: 2522.73 | I125: 243.40 | J125: 9436.12 | K125: 22556.78 | L125: 10227.40 | M125: 0.00 | N125: 5444.43 | O125: 0.00 | P125: 714.55 | Q125: 2011.87 | R125: 6170.40
B126: 05 | D126: 扶贫 | E126: 787.84 | F126: 638.33 | G126: 369.45 | H126: 199.30 | I126: 25.61 | J126: 43.97 | K126: 149.51 | L126: 97.16 | M126: 0.00 | N126: 36.43 | O126: 0.00 | P126: 15.92 | Q126: 0.00 | R126: 0.00
A127: 213 | B127: 05 | C127: 01 | D127: 行政运行（扶贫） | E127: 787.84 | F127: 638.33 | G127: 369.45 | H127: 199.30 | I127: 25.61 | J127: 43.97 | K127: 149.51 | L127: 97.16 | M127: 0.00 | N127: 36.43 | O127: 0.00 | P127: 15.92 | Q127: 0.00 | R127: 0.00
A128: 214 | D128: 交通运输支出 | E128: 28609.88 | F128: 21098.05 | G128: 12646.08 | H128: 729.15 | I128: 91.49 | J128: 7631.33 | K128: 5389.44 | L128: 3424.75 | M128: 0.00 | N128: 1475.74 | O128: 0.00 | P128: 488.95 | Q128: 2122.39 | R128: 0.00
B129: 01 | D129: 公路水路运输 | E129: 28609.88 | F129: 21098.05 | G129: 12646.08 | H129: 729.15 | I129: 91.49 | J129: 7631.33 | K129: 5389.44 | L129: 3424.75 | M129: 0.00 | N129: 1475.74 | O129: 0.00 | P129: 488.95 | Q129: 2122.39 | R129: 0.00
A130: 214 | B130: 01 | C130: 01 | D130: 行政运行（公路水路运输） | E130: 26874.85 | F130: 19824.45 | G130: 11890.53 | H130: 721.35 | I130: 91.49 | J130: 7121.08 | K130: 5080.21 | L130: 3221.82 | M130: 0.00 | N130: 1392.49 | O130: 0.00 | P130: 465.90 | Q130: 1970.19 | R130: 0.00
A131: 214 | B131: 01 | C131: 31 | D131: 海事管理 | E131: 1735.03 | F131: 1273.60 | G131: 755.55 | H131: 7.80 | I131: 0.00 | J131: 510.25 | K131: 309.23 | L131: 202.93 | M131: 0.00 | N131: 83.25 | O131: 0.00 | P131: 23.05 | Q131: 152.20 | R131: 0.00
A132: 215 | D132: 资源勘探工业信息等支出 | E132: 4536.89 | F132: 3512.10 | G132: 2102.06 | H132: 871.42 | I132: 166.26 | J132: 372.36 | K132: 1024.79 | L132: 525.34 | M132: 0.00 | N132: 439.36 | O132: 0.00 | P132: 60.09 | Q132: 0.00 | R132: 0.00
B133: 05 | D133: 工业和信息产业监管 | E133: 4536.89 | F133: 3512.10 | G133: 2102.06 | H133: 871.42 | I133: 166.26 | J133: 372.36 | K133: 1024.79 | L133: 525.34 | M133: 0.00 | N133: 439.36 | O133: 0.00 | P133: 60.09 | Q133: 0.00 | R133: 0.00
A134: 215 | B134: 05 | C134: 01 | D134: 行政运行（工业和信息产业监管） | E134: 4536.89 | F134: 3512.10 | G134: 2102.06 | H134: 871.42 | I134: 166.26 | J134: 372.36 | K134: 1024.79 | L134: 525.34 | M134: 0.00 | N134: 439.36 | O134: 0.00 | P134: 60.09 | Q134: 0.00 | R134: 0.00
A135: 216 | D135: 商业服务业等支出 | E135: 10170.19 | F135: 7995.56 | G135: 4796.87 | H135: 737.19 | I135: 206.57 | J135: 2254.93 | K135: 2174.63 | L135: 1237.94 | M135: 0.00 | N135: 706.84 | O135: 0.00 | P135: 162.17 | Q135: 0.00 | R135: 67.68
B136: 02 | D136: 商业流通事务 | E136: 10170.19 | F136: 7995.56 | G136: 4796.87 | H136: 737.19 | I136: 206.57 | J136: 2254.93 | K136: 2174.63 | L136: 1237.94 | M136: 0.00 | N136: 706.84 | O136: 0.00 | P136: 162.17 | Q136: 0.00 | R136: 67.68
A137: 216 | B137: 02 | C137: 01 | D137: 行政运行（商业流通事务） | E137: 10170.19 | F137: 7995.56 | G137: 4796.87 | H137: 737.19 | I137: 206.57 | J137: 2254.93 | K137: 2174.63 | L137: 1237.94 | M137: 0.00 | N137: 706.84 | O137: 0.00 | P137: 162.17 | Q137: 0.00 | R137: 67.68
A138: 220 | D138: 自然资源海洋气象等支出 | E138: 18313.49 | F138: 14680.23 | G138: 8741.38 | H138: 1156.34 | I138: 148.70 | J138: 4633.81 | K138: 3633.26 | L138: 2298.40 | M138: 0.00 | N138: 968.45 | O138: 0.00 | P138: 366.41 | Q138: 0.00 | R138: 0.00
B139: 01 | D139: 自然资源事务 | E139: 18313.49 | F139: 14680.23 | G139: 8741.38 | H139: 1156.34 | I139: 148.70 | J139: 4633.81 | K139: 3633.26 | L139: 2298.40 | M139: 0.00 | N139: 968.45 | O139: 0.00 | P139: 366.41 | Q139: 0.00 | R139: 0.00
A140: 220 | B140: 01 | C140: 01 | D140: 行政运行（国土资源事务） | E140: 18313.49 | F140: 14680.23 | G140: 8741.38 | H140: 1156.34 | I140: 148.70 | J140: 4633.81 | K140: 3633.26 | L140: 2298.40 | M140: 0.00 | N140: 968.45 | O140: 0.00 | P140: 366.41 | Q140: 0.00 | R140: 0.00
A141: 221 | D141: 住房保障支出 | E141: 94029.79 | F141: 0.00 | G141: 0.00 | H141: 0.00 | I141: 0.00 | J141: 0.00 | K141: 0.00 | L141: 0.00 | M141: 0.00 | N141: 0.00 | O141: 0.00 | P141: 0.00 | Q141: 94029.79 | R141: 0.00
B142: 02 | D142: 住房改革支出 | E142: 94029.79 | F142: 0.00 | G142: 0.00 | H142: 0.00 | I142: 0.00 | J142: 0.00 | K142: 0.00 | L142: 0.00 | M142: 0.00 | N142: 0.00 | O142: 0.00 | P142: 0.00 | Q142: 94029.79 | R142: 0.00
A143: 221 | B143: 02 | C143: 01 | D143: 住房公积金 | E143: 94029.79 | F143: 0.00 | G143: 0.00 | H143: 0.00 | I143: 0.00 | J143: 0.00 | K143: 0.00 | L143: 0.00 | M143: 0.00 | N143: 0.00 | O143: 0.00 | P143: 0.00 | Q143: 94029.79 | R143: 0.00
A144: 224 | D144: 灾害防治及应急管理支出 | E144: 2694.75 | F144: 2201.75 | G144: 1242.55 | H144: 603.73 | I144: 74.66 | J144: 280.81 | K144: 493.00 | L144: 325.55 | M144: 0.00 | N144: 129.59 | O144: 0.00 | P144: 37.86 | Q144: 0.00 | R144: 0.00
B145: 01 | D145: 应急管理事务 | E145: 2694.75 | F145: 2201.75 | G145: 1242.55 | H145: 603.73 | I145: 74.66 | J145: 280.81 | K145: 493.00 | L145: 325.55 | M145: 0.00 | N145: 129.59 | O145: 0.00 | P145: 37.86 | Q145: 0.00 | R145: 0.00
A146: 224 | B146: 01 | C146: 01 | D146: 行政运行 | E146: 2694.75 | F146: 2201.75 | G146: 1242.55 | H146: 603.73 | I146: 74.66 | J146: 280.81 | K146: 493.00 | L146: 325.55 | M146: 0.00 | N146: 129.59 | O146: 0.00 | P146: 37.86 | Q146: 0.00 | R146: 0.00

Sheet 表6-2
A1: 基本支出预算明细表-商品和服务支出（按部门预算经济分类）
U2: 单位：千元
A3: 功能科目 | E3: 总计 | F3: 办公费 | G3: 印刷费 | H3: 水费 | I3: 电费 | J3: 物业管理费 | K3: 差旅费 | L3: 因公出国（境）费用 | M3: 维修（护）费 | N3: 会议费 | O3: 培训费 | P3: 公务接待费 | Q3: 工会经费 | R3: 福利费 | S3: 公务用车运行维护费 | T3: 其他交通费用 | U3: 其他商品服务支出
A4: 科目编码 | D4: 科目名称
A5: 类 | B5: 款 | C5: 项
D6: 合计 | E6: 268776.80 | F6: 23266.13 | G6: 13865.25 | H6: 5905.56 | I6: 20466.84 | J6: 6465.72 | K6: 13582.63 | L6: 45.00 | M6: 24702.52 | N6: 6972.06 | O6: 9796.04 | P6: 6389.10 | Q6: 24156.35 | R6: 2662.80 | S6: 6153.94 | T6: 5080.11 | U6: 99266.75
A7: 201 | D7: 一般公共服务支出 | E7: 22891.00 | F7: 3236.83 | G7: 1472.06 | H7: 363.75 | I7: 964.67 | J7: 255.69 | K7: 3036.68 | L7: 0.00 | M7: 889.81 | N7: 956.89 | O7: 482.78 | P7: 1508.40 | Q7: 3334.16 | R7: 14.00 | S7: 695.60 | T7: 332.73 | U7: 5346.95
B8: 01 | D8: 人大事务 | E8: 360.00 | F8: 72.19 | G8: 20.00 | H8: 0.00 | I8: 0.00 | J8: 0.00 | K8: 30.00 | L8: 0.00 | M8: 5.00 | N8: 30.00 | O8: 20.00 | P8: 20.00 | Q8: 50.00 | R8: 0.00 | S8: 0.00 | T8: 0.00 | U8: 112.81
A9: 201 | B9: 01 | C9: 01 | D9: 行政运行（人大事务） | E9: 360.00 | F9: 72.19 | G9: 20.00 | H9: 0.00 | I9: 0.00 | J9: 0.00 | K9: 30.00 | L9: 0.00 | M9: 5.00 | N9: 30.00 | O9: 20.00 | P9: 20.00 | Q9: 50.00 | R9: 0.00 | S9: 0.00 | T9: 0.00 | U9: 112.81
B10: 02 | D10: 政协事务 | E10: 310.00 | F10: 57.02 | G10: 50.00 | H10: 0.00 | I10: 0.00 | J10: 0.00 | K10: 12.75 | L10: 0.00 | M10: 3.15 | N10: 20.00 | O10: 30.00 | P10: 2.00 | Q10: 40.00 | R10: 0.00 | S10: 0.00 | T10: 0.00 | U10: 95.08
A11: 201 | B11: 02 | C11: 01 | D11: 行政运行（政协事务） | E11: 310.00 | F11: 57.02 | G11: 50.00 | H11: 0.00 | I11: 0.00 | J11: 0.00 | K11: 12.75 | L11: 0.00 | M11: 3.15 | N11: 20.00 | O11: 30.00 | P11: 2.00 | Q11: 40.00 | R11: 0.00 | S11: 0.00 | T11: 0.00 | U11: 95.08
B12: 03 | D12: 政府办公厅（室）及相关机构事务 | E12: 10537.00 | F12: 1833.27 | G12: 909.90 | H12: 239.75 | I12: 602.22 | J12: 80.00 | K12: 1130.92 | L12: 0.00 | M12: 447.25 | N12: 588.89 | O12: 139.17 | P12: 506.77 | Q12: 778.80 | R12: 12.00 | S12: 229.20 | T12: 204.38 | U12: 2834.48
A13: 201 | B13: 03 | C13: 01 | D13: 行政运行（政府办公厅（室）及相关机构事务） | E13: 10537.00 | F13: 1833.27 | G13: 909.90 | H13: 239.75 | I13: 602.22 | J13: 80.00 | K13: 1130.92 | L13: 0.00 | M13: 447.25 | N13: 588.89 | O13: 139.17 | P13: 506.77 | Q13: 778.80 | R13: 12.00 | S13: 229.20 | T13: 204.38 | U13: 2834.48
B14: 04 | D14: 发展与改革事务 | E14: 850.00 | F14: 120.00 | G14: 10.00 | H14: 5.00 | I14: 20.00 | J14: 5.69 | K14: 150.00 | L14: 0.00 | M14: 10.00 | N14: 10.00 | O14: 10.00 | P14: 150.00 | Q14: 150.00 | R14: 0.00 | S14: 0.00 | T14: 0.00 | U14: 209.31
A15: 201 | B15: 04 | C15: 01 | D15: 行政运行（发展与改革事务） | E15: 850.00 | F15: 120.00 | G15: 10.00 | H15: 5.00 | I15: 20.00 | J15: 5.69 | K15: 150.00 | L15: 0.00 | M15: 10.00 | N15: 10.00 | O15: 10.00 | P15: 150.00 | Q15: 150.00 | R15: 0.00 | S15: 0.00 | T15: 0.00 | U15: 209.31
B16: 05 | D16: 统计信息事务 | E16: 210.00 | F16: 25.00 | G16: 10.00 | H16: 0.00 | I16: 15.00 | J16: 0.00 | K16: 12.00 | L16: 0.00 | M16: 4.65 | N16: 0.00 | O16: 10.00 | P16: 8.00 | Q16: 80.00 | R16: 0.00 | S16: 0.00 | T16: 0.00 | U16: 45.35
A17: 201 | B17: 05 | C17: 01 | D17: 行政运行（统计信息事务） | E17: 210.00 | F17: 25.00 | G17: 10.00 | H17: 0.00 | I17: 15.00 | J17: 0.00 | K17: 12.00 | L17: 0.00 | M17: 4.65 | N17: 0.00 | O17: 10.00 | P17: 8.00 | Q17: 80.00 | R17: 0.00 | S17: 0.00 | T17: 0.00 | U17: 45.35
B18: 06 | D18: 财政事务 | E18: 2120.00 | F18: 418.43 | G18: 148.50 | H18: 3.00 | I18: 54.45 | J18: 130.00 | K18: 483.95 | L18: 0.00 | M18: 11.00 | N18: 24.00 | O18: 8.58 | P18: 374.68 | Q18: 56.74 | R18: 0.00 | S18: 16.40 | T18: 13.35 | U18: 376.92
A19: 201 | B19: 06 | C19: 01 | D19: 行政运行（财政事务） | E19: 2120.00 | F19: 418.43 | G19: 148.50 | H19: 3.00 | I19: 54.45 | J19: 130.00 | K19: 483.95 | L19: 0.00 | M19: 11.00 | N19: 24.00 | O19: 8.58 | P19: 374.68 | Q19: 56.74 | R19: 0.00 | S19: 16.40 | T19: 13.35 | U19: 376.92
B20: 08 | D20: 审计事务 | E20: 824.00 | F20: 150.00 | G20: 50.00 | H20: 20.00 | I20: 35.00 | J20: 30.00 | K20: 30.00 | L20: 0.00 | M20: 48.95 | N20: 30.00 | O20: 40.00 | P20: 40.00 | Q20: 170.00 | R20: 0.00 | S20: 0.00 | T20: 90.00 | U20: 90.05
A21: 201 | B21: 08 | C21: 01 | D21: 行政运行（审计事务） | E21: 824.00 | F21: 150.00 | G21: 50.00 | H21: 20.00 | I21: 35.00 | J21: 30.00 | K21: 30.00 | L21: 0.00 | M21: 48.95 | N21: 30.00 | O21: 40.00 | P21: 40.00 | Q21: 170.00 | R21: 0.00 | S21: 0.00 | T21: 90.00 | U21: 90.05
B22: 11 | D22: 纪检监察事务 | E22: 3330.00 | F22: 282.89 | G22: 120.58 | H22: 10.00 | I22: 60.00 | J22: 10.00 | K22: 820.00 | L22: 0.00 | M22: 110.00 | N22: 110.00 | O22: 110.00 | P22: 220.00 | Q22: 733.00 | R22: 0.00 | S22: 200.00 | T22: 0.00 | U22: 543.53
A23: 201 | B23: 11 | C23: 01 | D23: 行政运行（纪检监察事务） | E23: 3330.00 | F23: 282.89 | G23: 120.58 | H23: 10.00 | I23: 60.00 | J23: 10.00 | K23: 820.00 | L23: 0.00 | M23: 110.00 | N23: 110.00 | O23: 110.00 | P23: 220.00 | Q23: 733.00 | R23: 0.00 | S23: 200.00 | T23: 0.00 | U23: 543.53
B24: 26 | D24: 档案事务 | E24: 140.00 | F24: 20.00 | G24: 0.00 | H24: 10.00 | I24: 10.00 | J24: 0.00 | K24: 10.00 | L24: 0.00 | M24: 8.00 | N24: 8.00 | O24: 10.00 | P24: 10.00 | Q24: 15.00 | R24: 0.00 | S24: 0.00 | T24: 0.00 | U24: 39.00
A25: 201 | B25: 26 | C25: 01 | D25: 行政运行（档案事务） | E25: 140.00 | F25: 20.00 | G25: 0.00 | H25: 10.00 | I25: 10.00 | J25: 0.00 | K25: 10.00 | L25: 0.00 | M25: 8.00 | N25: 8.00 | O25: 10.00 | P25: 10.00 | Q25: 15.00 | R25: 0.00 | S25: 0.00 | T25: 0.00 | U25: 39.00
B26: 28 | D26: 民主党派及工商联事务 | E26: 60.00 | F26: 3.00 | G26: 0.82 | H26: 0.00 | I26: 0.00 | J26: 0.00 | K26: 10.00 | L26: 0.00 | M26: 0.00 | N26: 0.00 | O26: 0.00 | P26: 7.00 | Q26: 21.35 | R26: 0.00 | S26: 0.00 | T26: 0.00 | U26: 17.83
A27: 201 | B27: 28 | C27: 01 | D27: 行政运行（民主党派及工商联事务） | E27: 60.00 | F27: 3.00 | G27: 0.82 | H27: 0.00 | I27: 0.00 | J27: 0.00 | K27: 10.00 | L27: 0.00 | M27: 0.00 | N27: 0.00 | O27: 0.00 | P27: 7.00 | Q27: 21.35 | R27: 0.00 | S27: 0.00 | T27: 0.00 | U27: 17.83
B28: 29 | D28: 群众团体事务 | E28: 310.00 | F28: 43.00 | G28: 31.93 | H28: 1.00 | I28: 2.00 | J28: 0.00 | K28: 67.23 | L28: 0.00 | M28: 0.00 | N28: 57.00 | O28: 30.00 | P28: 3.00 | Q28: 10.11 | R28: 0.00 | S28: 0.00 | T28: 0.00 | U28: 64.73
A29: 201 | B29: 29 | C29: 01 | D29: 行政运行（群众团体事务） | E29: 310.00 | F29: 43.00 | G29: 31.93 | H29: 1.00 | I29: 2.00 | J29: 0.00 | K29: 67.23 | L29: 0.00 | M29: 0.00 | N29: 57.00 | O29: 30.00 | P29: 3.00 | Q29: 10.11 | R29: 0.00 | S29: 0.00 | T29: 0.00 | U29: 64.73
B30: 31 | D30: 党委办公厅（室）及相关机构事务 | E30: 500.00 | F30: 36.00 | G30: 17.00 | H30: 0.00 | I30: 1.00 | J30: 0.00 | K30: 156.11 | L30: 0.00 | M30: 10.81 | N30: 3.00 | O30: 3.53 | P30: 53.30 | Q30: 116.07 | R30: 2.00 | S30: 0.00 | T30: 5.00 | U30: 96.18
A31: 201 | B31: 31 | C31: 01 | D31: 行政运行（党委办公厅（室）及相关机构事务） | E31: 500.00 | F31: 36.00 | G31: 17.00 | H31: 0.00 | I31: 1.00 | J31: 0.00 | K31: 156.11 | L31: 0.00 | M31: 10.81 | N31: 3.00 | O31: 3.53 | P31: 53.30 | Q31: 116.07 | R31: 2.00 | S31: 0.00 | T31: 5.00 | U31: 96.18
B32: 32 | D32: 组织事务 | E32: 340.00 | F32: 70.00 | G32: 38.33 | H32: 5.00 | I32: 5.00 | J32: 0.00 | K32: 45.00 | L32: 0.00 | M32: 10.00 | N32: 10.00 | O32: 10.00 | P32: 20.00 | Q32: 45.00 | R32: 0.00 | S32: 0.00 | T32: 0.00 | U32: 81.67
A33: 201 | B33: 32 | C33: 01 | D33: 行政运行（组织事务） | E33: 340.00 | F33: 70.00 | G33: 38.33 | H33: 5.00 | I33: 5.00 | J33: 0.00 | K33: 45.00 | L33: 0.00 | M33: 10.00 | N33: 10.00 | O33: 10.00 | P33: 20.00 | Q33: 45.00 | R33: 0.00 | S33: 0.00 | T33: 0.00 | U33: 81.67
B34: 33 | D34: 宣传事务 | E34: 170.00 | F34: 20.00 | G34: 10.00 | H34: 0.00 | I34: 0.00 | J34: 0.00 | K34: 14.62 | L34: 0.00 | M34: 10.00 | N34: 5.00 | O34: 5.00 | P34: 15.00 | Q34: 10.00 | R34: 0.00 | S34: 0.00 | T34: 20.00 | U34: 60.38
A35: 201 | B35: 33 | C35: 01 | D35: 行政运行（宣传事务） | E35: 170.00 | F35: 20.00 | G35: 10.00 | H35: 0.00 | I35: 0.00 | J35: 0.00 | K35: 14.62 | L35: 0.00 | M35: 10.00 | N35: 5.00 | O35: 5.00 | P35: 15.00 | Q35: 10.00 | R35: 0.00 | S35: 0.00 | T35: 20.00 | U35: 60.38
B36: 34 | D36: 统战事务 | E36: 170.00 | F36: 10.00 | G36: 0.00 | H36: 0.00 | I36: 0.00 | J36: 0.00 | K36: 11.10 | L36: 0.00 | M36: 10.00 | N36: 10.00 | O36: 15.00 | P36: 24.65 | Q36: 45.00 | R36: 0.00 | S36: 0.00 | T36: 0.00 | U36: 44.25
A37: 201 | B37: 34 | C37: 01 | D37: 行政运行（统战事务） | E37: 170.00 | F37: 10.00 | G37: 0.00 | H37: 0.00 | I37: 0.00 | J37: 0.00 | K37: 11.10 | L37: 0.00 | M37: 10.00 | N37: 10.00 | O37: 15.00 | P37: 24.65 | Q37: 45.00 | R37: 0.00 | S37: 0.00 | T37: 0.00 | U37: 44.25
B38: 37 | D38: 网信事务 | E38: 60.00 | F38: 17.01 | G38: 5.00 | H38: 0.00 | I38: 0.00 | J38: 0.00 | K38: 3.00 | L38: 0.00 | M38: 1.00 | N38: 1.00 | O38: 1.50 | P38: 4.00 | Q38: 20.00 | R38: 0.00 | S38: 0.00 | T38: 0.00 | U38: 7.49
A39: 201 | B39: 37 | C39: 01 | D39: 行政运行 | E39: 60.00 | F39: 17.01 | G39: 5.00 | H39: 0.00 | I39: 0.00 | J39: 0.00 | K39: 3.00 | L39: 0.00 | M39: 1.00 | N39: 1.00 | O39: 1.50 | P39: 4.00 | Q39: 20.00 | R39: 0.00 | S39: 0.00 | T39: 0.00 | U39: 7.49
B40: 38 | D40: 市场监督管理事务 | E40: 2600.00 | F40: 59.02 | G40: 50.00 | H40: 70.00 | I40: 160.00 | J40: 0.00 | K40: 50.00 | L40: 0.00 | M40: 200.00 | N40: 50.00 | O40: 40.00 | P40: 50.00 | Q40: 993.09 | R40: 0.00 | S40: 250.00 | T40: 0.00 | U40: 627.89
A41: 201 | B41: 38 | C41: 01 | D41: 行政运行 | E41: 2600.00 | F41: 59.02 | G41: 50.00 | H41: 70.00 | I41: 160.00 | J41: 0.00 | K41: 50.00 | L41: 0.00 | M41: 200.00 | N41: 50.00 | O41: 40.00 | P41: 50.00 | Q41: 993.09 | R41: 0.00 | S41: 250.00 | T41: 0.00 | U41: 627.89
A42: 204 | D42: 公共安全支出 | E42: 13186.00 | F42: 1611.97 | G42: 505.00 | H42: 300.00 | I42: 743.40 | J42: 10.00 | K42: 1280.00 | L42: 0.00 | M42: 419.69 | N42: 250.00 | O42: 485.80 | P42: 922.50 | Q42: 1727.67 | R42: 0.00 | S42: 3697.03 | T42: 65.00 | U42: 1167.94
B43: 02 | D43: 公安 | E43: 11440.00 | F43: 1026.97 | G43: 390.00 | H43: 280.00 | I43: 694.40 | J43: 10.00 | K43: 1200.00 | L43: 0.00 | M43: 369.69 | N43: 210.00 | O43: 413.91 | P43: 835.50 | Q43: 1397.67 | R43: 0.00 | S43: 3607.03 | T43: 0.00 | U43: 1004.83
A44: 204 | B44: 02 | C44: 01 | D44: 行政运行（公安） | E44: 11440.00 | F44: 1026.97 | G44: 390.00 | H44: 280.00 | I44: 694.40 | J44: 10.00 | K44: 1200.00 | L44: 0.00 | M44: 369.69 | N44: 210.00 | O44: 413.91 | P44: 835.50 | Q44: 1397.67 | R44: 0.00 | S44: 3607.03 | T44: 0.00 | U44: 1004.83
B45: 06 | D45: 司法 | E45: 1746.00 | F45: 585.00 | G45: 115.00 | H45: 20.00 | I45: 49.00 | J45: 0.00 | K45: 80.00 | L45: 0.00 | M45: 50.00 | N45: 40.00 | O45: 71.89 | P45: 87.00 | Q45: 330.00 | R45: 0.00 | S45: 90.00 | T45: 65.00 | U45: 163.11
A46: 204 | B46: 06 | C46: 01 | D46: 行政运行（司法） | E46: 1686.00 | F46: 580.00 | G46: 110.00 | H46: 20.00 | I46: 40.00 | J46: 0.00 | K46: 75.00 | L46: 0.00 | M46: 45.00 | N46: 35.00 | O46: 69.00 | P46: 82.00 | Q46: 320.00 | R46: 0.00 | S46: 90.00 | T46: 65.00 | U46: 155.00
A47: 204 | B47: 06 | C47: 07 | D47: 公共法律服务 | E47: 60.00 | F47: 5.00 | G47: 5.00 | H47: 0.00 | I47: 9.00 | J47: 0.00 | K47: 5.00 | L47: 0.00 | M47: 5.00 | N47: 5.00 | O47: 2.89 | P47: 5.00 | Q47: 10.00 | R47: 0.00 | S47: 0.00 | T47: 0.00 | U47: 8.11
A48: 205 | D48: 教育支出 | E48: 84980.22 | F48: 8002.77 | G48: 6025.29 | H48: 2659.42 | I48: 5384.92 | J48: 2397.87 | K48: 3069.00 | L48: 45.00 | M48: 11958.10 | N48: 3286.29 | O48: 5975.80 | P48: 714.66 | Q48: 9972.03 | R48: 10.00 | S48: 0.00 | T48: 850.41 | U48: 24628.66
B49: 01 | D49: 教育管理事务 | E49: 3590.00 | F49: 914.89 | G49: 60.00 | H49: 40.00 | I49: 125.00 | J49: 125.00 | K49: 200.00 | L49: 0.00 | M49: 170.00 | N49: 143.00 | O49: 300.00 | P49: 280.00 | Q49: 500.00 | R49: 0.00 | S49: 0.00 | T49: 25.00 | U49: 707.11
A50: 205 | B50: 01 | C50: 01 | D50: 行政运行（教育管理事务） | E50: 3590.00 | F50: 914.89 | G50: 60.00 | H50: 40.00 | I50: 125.00 | J50: 125.00 | K50: 200.00 | L50: 0.00 | M50: 170.00 | N50: 143.00 | O50: 300.00 | P50: 280.00 | Q50: 500.00 | R50: 0.00 | S50: 0.00 | T50: 25.00 | U50: 707.11
B51: 02 | D51: 普通教育 | E51: 74172.69 | F51: 6619.76 | G51: 5599.82 | H51: 2544.42 | I51: 4927.92 | J51: 2122.87 | K51: 2334.00 | L51: 45.00 | M51: 10303.10 | N51: 3025.29 | O51: 4588.16 | P51: 363.66 | Q51: 8933.03 | R51: 10.00 | S51: 0.00 | T51: 620.41 | U51: 22135.25
A52: 205 | B52: 02 | C52: 01 | D52: 学前教育 | E52: 3880.50 | F52: 345.00 | G52: 289.00 | H52: 111.50 | I52: 212.75 | J52: 93.25 | K52: 156.95 | L52: 0.00 | M52: 566.21 | N52: 168.30 | O52: 265.45 | P52: 10.37 | Q52: 556.73 | R52: 0.00 | S52: 0.00 | T52: 105.50 | U52: 999.49
A53: 205 | B53: 02 | C53: 02 | D53: 小学教育 | E53: 33470.89 | F53: 3579.66 | G53: 2309.05 | H53: 1280.99 | I53: 1923.03 | J53: 540.53 | K53: 1025.97 | L53: 3.00 | M53: 4102.64 | N53: 1578.09 | O53: 2099.52 | P53: 26.25 | Q53: 4458.16 | R53: 0.00 | S53: 0.00 | T53: 188.76 | U53: 10355.24
A54: 205 | B54: 02 | C54: 03 | D54: 初中教育 | E54: 19316.54 | F54: 1696.30 | G54: 1803.24 | H54: 760.24 | I54: 1309.84 | J54: 474.32 | K54: 715.46 | L54: 42.00 | M54: 2633.80 | N54: 782.10 | O54: 940.17 | P54: 13.25 | Q54: 1893.64 | R54: 10.00 | S54: 0.00 | T54: 160.88 | U54: 6081.30
A55: 205 | B55: 02 | C55: 04 | D55: 高中教育 | E55: 17014.76 | F55: 948.80 | G55: 1198.53 | H55: 389.69 | I55: 1472.30 | J55: 994.77 | K55: 420.62 | L55: 0.00 | M55: 2885.45 | N55: 491.80 | O55: 1178.02 | P55: 313.79 | Q55: 2019.30 | R55: 0.00 | S55: 0.00 | T55: 165.27 | U55: 4536.42
A56: 205 | B56: 02 | C56: 99 | D56: 其他普通教育支出 | E56: 490.00 | F56: 50.00 | G56: 0.00 | H56: 2.00 | I56: 10.00 | J56: 20.00 | K56: 15.00 | L56: 0.00 | M56: 115.00 | N56: 5.00 | O56: 105.00 | P56: 0.00 | Q56: 5.20 | R56: 0.00 | S56: 0.00 | T56: 0.00 | U56: 162.80
B57: 03 | D57: 职业教育 | E57: 3571.78 | F57: 192.00 | G57: 145.00 | H57: 20.00 | I57: 222.00 | J57: 120.00 | K57: 155.00 | L57: 0.00 | M57: 760.00 | N57: 68.00 | O57: 461.00 | P57: 36.00 | Q57: 281.00 | R57: 0.00 | S57: 0.00 | T57: 85.00 | U57: 1026.78
A58: 205 | B58: 03 | C58: 02 | D58: 中等职业教育 | E58: 3571.78 | F58: 192.00 | G58: 145.00 | H58: 20.00 | I58: 222.00 | J58: 120.00 | K58: 155.00 | L58: 0.00 | M58: 760.00 | N58: 68.00 | O58: 461.00 | P58: 36.00 | Q58: 281.00 | R58: 0.00 | S58: 0.00 | T58: 85.00 | U58: 1026.78
B59: 07 | D59: 特殊教育 | E59: 1432.75 | F59: 150.00 | G59: 100.00 | H59: 0.00 | I59: 30.00 | J59: 30.00 | K59: 100.00 | L59: 0.00 | M59: 570.00 | N59: 50.00 | O59: 206.64 | P59: 5.00 | Q59: 20.00 | R59: 0.00 | S59: 0.00 | T59: 20.00 | U59: 151.11
A60: 205 | B60: 07 | C60: 01 | D60: 特殊学校教育 | E60: 1432.75 | F60: 150.00 | G60: 100.00 | H60: 0.00 | I60: 30.00 | J60: 30.00 | K60: 100.00 | L60: 0.00 | M60: 570.00 | N60: 50.00 | O60: 206.64 | P60: 5.00 | Q60: 20.00 | R60: 0.00 | S60: 0.00 | T60: 20.00 | U60: 151.11
B61: 08 | D61: 进修及培训 | E61: 1913.00 | F61: 100.00 | G61: 100.01 | H61: 25.00 | I61: 50.00 | J61: 0.00 | K61: 250.00 | L61: 0.00 | M61: 125.00 | N61: 0.00 | O61: 420.00 | P61: 0.00 | Q61: 208.00 | R61: 0.00 | S61: 0.00 | T61: 100.00 | U61: 534.99
A62: 205 | B62: 08 | C62: 01 | D62: 教师进修 | E62: 1913.00 | F62: 100.00 | G62: 100.01 | H62: 25.00 | I62: 50.00 | J62: 0.00 | K62: 250.00 | L62: 0.00 | M62: 125.00 | N62: 0.00 | O62: 420.00 | P62: 0.00 | Q62: 208.00 | R62: 0.00 | S62: 0.00 | T62: 100.00 | U62: 534.99
B63: 99 | D63: 其他教育支出 | E63: 300.00 | F63: 26.12 | G63: 20.46 | H63: 30.00 | I63: 30.00 | J63: 0.00 | K63: 30.00 | L63: 0.00 | M63: 30.00 | N63: 0.00 | O63: 0.00 | P63: 30.00 | Q63: 30.00 | R63: 0.00 | S63: 0.00 | T63: 0.00 | U63: 73.42
A64: 205 | B64: 99 | C64: 99 | D64: 其他教育支出 | E64: 300.00 | F64: 26.12 | G64: 20.46 | H64: 30.00 | I64: 30.00 | J64: 0.00 | K64: 30.00 | L64: 0.00 | M64: 30.00 | N64: 0.00 | O64: 0.00 | P64: 30.00 | Q64: 30.00 | R64: 0.00 | S64: 0.00 | T64: 0.00 | U64: 73.42
A65: 206 | D65: 科学技术支出 | E65: 170.00 | F65: 23.64 | G65: 4.00 | H65: 2.00 | I65: 5.00 | J65: 0.00 | K65: 10.00 | L65: 0.00 | M65: 0.00 | N65: 0.00 | O65: 0.00 | P65: 10.00 | Q65: 55.00 | R65: 0.00 | S65: 0.00 | T65: 5.47 | U65: 54.89
B66: 07 | D66: 科学技术普及 | E66: 170.00 | F66: 23.64 | G66: 4.00 | H66: 2.00 | I66: 5.00 | J66: 0.00 | K66: 10.00 | L66: 0.00 | M66: 0.00 | N66: 0.00 | O66: 0.00 | P66: 10.00 | Q66: 55.00 | R66: 0.00 | S66: 0.00 | T66: 5.47 | U66: 54.89
A67: 206 | B67: 07 | C67: 01 | D67: 机构运行（科学技术普及） | E67: 170.00 | F67: 23.64 | G67: 4.00 | H67: 2.00 | I67: 5.00 | J67: 0.00 | K67: 10.00 | L67: 0.00 | M67: 0.00 | N67: 0.00 | O67: 0.00 | P67: 10.00 | Q67: 55.00 | R67: 0.00 | S67: 0.00 | T67: 5.47 | U67: 54.89
A68: 207 | D68: 文化旅游体育与传媒支出 | E68: 2060.00 | F68: 320.23 | G68: 86.83 | H68: 47.50 | I68: 130.50 | J68: 22.00 | K68: 329.54 | L68: 0.00 | M68: 124.00 | N68: 37.46 | O68: 69.63 | P68: 146.10 | Q68: 268.50 | R68: 0.00 | S68: 3.00 | T68: 15.00 | U68: 459.71
B69: 01 | D69: 文化和旅游 | E69: 1040.00 | F69: 195.25 | G69: 46.83 | H69: 29.00 | I69: 43.00 | J69: 2.00 | K69: 161.48 | L69: 0.00 | M69: 42.00 | N69: 19.66 | O69: 37.00 | P69: 80.90 | Q69: 118.00 | R69: 0.00 | S69: 3.00 | T69: 4.00 | U69: 257.88
A70: 207 | B70: 01 | C70: 01 | D70: 行政运行（文化） | E70: 1040.00 | F70: 195.25 | G70: 46.83 | H70: 29.00 | I70: 43.00 | J70: 2.00 | K70: 161.48 | L70: 0.00 | M70: 42.00 | N70: 19.66 | O70: 37.00 | P70: 80.90 | Q70: 118.00 | R70: 0.00 | S70: 3.00 | T70: 4.00 | U70: 257.88
B71: 02 | D71: 文物 | E71: 100.00 | F71: 14.86 | G71: 0.00 | H71: 2.00 | I71: 14.00 | J71: 0.00 | K71: 7.00 | L71: 0.00 | M71: 0.00 | N71: 0.00 | O71: 0.00 | P71: 10.00 | Q71: 30.00 | R71: 0.00 | S71: 0.00 | T71: 0.00 | U71: 22.14
A72: 207 | B72: 02 | C72: 01 | D72: 行政运行（文物） | E72: 100.00 | F72: 14.86 | G72: 0.00 | H72: 2.00 | I72: 14.00 | J72: 0.00 | K72: 7.00 | L72: 0.00 | M72: 0.00 | N72: 0.00 | O72: 0.00 | P72: 10.00 | Q72: 30.00 | R72: 0.00 | S72: 0.00 | T72: 0.00 | U72: 22.14
B73: 03 | D73: 体育 | E73: 110.00 | F73: 10.00 | G73: 0.00 | H73: 0.00 | I73: 10.00 | J73: 0.00 | K73: 20.00 | L73: 0.00 | M73: 10.00 | N73: 5.00 | O73: 5.00 | P73: 10.00 | Q73: 10.00 | R73: 0.00 | S73: 0.00 | T73: 10.00 | U73: 20.00
A74: 207 | B74: 03 | C74: 01 | D74: 行政运行（体育） | E74: 110.00 | F74: 10.00 | G74: 0.00 | H74: 0.00 | I74: 10.00 | J74: 0.00 | K74: 20.00 | L74: 0.00 | M74: 10.00 | N74: 5.00 | O74: 5.00 | P74: 10.00 | Q74: 10.00 | R74: 0.00 | S74: 0.00 | T74: 10.00 | U74: 20.00
B75: 08 | D75: 广播电视 | E75: 810.00 | F75: 100.12 | G75: 40.00 | H75: 16.50 | I75: 63.50 | J75: 20.00 | K75: 141.06 | L75: 0.00 | M75: 72.00 | N75: 12.80 | O75: 27.63 | P75: 45.20 | Q75: 110.50 | R75: 0.00 | S75: 0.00 | T75: 1.00 | U75: 159.69
A76: 207 | B76: 08 | C76: 01 | D76: 行政运行 | E76: 810.00 | F76: 100.12 | G76: 40.00 | H76: 16.50 | I76: 63.50 | J76: 20.00 | K76: 141.06 | L76: 0.00 | M76: 72.00 | N76: 12.80 | O76: 27.63 | P76: 45.20 | Q76: 110.50 | R76: 0.00 | S76: 0.00 | T76: 1.00 | U76: 159.69
A77: 208 | D77: 社会保障和就业支出 | E77: 6394.90 | F77: 841.37 | G77: 349.41 | H77: 190.33 | I77: 401.57 | J77: 333.27 | K77: 550.07 | L77: 0.00 | M77: 491.37 | N77: 363.50 | O77: 204.00 | P77: 478.14 | Q77: 953.72 | R77: 21.00 | S77: 81.00 | T77: 331.29 | U77: 804.86
B78: 01 | D78: 人力资源和社会保障管理事务 | E78: 1170.00 | F78: 199.76 | G78: 80.00 | H78: 12.50 | I78: 29.00 | J78: 22.49 | K78: 150.09 | L78: 0.00 | M78: 45.37 | N78: 30.00 | O78: 25.00 | P78: 110.00 | Q78: 170.00 | R78: 20.00 | S78: 0.00 | T78: 20.00 | U78: 255.79
A79: 208 | B79: 01 | C79: 01 | D79: 行政运行（人力资源和社会保障管理事务） | E79: 560.00 | F79: 63.00 | G79: 60.00 | H79: 10.00 | I79: 24.00 | J79: 22.49 | K79: 20.00 | L79: 0.00 | M79: 30.37 | N79: 25.00 | O79: 20.00 | P79: 40.00 | Q79: 60.00 | R79: 0.00 | S79: 0.00 | T79: 20.00 | U79: 165.14
A80: 208 | B80: 01 | C80: 05 | D80: 劳动保障监察 | E80: 70.00 | F80: 10.00 | G80: 10.00 | H80: 2.50 | I80: 5.00 | J80: 0.00 | K80: 10.09 | L80: 0.00 | M80: 5.00 | N80: 0.00 | O80: 0.00 | P80: 10.00 | Q80: 10.00 | R80: 0.00 | S80: 0.00 | T80: 0.00 | U80: 7.41
A81: 208 | B81: 01 | C81: 09 | D81: 社会保险经办机构 | E81: 540.00 | F81: 126.76 | G81: 10.00 | H81: 0.00 | I81: 0.00 | J81: 0.00 | K81: 120.00 | L81: 0.00 | M81: 10.00 | N81: 5.00 | O81: 5.00 | P81: 60.00 | Q81: 100.00 | R81: 20.00 | S81: 0.00 | T81: 0.00 | U81: 83.24
B82: 02 | D82: 民政管理事务 | E82: 3962.00 | F82: 462.05 | G82: 245.91 | H82: 123.34 | I82: 251.50 | J82: 309.78 | K82: 270.06 | L82: 0.00 | M82: 375.00 | N82: 306.50 | O82: 153.00 | P82: 190.00 | Q82: 612.76 | R82: 1.00 | S82: 0.00 | T82: 293.29 | U82: 367.81
A83: 208 | B83: 02 | C83: 01 | D83: 行政运行（民政管理事务） | E83: 3962.00 | F83: 462.05 | G83: 245.91 | H83: 123.34 | I83: 251.50 | J83: 309.78 | K83: 270.06 | L83: 0.00 | M83: 375.00 | N83: 306.50 | O83: 153.00 | P83: 190.00 | Q83: 612.76 | R83: 1.00 | S83: 0.00 | T83: 293.29 | U83: 367.81
B84: 11 | D84: 残疾人事业 | E84: 180.00 | F84: 35.00 | G84: 1.50 | H84: 3.00 | I84: 6.00 | J84: 0.00 | K84: 26.76 | L84: 0.00 | M84: 1.50 | N84: 2.00 | O84: 4.00 | P84: 41.00 | Q84: 22.25 | R84: 0.00 | S84: 0.00 | T84: 0.00 | U84: 36.99
A85: 208 | B85: 11 | C85: 01 | D85: 行政运行（残疾人事业） | E85: 180.00 | F85: 35.00 | G85: 1.50 | H85: 3.00 | I85: 6.00 | J85: 0.00 | K85: 26.76 | L85: 0.00 | M85: 1.50 | N85: 2.00 | O85: 4.00 | P85: 41.00 | Q85: 22.25 | R85: 0.00 | S85: 0.00 | T85: 0.00 | U85: 36.99
B86: 16 | D86: 红十字事业 | E86: 60.00 | F86: 10.00 | G86: 5.00 | H86: 0.49 | I86: 2.07 | J86: 1.00 | K86: 3.00 | L86: 0.00 | M86: 0.50 | N86: 1.00 | O86: 1.00 | P86: 15.00 | Q86: 14.00 | R86: 0.00 | S86: 0.00 | T86: 0.00 | U86: 6.94
A87: 208 | B87: 16 | C87: 01 | D87: 行政运行（红十字事业） | E87: 60.00 | F87: 10.00 | G87: 5.00 | H87: 0.49 | I87: 2.07 | J87: 1.00 | K87: 3.00 | L87: 0.00 | M87: 0.50 | N87: 1.00 | O87: 1.00 | P87: 15.00 | Q87: 14.00 | R87: 0.00 | S87: 0.00 | T87: 0.00 | U87: 6.94
B88: 28 | D88: 退役军人管理事务 | E88: 1022.90 | F88: 134.56 | G88: 17.00 | H88: 51.00 | I88: 113.00 | J88: 0.00 | K88: 100.16 | L88: 0.00 | M88: 69.00 | N88: 24.00 | O88: 21.00 | P88: 122.14 | Q88: 134.71 | R88: 0.00 | S88: 81.00 | T88: 18.00 | U88: 137.33
A89: 208 | B89: 28 | C89: 01 | D89: 行政运行 | E89: 80.00 | F89: 4.32 | G89: 0.00 | H89: 1.00 | I89: 4.00 | J89: 0.00 | K89: 6.16 | L89: 0.00 | M89: 3.00 | N89: 3.00 | O89: 3.00 | P89: 38.00 | Q89: 3.00 | R89: 0.00 | S89: 0.00 | T89: 2.00 | U89: 12.52
A90: 208 | B90: 28 | C90: 50 | D90: 事业运行 | E90: 729.90 | F90: 106.24 | G90: 12.00 | H90: 47.00 | I90: 101.00 | J90: 0.00 | K90: 51.00 | L90: 0.00 | M90: 60.00 | N90: 19.00 | O90: 16.00 | P90: 38.00 | Q90: 86.71 | R90: 0.00 | S90: 81.00 | T90: 11.00 | U90: 100.95
A91: 208 | B91: 28 | C91: 99 | D91: 其他退役军人事务管理支出 | E91: 213.00 | F91: 24.00 | G91: 5.00 | H91: 3.00 | I91: 8.00 | J91: 0.00 | K91: 43.00 | L91: 0.00 | M91: 6.00 | N91: 2.00 | O91: 2.00 | P91: 46.14 | Q91: 45.00 | R91: 0.00 | S91: 0.00 | T91: 5.00 | U91: 23.86
A92: 210 | D92: 卫生健康支出 | E92: 112005.03 | F92: 5626.11 | G92: 4275.57 | H92: 1852.06 | I92: 11207.03 | J92: 2449.58 | K92: 1953.78 | L92: 0.00 | M92: 8819.17 | N92: 1265.09 | O92: 1857.10 | P92: 1025.99 | Q92: 4723.36 | R92: 2292.01 | S92: 1043.36 | T92: 2799.36 | U92: 60815.46
B93: 01 | D93: 卫生健康管理事务 | E93: 2630.00 | F93: 1997.47 | G93: 5.00 | H93: 5.00 | I93: 60.00 | J93: 0.00 | K93: 83.00 | L93: 0.00 | M93: 0.00 | N93: 86.00 | O93: 80.04 | P93: 40.00 | Q93: 0.00 | R93: 0.00 | S93: 0.00 | T93: 0.00 | U93: 273.49
A94: 210 | B94: 01 | C94: 01 | D94: 行政运行（医疗卫生管理事务） | E94: 2630.00 | F94: 1997.47 | G94: 5.00 | H94: 5.00 | I94: 60.00 | J94: 0.00 | K94: 83.00 | L94: 0.00 | M94: 0.00 | N94: 86.00 | O94: 80.04 | P94: 40.00 | Q94: 0.00 | R94: 0.00 | S94: 0.00 | T94: 0.00 | U94: 273.49
B95: 02 | D95: 公立医院 | E95: 36783.94 | F95: 735.54 | G95: 153.30 | H95: 837.00 | I95: 4973.90 | J95: 1451.47 | K95: 94.70 | L95: 0.00 | M95: 4585.02 | N95: 121.08 | O95: 345.98 | P95: 238.75 | Q95: 1226.99 | R95: 698.64 | S95: 248.21 | T95: 360.18 | U95: 20713.18
A96: 210 | B96: 02 | C96: 01 | D96: 综合医院 | E96: 19154.54 | F96: 535.54 | G96: 3.30 | H96: 801.00 | I96: 4473.90 | J96: 1351.47 | K96: 44.70 | L96: 0.00 | M96: 3985.02 | N96: 101.08 | O96: 315.98 | P96: 218.75 | Q96: 1026.99 | R96: 198.64 | S96: 198.21 | T96: 355.18 | U96: 5544.78
A97: 210 | B97: 02 | C97: 02 | D97: 中医（民族）医院 | E97: 17629.40 | F97: 200.00 | G97: 150.00 | H97: 36.00 | I97: 500.00 | J97: 100.00 | K97: 50.00 | L97: 0.00 | M97: 600.00 | N97: 20.00 | O97: 30.00 | P97: 20.00 | Q97: 200.00 | R97: 500.00 | S97: 50.00 | T97: 5.00 | U97: 15168.40
B98: 03 | D98: 基层医疗卫生机构 | E98: 28587.31 | F98: 1415.98 | G98: 2353.83 | H98: 565.40 | I98: 3283.32 | J98: 285.00 | K98: 967.66 | L98: 0.00 | M98: 2854.50 | N98: 551.98 | O98: 748.53 | P98: 456.94 | Q98: 1596.65 | R98: 835.50 | S98: 97.53 | T98: 1594.07 | U98: 10980.42
A99: 210 | B99: 03 | C99: 01 | D99: 城市社区卫生机构 | E99: 2092.15 | F99: 48.00 | G99: 460.00 | H99: 53.90 | I99: 175.00 | J99: 90.00 | K99: 24.50 | L99: 0.00 | M99: 168.00 | N99: 62.00 | O99: 68.00 | P99: 60.00 | Q99: 168.00 | R99: 124.00 | S99: 0.00 | T99: 215.00 | U99: 375.75
A100: 210 | B100: 03 | C100: 02 | D100: 乡镇卫生院 | E100: 26495.16 | F100: 1367.98 | G100: 1893.83 | H100: 511.50 | I100: 3108.32 | J100: 195.00 | K100: 943.16 | L100: 0.00 | M100: 2686.50 | N100: 489.98 | O100: 680.53 | P100: 396.94 | Q100: 1428.65 | R100: 711.50 | S100: 97.53 | T100: 1379.07 | U100: 10604.67
B101: 04 | D101: 公共卫生 | E101: 42772.28 | F101: 1265.45 | G101: 1633.13 | H101: 401.86 | I101: 2794.01 | J101: 713.11 | K101: 646.29 | L101: 0.00 | M101: 1338.13 | N101: 454.47 | O101: 647.55 | P101: 230.34 | Q101: 1782.66 | R101: 757.87 | S101: 665.72 | T101: 803.05 | U101: 28638.64
A102: 210 | B102: 04 | C102: 01 | D102: 疾病预防控制机构 | E102: 15471.02 | F102: 635.45 | G102: 1113.13 | H102: 238.86 | I102: 1152.01 | J102: 213.11 | K102: 431.29 | L102: 0.00 | M102: 1211.25 | N102: 131.60 | O102: 332.55 | P102: 195.34 | Q102: 772.66 | R102: 477.87 | S102: 235.72 | T102: 698.05 | U102: 7632.13
A103: 210 | B103: 04 | C103: 02 | D103: 卫生监督机构 | E103: 250.00 | F103: 60.00 | G103: 10.00 | H103: 3.00 | I103: 22.00 | J103: 0.00 | K103: 5.00 | L103: 0.00 | M103: 10.00 | N103: 12.87 | O103: 0.00 | P103: 5.00 | Q103: 10.00 | R103: 0.00 | S103: 50.00 | T103: 0.00 | U103: 62.13
A104: 210 | B104: 04 | C104: 03 | D104: 妇幼保健机构 | E104: 26911.26 | F104: 550.00 | G104: 500.00 | H104: 150.00 | I104: 1600.00 | J104: 500.00 | K104: 200.00 | L104: 0.00 | M104: 100.00 | N104: 300.00 | O104: 300.00 | P104: 30.00 | Q104: 1000.00 | R104: 280.00 | S104: 380.00 | T104: 100.00 | U104: 20921.26
A105: 210 | B105: 04 | C105: 10 | D105: 突发公共卫生事件应急处理 | E105: 140.00 | F105: 20.00 | G105: 10.00 | H105: 10.00 | I105: 20.00 | J105: 0.00 | K105: 10.00 | L105: 0.00 | M105: 16.88 | N105: 10.00 | O105: 15.00 | P105: 0.00 | Q105: 0.00 | R105: 0.00 | S105: 0.00 | T105: 5.00 | U105: 23.12
B106: 07 | D106: 计划生育事务 | E106: 721.50 | F106: 141.67 | G106: 100.31 | H106: 22.80 | I106: 45.80 | J106: 0.00 | K106: 102.13 | L106: 0.00 | M106: 11.52 | N106: 31.56 | O106: 15.00 | P106: 29.96 | Q106: 57.06 | R106: 0.00 | S106: 31.90 | T106: 24.96 | U106: 106.83
A107: 210 | B107: 07 | C107: 16 | D107: 计划生育机构 | E107: 721.50 | F107: 141.67 | G107: 100.31 | H107: 22.80 | I107: 45.80 | J107: 0.00 | K107: 102.13 | L107: 0.00 | M107: 11.52 | N107: 31.56 | O107: 15.00 | P107: 29.96 | Q107: 57.06 | R107: 0.00 | S107: 31.90 | T107: 24.96 | U107: 106.83
B108: 15 | D108: 医疗保障管理事务 | E108: 510.00 | F108: 70.00 | G108: 30.00 | H108: 20.00 | I108: 50.00 | J108: 0.00 | K108: 60.00 | L108: 0.00 | M108: 30.00 | N108: 20.00 | O108: 20.00 | P108: 30.00 | Q108: 60.00 | R108: 0.00 | S108: 0.00 | T108: 17.10 | U108: 102.90
A109: 210 | B109: 15 | C109: 01 | D109: 行政运行 | E109: 510.00 | F109: 70.00 | G109: 30.00 | H109: 20.00 | I109: 50.00 | J109: 0.00 | K109: 60.00 | L109: 0.00 | M109: 30.00 | N109: 20.00 | O109: 20.00 | P109: 30.00 | Q109: 60.00 | R109: 0.00 | S109: 0.00 | T109: 17.10 | U109: 102.90
A110: 212 | D110: 城乡社区支出 | E110: 6250.00 | F110: 689.24 | G110: 226.00 | H110: 113.50 | I110: 280.91 | J110: 226.00 | K110: 721.90 | L110: 0.00 | M110: 903.39 | N110: 65.00 | O110: 69.93 | P110: 301.23 | Q110: 871.48 | R110: 60.00 | S110: 400.00 | T110: 219.73 | U110: 1101.69
B111: 01 | D111: 城乡社区管理事务 | E111: 3340.00 | F111: 329.88 | G111: 98.00 | H111: 52.50 | I111: 141.00 | J111: 0.00 | K111: 412.49 | L111: 0.00 | M111: 447.74 | N111: 25.00 | O111: 25.00 | P111: 145.23 | Q111: 573.48 | R111: 20.00 | S111: 295.00 | T111: 118.00 | U111: 656.68
A112: 212 | B112: 01 | C112: 01 | D112: 行政运行（城乡社区管理事务） | E112: 2490.00 | F112: 209.88 | G112: 48.00 | H112: 32.50 | I112: 41.00 | J112: 0.00 | K112: 312.49 | L112: 0.00 | M112: 427.74 | N112: 15.00 | O112: 15.00 | P112: 145.23 | Q112: 573.48 | R112: 20.00 | S112: 95.00 | T112: 18.00 | U112: 536.68
A113: 212 | B113: 01 | C113: 04 | D113: 城管执法 | E113: 850.00 | F113: 120.00 | G113: 50.00 | H113: 20.00 | I113: 100.00 | J113: 0.00 | K113: 100.00 | L113: 0.00 | M113: 20.00 | N113: 10.00 | O113: 10.00 | P113: 0.00 | Q113: 0.00 | R113: 0.00 | S113: 200.00 | T113: 100.00 | U113: 120.00
B114: 03 | D114: 城乡社区公共设施 | E114: 384.00 | F114: 29.00 | G114: 15.00 | H114: 19.00 | I114: 28.00 | J114: 14.00 | K114: 13.16 | L114: 0.00 | M114: 10.00 | N114: 0.00 | O114: 10.93 | P114: 30.00 | Q114: 70.00 | R114: 0.00 | S114: 25.00 | T114: 40.00 | U114: 79.91
A115: 212 | B115: 03 | C115: 03 | D115: 小城镇基础设施建设 | E115: 384.00 | F115: 29.00 | G115: 15.00 | H115: 19.00 | I115: 28.00 | J115: 14.00 | K115: 13.16 | L115: 0.00 | M115: 10.00 | N115: 0.00 | O115: 10.93 | P115: 30.00 | Q115: 70.00 | R115: 0.00 | S115: 25.00 | T115: 40.00 | U115: 79.91
B116: 05 | D116: 城乡社区环境卫生 | E116: 1266.00 | F116: 180.36 | G116: 50.00 | H116: 32.00 | I116: 66.00 | J116: 32.00 | K116: 40.00 | L116: 0.00 | M116: 245.90 | N116: 40.00 | O116: 34.00 | P116: 26.00 | Q116: 128.00 | R116: 40.00 | S116: 60.00 | T116: 61.73 | U116: 230.01
A117: 212 | B117: 05 | C117: 01 | D117: 城乡社区环境卫生 | E117: 1266.00 | F117: 180.36 | G117: 50.00 | H117: 32.00 | I117: 66.00 | J117: 32.00 | K117: 40.00 | L117: 0.00 | M117: 245.90 | N117: 40.00 | O117: 34.00 | P117: 26.00 | Q117: 128.00 | R117: 40.00 | S117: 60.00 | T117: 61.73 | U117: 230.01
B118: 06 | D118: 建设市场管理与监督 | E118: 1260.00 | F118: 150.00 | G118: 63.00 | H118: 10.00 | I118: 45.91 | J118: 180.00 | K118: 256.25 | L118: 0.00 | M118: 199.75 | N118: 0.00 | O118: 0.00 | P118: 100.00 | Q118: 100.00 | R118: 0.00 | S118: 20.00 | T118: 0.00 | U118: 135.09
A119: 212 | B119: 06 | C119: 01 | D119: 建设市场管理与监督 | E119: 1260.00 | F119: 150.00 | G119: 63.00 | H119: 10.00 | I119: 45.91 | J119: 180.00 | K119: 256.25 | L119: 0.00 | M119: 199.75 | N119: 0.00 | O119: 0.00 | P119: 100.00 | Q119: 100.00 | R119: 0.00 | S119: 20.00 | T119: 0.00 | U119: 135.09
A120: 213 | D120: 农林水支出 | E120: 11152.00 | F120: 1239.37 | G120: 439.68 | H120: 109.00 | I120: 775.83 | J120: 207.60 | K120: 1308.91 | L120: 0.00 | M120: 531.63 | N120: 361.00 | O120: 329.00 | P120: 773.88 | Q120: 1450.59 | R120: 265.79 | S120: 103.95 | T120: 237.96 | U120: 3017.81
B121: 01 | D121: 农业农村 | E121: 6000.00 | F121: 969.47 | G121: 394.68 | H121: 85.00 | I121: 290.83 | J121: 112.60 | K121: 724.85 | L121: 0.00 | M121: 181.63 | N121: 251.00 | O121: 154.00 | P121: 428.88 | Q121: 592.29 | R121: 5.00 | S121: 98.95 | T121: 137.96 | U121: 1572.86
A122: 213 | B122: 01 | C122: 01 | D122: 行政运行（农业） | E122: 6000.00 | F122: 969.47 | G122: 394.68 | H122: 85.00 | I122: 290.83 | J122: 112.60 | K122: 724.85 | L122: 0.00 | M122: 181.63 | N122: 251.00 | O122: 154.00 | P122: 428.88 | Q122: 592.29 | R122: 5.00 | S122: 98.95 | T122: 137.96 | U122: 1572.86
B123: 02 | D123: 林业和草原 | E123: 760.00 | F123: 57.79 | G123: 25.00 | H123: 24.00 | I123: 15.00 | J123: 45.00 | K123: 60.00 | L123: 0.00 | M123: 20.00 | N123: 0.00 | O123: 5.00 | P123: 30.00 | Q123: 263.18 | R123: 5.00 | S123: 5.00 | T123: 100.00 | U123: 105.03
A124: 213 | B124: 02 | C124: 01 | D124: 行政运行（林业） | E124: 760.00 | F124: 57.79 | G124: 25.00 | H124: 24.00 | I124: 15.00 | J124: 45.00 | K124: 60.00 | L124: 0.00 | M124: 20.00 | N124: 0.00 | O124: 5.00 | P124: 30.00 | Q124: 263.18 | R124: 5.00 | S124: 5.00 | T124: 100.00 | U124: 105.03
B125: 03 | D125: 水利 | E125: 4282.00 | F125: 192.11 | G125: 10.00 | H125: 0.00 | I125: 460.00 | J125: 50.00 | K125: 500.00 | L125: 0.00 | M125: 330.00 | N125: 110.00 | O125: 170.00 | P125: 290.00 | Q125: 595.12 | R125: 255.79 | S125: 0.00 | T125: 0.00 | U125: 1318.98
A126: 213 | B126: 03 | C126: 01 | D126: 行政运行（水利） | E126: 4282.00 | F126: 192.11 | G126: 10.00 | H126: 0.00 | I126: 460.00 | J126: 50.00 | K126: 500.00 | L126: 0.00 | M126: 330.00 | N126: 110.00 | O126: 170.00 | P126: 290.00 | Q126: 595.12 | R126: 255.79 | S126: 0.00 | T126: 0.00 | U126: 1318.98
B127: 05 | D127: 扶贫 | E127: 110.00 | F127: 20.00 | G127: 10.00 | H127: 0.00 | I127: 10.00 | J127: 0.00 | K127: 24.06 | L127: 0.00 | M127: 0.00 | N127: 0.00 | O127: 0.00 | P127: 25.00 | Q127: 0.00 | R127: 0.00 | S127: 0.00 | T127: 0.00 | U127: 20.94
A128: 213 | B128: 05 | C128: 01 | D128: 行政运行（扶贫） | E128: 110.00 | F128: 20.00 | G128: 10.00 | H128: 0.00 | I128: 10.00 | J128: 0.00 | K128: 24.06 | L128: 0.00 | M128: 0.00 | N128: 0.00 | O128: 0.00 | P128: 25.00 | Q128: 0.00 | R128: 0.00 | S128: 0.00 | T128: 0.00 | U128: 20.94
A129: 214 | D129: 交通运输支出 | E129: 3380.00 | F129: 390.00 | G129: 208.41 | H129: 32.00 | I129: 161.94 | J129: 158.71 | K129: 400.00 | L129: 0.00 | M129: 193.13 | N129: 122.00 | O129: 172.00 | P129: 280.00 | Q129: 421.80 | R129: 0.00 | S129: 120.00 | T129: 130.00 | U129: 590.01
B130: 01 | D130: 公路水路运输 | E130: 3380.00 | F130: 390.00 | G130: 208.41 | H130: 32.00 | I130: 161.94 | J130: 158.71 | K130: 400.00 | L130: 0.00 | M130: 193.13 | N130: 122.00 | O130: 172.00 | P130: 280.00 | Q130: 421.80 | R130: 0.00 | S130: 120.00 | T130: 130.00 | U130: 590.01
A131: 214 | B131: 01 | C131: 01 | D131: 行政运行（公路水路运输） | E131: 3170.00 | F131: 350.00 | G131: 198.41 | H131: 22.00 | I131: 141.94 | J131: 158.71 | K131: 380.00 | L131: 0.00 | M131: 190.00 | N131: 120.00 | O131: 170.00 | P131: 270.00 | Q131: 381.80 | R131: 0.00 | S131: 110.00 | T131: 130.00 | U131: 547.14
A132: 214 | B132: 01 | C132: 31 | D132: 海事管理 | E132: 210.00 | F132: 40.00 | G132: 10.00 | H132: 10.00 | I132: 20.00 | J132: 0.00 | K132: 20.00 | L132: 0.00 | M132: 3.13 | N132: 2.00 | O132: 2.00 | P132: 10.00 | Q132: 40.00 | R132: 0.00 | S132: 10.00 | T132: 0.00 | U132: 42.87
A133: 215 | D133: 资源勘探工业信息等支出 | E133: 550.00 | F133: 58.00 | G133: 0.00 | H133: 4.00 | I133: 40.00 | J133: 0.00 | K133: 40.00 | L133: 0.00 | M133: 0.00 | N133: 49.83 | O133: 0.00 | P133: 120.00 | Q133: 0.00 | R133: 0.00 | S133: 0.00 | T133: 0.00 | U133: 238.17
B134: 05 | D134: 工业和信息产业监管 | E134: 550.00 | F134: 58.00 | G134: 0.00 | H134: 4.00 | I134: 40.00 | J134: 0.00 | K134: 40.00 | L134: 0.00 | M134: 0.00 | N134: 49.83 | O134: 0.00 | P134: 120.00 | Q134: 0.00 | R134: 0.00 | S134: 0.00 | T134: 0.00 | U134: 238.17
A135: 215 | B135: 05 | C135: 01 | D135: 行政运行（工业和信息产业监管） | E135: 550.00 | F135: 58.00 | G135: 0.00 | H135: 4.00 | I135: 40.00 | J135: 0.00 | K135: 40.00 | L135: 0.00 | M135: 0.00 | N135: 49.83 | O135: 0.00 | P135: 120.00 | Q135: 0.00 | R135: 0.00 | S135: 0.00 | T135: 0.00 | U135: 238.17
A136: 216 | D136: 商业服务业等支出 | E136: 1260.00 | F136: 139.83 | G136: 63.00 | H136: 62.00 | I136: 101.07 | J136: 45.00 | K136: 90.00 | L136: 0.00 | M136: 230.00 | N136: 15.00 | O136: 10.00 | P136: 88.20 | Q136: 27.54 | R136: 0.00 | S136: 10.00 | T136: 76.26 | U136: 302.10
B137: 02 | D137: 商业流通事务 | E137: 1260.00 | F137: 139.83 | G137: 63.00 | H137: 62.00 | I137: 101.07 | J137: 45.00 | K137: 90.00 | L137: 0.00 | M137: 230.00 | N137: 15.00 | O137: 10.00 | P137: 88.20 | Q137: 27.54 | R137: 0.00 | S137: 10.00 | T137: 76.26 | U137: 302.10
A138: 216 | B138: 02 | C138: 01 | D138: 行政运行（商业流通事务） | E138: 1260.00 | F138: 139.83 | G138: 63.00 | H138: 62.00 | I138: 101.07 | J138: 45.00 | K138: 90.00 | L138: 0.00 | M138: 230.00 | N138: 15.00 | O138: 10.00 | P138: 88.20 | Q138: 27.54 | R138: 0.00 | S138: 10.00 | T138: 76.26 | U138: 302.10
A139: 220 | D139: 自然资源海洋气象等支出 | E139: 4147.65 | F139: 986.77 | G139: 205.00 | H139: 160.00 | I139: 260.00 | J139: 360.00 | K139: 731.34 | L139: 0.00 | M139: 132.23 | N139: 180.00 | O139: 110.00 | P139: 10.00 | Q139: 320.50 | R139: 0.00 | S139: 0.00 | T139: 0.00 | U139: 691.81
B140: 01 | D140: 自然资源事务 | E140: 4147.65 | F140: 986.77 | G140: 205.00 | H140: 160.00 | I140: 260.00 | J140: 360.00 | K140: 731.34 | L140: 0.00 | M140: 132.23 | N140: 180.00 | O140: 110.00 | P140: 10.00 | Q140: 320.50 | R140: 0.00 | S140: 0.00 | T140: 0.00 | U140: 691.81
A141: 220 | B141: 01 | C141: 01 | D141: 行政运行（国土资源事务） | E141: 4147.65 | F141: 986.77 | G141: 205.00 | H141: 160.00 | I141: 260.00 | J141: 360.00 | K141: 731.34 | L141: 0.00 | M141: 132.23 | N141: 180.00 | O141: 110.00 | P141: 10.00 | Q141: 320.50 | R141: 0.00 | S141: 0.00 | T141: 0.00 | U141: 691.81
A142: 224 | D142: 灾害防治及应急管理支出 | E142: 350.00 | F142: 100.00 | G142: 5.00 | H142: 10.00 | I142: 10.00 | J142: 0.00 | K142: 61.41 | L142: 0.00 | M142: 10.00 | N142: 20.00 | O142: 30.00 | P142: 10.00 | Q142: 30.00 | R142: 0.00 | S142: 0.00 | T142: 16.90 | U142: 46.69
B143: 01 | D143: 应急管理事务 | E143: 350.00 | F143: 100.00 | G143: 5.00 | H143: 10.00 | I143: 10.00 | J143: 0.00 | K143: 61.41 | L143: 0.00 | M143: 10.00 | N143: 20.00 | O143: 30.00 | P143: 10.00 | Q143: 30.00 | R143: 0.00 | S143: 0.00 | T143: 16.90 | U143: 46.69
A144: 224 | B144: 01 | C144: 01 | D144: 行政运行 | E144: 350.00 | F144: 100.00 | G144: 5.00 | H144: 10.00 | I144: 10.00 | J144: 0.00 | K144: 61.41 | L144: 0.00 | M144: 10.00 | N144: 20.00 | O144: 30.00 | P144: 10.00 | Q144: 30.00 | R144: 0.00 | S144: 0.00 | T144: 16.90 | U144: 46.69

Sheet 表6-3
A1: 基本支出预算明细表-对个人和家庭的补助（按部门预算经济分类）
I2: 单位：千元
A3: 功能科目 | E3: 总计 | F3: 离休费 | G3: 退休费 | H3: 生活补助 | I3: 其他对个人和家庭的补助
A4: 科目编码 | D4: 科目名称
A5: 类 | B5: 款 | C5: 项
D6: 合计 | E6: 25791.56 | F6: 2821.93 | G6: 173.40 | H6: 8548.16 | I6: 14248.07
A7: 201 | D7: 一般公共服务支出 | E7: 2123.69 | F7: 474.21 | G7: 51.00 | H7: 1598.48 | I7: 0.00
B8: 01 | D8: 人大事务 | E8: 15.22 | F8: 0.00 | G8: 1.00 | H8: 14.22 | I8: 0.00
A9: 201 | B9: 01 | C9: 01 | D9: 行政运行（人大事务） | E9: 15.22 | F9: 0.00 | G9: 1.00 | H9: 14.22 | I9: 0.00
B10: 02 | D10: 政协事务 | E10: 16.56 | F10: 0.00 | G10: 0.00 | H10: 16.56 | I10: 0.00
A11: 201 | B11: 02 | C11: 01 | D11: 行政运行（政协事务） | E11: 16.56 | F11: 0.00 | G11: 0.00 | H11: 16.56 | I11: 0.00
B12: 03 | D12: 政府办公厅（室）及相关机构事务 | E12: 1625.26 | F12: 239.24 | G12: 22.80 | H12: 1363.22 | I12: 0.00
A13: 201 | B13: 03 | C13: 01 | D13: 行政运行（政府办公厅（室）及相关机构事务） | E13: 1625.26 | F13: 239.24 | G13: 22.80 | H13: 1363.22 | I13: 0.00
B14: 04 | D14: 发展与改革事务 | E14: 135.29 | F14: 77.87 | G14: 0.00 | H14: 57.42 | I14: 0.00
A15: 201 | B15: 04 | C15: 01 | D15: 行政运行（发展与改革事务） | E15: 57.42 | F15: 0.00 | G15: 0.00 | H15: 57.42 | I15: 0.00
A16: 201 | B16: 04 | C16: 02 | D16: 一般行政管理事务（发展与改革事务） | E16: 77.87 | F16: 77.87 | G16: 0.00 | H16: 0.00 | I16: 0.00
B17: 06 | D17: 财政事务 | E17: 27.10 | F17: 0.00 | G17: 13.60 | H17: 13.50 | I17: 0.00
A18: 201 | B18: 06 | C18: 01 | D18: 行政运行（财政事务） | E18: 27.10 | F18: 0.00 | G18: 13.60 | H18: 13.50 | I18: 0.00
B19: 08 | D19: 审计事务 | E19: 86.37 | F19: 79.17 | G19: 0.00 | H19: 7.20 | I19: 0.00
A20: 201 | B20: 08 | C20: 01 | D20: 行政运行（审计事务） | E20: 86.37 | F20: 79.17 | G20: 0.00 | H20: 7.20 | I20: 0.00
B21: 31 | D21: 党委办公厅（室）及相关机构事务 | E21: 16.92 | F21: 0.00 | G21: 0.00 | H21: 16.92 | I21: 0.00
A22: 201 | B22: 31 | C22: 01 | D22: 行政运行（党委办公厅（室）及相关机构事务） | E22: 16.92 | F22: 0.00 | G22: 0.00 | H22: 16.92 | I22: 0.00
B23: 38 | D23: 市场监督管理事务 | E23: 200.97 | F23: 77.93 | G23: 13.60 | H23: 109.44 | I23: 0.00
A24: 201 | B24: 38 | C24: 01 | D24: 行政运行 | E24: 200.97 | F24: 77.93 | G24: 13.60 | H24: 109.44 | I24: 0.00
A25: 204 | D25: 公共安全支出 | E25: 141.90 | F25: 0.00 | G25: 0.00 | H25: 141.90 | I25: 0.00
B26: 02 | D26: 公安 | E26: 133.56 | F26: 0.00 | G26: 0.00 | H26: 133.56 | I26: 0.00
A27: 204 | B27: 02 | C27: 01 | D27: 行政运行（公安） | E27: 133.56 | F27: 0.00 | G27: 0.00 | H27: 133.56 | I27: 0.00
B28: 06 | D28: 司法 | E28: 8.34 | F28: 0.00 | G28: 0.00 | H28: 8.34 | I28: 0.00
A29: 204 | B29: 06 | C29: 01 | D29: 行政运行（司法） | E29: 8.34 | F29: 0.00 | G29: 0.00 | H29: 8.34 | I29: 0.00
A30: 205 | D30: 教育支出 | E30: 14462.87 | F30: 647.20 | G30: 54.40 | H30: 4201.38 | I30: 9559.89
B31: 01 | D31: 教育管理事务 | E31: 77.28 | F31: 0.00 | G31: 0.00 | H31: 77.28 | I31: 0.00
A32: 205 | B32: 01 | C32: 01 | D32: 行政运行（教育管理事务） | E32: 77.28 | F32: 0.00 | G32: 0.00 | H32: 77.28 | I32: 0.00
B33: 02 | D33: 普通教育 | E33: 13694.13 | F33: 647.20 | G33: 40.80 | H33: 4026.24 | I33: 8979.89
A34: 205 | B34: 02 | C34: 01 | D34: 学前教育 | E34: 328.53 | F34: 0.00 | G34: 0.00 | H34: 8.28 | I34: 320.25
A35: 205 | B35: 02 | C35: 02 | D35: 小学教育 | E35: 5468.65 | F35: 206.72 | G35: 13.60 | H35: 2225.88 | I35: 3022.45
A36: 205 | B36: 02 | C36: 03 | D36: 初中教育 | E36: 3718.20 | F36: 292.62 | G36: 27.20 | H36: 1267.44 | I36: 2130.94
A37: 205 | B37: 02 | C37: 04 | D37: 高中教育 | E37: 4178.75 | F37: 147.86 | G37: 0.00 | H37: 524.64 | I37: 3506.25
B38: 03 | D38: 职业教育 | E38: 529.40 | F38: 0.00 | G38: 13.60 | H38: 55.80 | I38: 460.00
A39: 205 | B39: 03 | C39: 02 | D39: 中等职业教育 | E39: 529.40 | F39: 0.00 | G39: 13.60 | H39: 55.80 | I39: 460.00
B40: 08 | D40: 进修及培训 | E40: 162.06 | F40: 0.00 | G40: 0.00 | H40: 42.06 | I40: 120.00
A41: 205 | B41: 08 | C41: 01 | D41: 教师进修 | E41: 162.06 | F41: 0.00 | G41: 0.00 | H41: 42.06 | I41: 120.00
A42: 207 | D42: 文化旅游体育与传媒支出 | E42: 65.76 | F42: 0.00 | G42: 0.00 | H42: 65.76 | I42: 0.00
B43: 01 | D43: 文化和旅游 | E43: 34.80 | F43: 0.00 | G43: 0.00 | H43: 34.80 | I43: 0.00
A44: 207 | B44: 01 | C44: 01 | D44: 行政运行（文化） | E44: 34.80 | F44: 0.00 | G44: 0.00 | H44: 34.80 | I44: 0.00
B45: 08 | D45: 广播电视 | E45: 30.96 | F45: 0.00 | G45: 0.00 | H45: 30.96 | I45: 0.00
A46: 207 | B46: 08 | C46: 01 | D46: 行政运行 | E46: 30.96 | F46: 0.00 | G46: 0.00 | H46: 30.96 | I46: 0.00
A47: 208 | D47: 社会保障和就业支出 | E47: 768.35 | F47: 734.33 | G47: 0.00 | H47: 34.02 | I47: 0.00
B48: 01 | D48: 人力资源和社会保障管理事务 | E48: 737.75 | F48: 734.33 | G48: 0.00 | H48: 3.42 | I48: 0.00
A49: 208 | B49: 01 | C49: 01 | D49: 行政运行（人力资源和社会保障管理事务） | E49: 3.42 | F49: 0.00 | G49: 0.00 | H49: 3.42 | I49: 0.00
A50: 208 | B50: 01 | C50: 09 | D50: 社会保险经办机构 | E50: 734.33 | F50: 734.33 | G50: 0.00 | H50: 0.00 | I50: 0.00
B51: 02 | D51: 民政管理事务 | E51: 30.60 | F51: 0.00 | G51: 0.00 | H51: 30.60 | I51: 0.00
A52: 208 | B52: 02 | C52: 01 | D52: 行政运行（民政管理事务） | E52: 30.60 | F52: 0.00 | G52: 0.00 | H52: 30.60 | I52: 0.00
A53: 210 | D53: 卫生健康支出 | E53: 3312.70 | F53: 332.82 | G53: 40.80 | H53: 236.28 | I53: 2702.80
B54: 01 | D54: 卫生健康管理事务 | E54: 414.24 | F54: 332.82 | G54: 40.80 | H54: 40.62 | I54: 0.00
A55: 210 | B55: 01 | C55: 01 | D55: 行政运行（医疗卫生管理事务） | E55: 414.24 | F55: 332.82 | G55: 40.80 | H55: 40.62 | I55: 0.00
B56: 02 | D56: 公立医院 | E56: 25.50 | F56: 0.00 | G56: 0.00 | H56: 25.50 | I56: 0.00
A57: 210 | B57: 02 | C57: 02 | D57: 中医（民族）医院 | E57: 25.50 | F57: 0.00 | G57: 0.00 | H57: 25.50 | I57: 0.00
B58: 03 | D58: 基层医疗卫生机构 | E58: 2584.22 | F58: 0.00 | G58: 0.00 | H58: 115.02 | I58: 2469.20
A59: 210 | B59: 03 | C59: 01 | D59: 城市社区卫生机构 | E59: 648.96 | F59: 0.00 | G59: 0.00 | H59: 8.16 | I59: 640.80
A60: 210 | B60: 03 | C60: 02 | D60: 乡镇卫生院 | E60: 1935.26 | F60: 0.00 | G60: 0.00 | H60: 106.86 | I60: 1828.40
B61: 04 | D61: 公共卫生 | E61: 288.74 | F61: 0.00 | G61: 0.00 | H61: 55.14 | I61: 233.60
A62: 210 | B62: 04 | C62: 01 | D62: 疾病预防控制机构 | E62: 230.72 | F62: 0.00 | G62: 0.00 | H62: 51.12 | I62: 179.60
A63: 210 | B63: 04 | C63: 02 | D63: 卫生监督机构 | E63: 4.02 | F63: 0.00 | G63: 0.00 | H63: 4.02 | I63: 0.00
A64: 210 | B64: 04 | C64: 03 | D64: 妇幼保健机构 | E64: 54.00 | F64: 0.00 | G64: 0.00 | H64: 0.00 | I64: 54.00
A65: 212 | D65: 城乡社区支出 | E65: 2119.66 | F65: 0.00 | G65: 0.00 | H65: 134.28 | I65: 1985.38
B66: 01 | D66: 城乡社区管理事务 | E66: 54.78 | F66: 0.00 | G66: 0.00 | H66: 54.78 | I66: 0.00
A67: 212 | B67: 01 | C67: 01 | D67: 行政运行（城乡社区管理事务） | E67: 54.78 | F67: 0.00 | G67: 0.00 | H67: 54.78 | I67: 0.00
B68: 05 | D68: 城乡社区环境卫生 | E68: 33.36 | F68: 0.00 | G68: 0.00 | H68: 33.36 | I68: 0.00
A69: 212 | B69: 05 | C69: 01 | D69: 城乡社区环境卫生 | E69: 33.36 | F69: 0.00 | G69: 0.00 | H69: 33.36 | I69: 0.00
B70: 06 | D70: 建设市场管理与监督 | E70: 2031.52 | F70: 0.00 | G70: 0.00 | H70: 46.14 | I70: 1985.38
A71: 212 | B71: 06 | C71: 01 | D71: 建设市场管理与监督 | E71: 2031.52 | F71: 0.00 | G71: 0.00 | H71: 46.14 | I71: 1985.38
A72: 213 | D72: 农林水支出 | E72: 2284.37 | F72: 427.99 | G72: 13.60 | H72: 1842.78 | I72: 0.00
B73: 01 | D73: 农业农村 | E73: 768.26 | F73: 321.68 | G73: 0.00 | H73: 446.58 | I73: 0.00
A74: 213 | B74: 01 | C74: 01 | D74: 行政运行（农业） | E74: 768.26 | F74: 321.68 | G74: 0.00 | H74: 446.58 | I74: 0.00
B75: 02 | D75: 林业和草原 | E75: 74.08 | F75: 0.00 | G75: 13.60 | H75: 60.48 | I75: 0.00
A76: 213 | B76: 02 | C76: 01 | D76: 行政运行（林业） | E76: 74.08 | F76: 0.00 | G76: 13.60 | H76: 60.48 | I76: 0.00
B77: 03 | D77: 水利 | E77: 1442.03 | F77: 106.31 | G77: 0.00 | H77: 1335.72 | I77: 0.00
A78: 213 | B78: 03 | C78: 01 | D78: 行政运行（水利） | E78: 1442.03 | F78: 106.31 | G78: 0.00 | H78: 1335.72 | I78: 0.00
A79: 214 | D79: 交通运输支出 | E79: 161.70 | F79: 0.00 | G79: 0.00 | H79: 161.70 | I79: 0.00
B80: 01 | D80: 公路水路运输 | E80: 161.70 | F80: 0.00 | G80: 0.00 | H80: 161.70 | I80: 0.00
A81: 214 | B81: 01 | C81: 01 | D81: 行政运行（公路水路运输） | E81: 161.70 | F81: 0.00 | G81: 0.00 | H81: 161.70 | I81: 0.00
A82: 215 | D82: 资源勘探工业信息等支出 | E82: 255.58 | F82: 205.38 | G82: 13.60 | H82: 36.60 | I82: 0.00
B83: 05 | D83: 工业和信息产业监管 | E83: 255.58 | F83: 205.38 | G83: 13.60 | H83: 36.60 | I83: 0.00
A84: 215 | B84: 05 | C84: 01 | D84: 行政运行（工业和信息产业监管） | E84: 255.58 | F84: 205.38 | G84: 13.60 | H84: 36.60 | I84: 0.00
A85: 216 | D85: 商业服务业等支出 | E85: 42.06 | F85: 0.00 | G85: 0.00 | H85: 42.06 | I85: 0.00
B86: 02 | D86: 商业流通事务 | E86: 42.06 | F86: 0.00 | G86: 0.00 | H86: 42.06 | I86: 0.00
A87: 216 | B87: 02 | C87: 01 | D87: 行政运行（商业流通事务） | E87: 42.06 | F87: 0.00 | G87: 0.00 | H87: 42.06 | I87: 0.00
A88: 220 | D88: 自然资源海洋气象等支出 | E88: 52.92 | F88: 0.00 | G88: 0.00 | H88: 52.92 | I88: 0.00
B89: 01 | D89: 自然资源事务 | E89: 52.92 | F89: 0.00 | G89: 0.00 | H89: 52.92 | I89: 0.00
A90: 220 | B90: 01 | C90: 01 | D90: 行政运行（国土资源事务） | E90: 52.92 | F90: 0.00 | G90: 0.00 | H90: 52.92 | I90: 0.00

Sheet 表7
A2: 2021年一般公共预算税收返还和转移支付表
B3: 单位：万元
A4: 项 目 | B4: 预算数
A5: 上级补助收入 | B5: =SUM(B6,B11,B29) -> 295548
A6: 返还性收入 | B6: =SUM(B7:B10) -> 7869
A7: 增值税和消费税税收返还收入 | B7: 4059
A8: 所得税基数返还收入 | B8: 726
A9: 成品油价格和税费改革税收返还收入 | B9: 1112
A10: 其他税收返还收入 | B10: 1972
A11: 一般性转移支付收入 | B11: =SUM(B12:B28) -> 238679
A12: 均衡性转移支付收入 | B12: 54122
A13: 调整工资转移支付补助收入 | B13: 17954
A14: 固定基数补助收入（农村税改） | B14: 10286
A15: 县级基本财力保障机制奖补资金收入 | B15: 17939
A16: 结算补助收入 | B16: 3058
A17: 产粮(油)大县奖励资金收入 | B17: 4453
A18: 重点生态功能区转移支付收入 | B18: 2902
A19: 革命老区转移支付收入 | B19: 1178
A20: 贫困地区转移支付收入 | B20: 3200
A21: 公共安全共同财政事权转移支付收入 | B21: 928
A22: 教育共同财政事权转移支付收入 | B22: 12581
A23: 社会保障与就业共同财政事权转移支付收入 | B23: =18641+8328 -> 26969
A24: 卫生健康共同财政事权转移支付收入 | B24: 40455
A25: 农林水共同财政事权转移支付收入 | B25: 33030
A26: 交通运输共同财政事权转移支付收入 | B26: 5949
A27: 住房保障共同财政事权转移支付收入 | B27: 2675
A28: 其他一般性转移支付收入 | B28: 1000
A29: 专项转移支付收入 | B29: =SUM(B30:B45) -> 49000
A30: 一般公共服务支出
A31: 公共安全支出
A32: 教育支出
A33: 科学技术支出
A34: 科技支出
A35: 文化旅游体育与传媒支出 | B35: 150
A36: 社会保障和就业支出
A37: 卫生健康支出 | B37: 2000
A38: 节能环保支出 | B38: 20000
A39: 城乡社区支出
A40: 农林水支出 | B40: 20000
A41: 交通运输支出 | B41: 2000
A42: 商业服务业等支出
A43: 自然海洋气象等支出
A44: 住房保障支出 | B44: 4850

Sheet 表8
A1: 2020年度限额下达表
O2: 单位：万元
A3: 地区编码 | B3: 地区名称 | C3: 下达日期 | D3: 下达类型 | E3: 债务总限额 | H3: 新增债务限额
E4: 合计 | F4: 一般债务总限额 | G4: 专项债务总限额 | H4: 合计 | I4: 新增一般债务限额 | J4: 其中：新增外债限额 | K4: 新增专项债务限额 | L4: 新增土地储备专项债务限额 | M4: 新增收费公路专项债务限额 | N4: 新增棚改专项债务限额 | O4: 新增其他专项债务限额
A5: 430981 | B5: 沅江市 | C5: 2020-7-12 | D5: 调整 | E5: 411,693.00 | F5: 321,843.00 | G5: 89,850.00 | H5: 80,100.00 | I5: 18,200.00 | J5: 0.00 | K5: 61,900.00 | L5: 0.00 | M5: 0.00 | N5: 0.00 | O5: 0.00
A6: 沅江市小计 | E6: 411,693.00 | F6: 321,843.00 | G6: 89,850.00 | H6: 80,100.00 | I6: 18,200.00 | J6: 0.00 | K6: 61,900.00 | L6: 0.00 | M6: 0.00 | N6: 0.00 | O6: 0.00

Sheet 表9
A1: 截止2020年12月政府债券余额汇总表
A3: 地区：430981 沅江市 | D3: 截止期间：2020年12月 | K3: 单位：万元
A4: 地区 | B4: 余额总计 | C4: 新增债券 | F4: 置换债券 | I4: 偿还到期政府债券
C5: 合计 | D5: 一般债券 | E5: 专项债券 | F5: 合计 | G5: 一般债券 | H5: 专项债券 | I5: 合计 | J5: 一般债券 | K5: 专项债券
A6: 沅江市 | B6: 411,703.81 | C6: 183,993.53 | D6: 94,143.53 | E6: 89,850.00 | F6: 191,500.86 | G6: 191,500.86 | H6: 0.00 | I6: 36,209.42 | J6: 36,209.42 | K6: 0.00

Sheet 表10
A2: 2021年政府性基金预算收支总表
D3: 单位：万元
A4: 收 入 | C4: 支 出
A5: 项 目 | B5: 预算数 | C5: 项 目 | D5: 预算数
A6: 一、农网还贷资金收入 | C6: 一、文化体育与传媒支出
A7: 二、海南省高等级公路车辆通行附加费收入 | C7: 二、社会保障和就业支出 | D7: 4,600
A8: 三、港口建设费收入 | C8: 三、节能环保支出
A9: 四、散装水泥专项资金收入 | C9: 四、城乡社区支出 | D9: =SUM(D10,D22,D25,D27:D27,D28,D30) -> 36,580
A10: 五、新型墙体材料专项基金收入 | C10: 国有土地使用权出让收入安排的支出 | D10: =SUM(D11:D21) -> 34,000
A11: 六、旅游发展基金收入 | C11: 征地和拆迁补偿支出 | D11: 8,800
A12: 七、新菜地开发建设基金收入 | C12: 土地开发支出
A13: 八、新增建设用地土地有偿使用费收入 | C13: 城市建设支出 | D13: 6,000
A14: 九、南水北调工程建设基金收入 | C14: 农村基础设施建设支出 | D14: 1,500
A15: 十、城市公用事业附加收入 | C15: 补助被征地农民支出 | D15: 2,000
A16: 十一、国有土地收益基金收入 | C16: 土地出让业务支出 | D16: 1,050
A17: 十二、农业土地开发资金收入 | C17: 廉租住房支出
A18: 十三、国有土地使用权出让收入 | B18: =SUM(B19:B23) -> 40,000 | C18: 支付破产或改制企业职工安置费
A19: 土地出让价款收入 | B19: 40,000 | C19: 棚户区改造支出
A20: 补缴的土地价款 | C20: 公共租赁住房支出
A21: 划拨土地收入 | C21: 其他国有土地使用权出让收入安排的支出 | D21: 14,650
A22: 缴纳新增建设用地土地有偿使用费 | C22: 城市公用事业附加安排的支出 | D22: =SUM(D23:D24) -> 0
A23: 其他土地出让收入 | C23: 城市公共设施
A24: 十四、大中型水库库区基金收入 | C24: 其他城市公用事业附加安排的支出
A25: 十五、彩票公益金收入 | B25: =SUM(B26:B27) -> 0 | C25: 国有土地收益基金支出 | D25: =SUM(D26:D26) -> 0
A26: 福利彩票公益金收入 | C26: 其他国有土地收益基金支出
A27: 体育彩票公益金收入 | C27: 农业土地开发资金支出
A28: 十六、城市基础设施配套费收入 | B28: 1,380 | C28: 城市基础设施配套费安排的支出 | D28: =SUM(D29:D29) -> 1380
A29: 十七、污水处理费收入 | B29: 1,200 | C29: 城市公共设施 | D29: 1,380
A30: 十八、国家重大水利工程建设基金收入 | B30: =SUM(B31:B33) -> 0 | C30: 污水处理费安排的支出 | D30: 1,200
A31: 南水北调工程建设资金 | C31: 五、农林水支出
A32: 三峡工程后续工作资金 | C32: 六、交通运输支出 | D32: =SUM(D33) -> 55
A33: 省级重大水利工程建设资金 | C33: 车辆通行费安排的支出 | D33: =SUM(D34:D34) -> 55
A34: 十九、车辆通行费 | B34: 55 | C34: 其他车辆通行费安排的支出 | D34: 55
A35: 二十、其他政府性基金收入 | B35: 110,000 | C35: 七、资源勘探信息等支出 | D35: =SUM(D36) -> 0
C36: 散装水泥专项资金支出 | D36: =SUM(D37:D37) -> 0
C37: 其他散装水泥专项资金支出
C38: 八、地方政府专项债务付息支出 | D38: 3,400
C39: 九、其他支出 | D39: =SUM(D40:D40) -> 36,600
C40: 其他政府性基金支出 | D40: 36,600
A41: 收入合计 | B41: =SUM(B6:B14,B15:B18,B24:B25,B28:B30,B34:B35) -> 152,635 | C41: 支出合计 | D41: =SUM(D6,D7,D8,D9,D31,D32,D35,D38,D39) -> 81,235
A42: 转移性收入 | B42: =SUM(B43,B45:B48) -> 4,600 | C42: 转移性支出 | D42: =SUM(D43,D45:D48) -> 76,000
A43: 政府性基金转移收入 | B43: =SUM(B44:B44) -> 4,600 | C43: 政府性基金转移支付 | D43: =SUM(D44:D44) -> 0
A44: 政府性基金补助收入 | B44: 4,600 | C44: 政府性基金上解支出
A45: 上年结余收入 | C45: 调出资金 | D45: 76,000
A46: 地方政府专项债务转贷收入 | C46: 地方政府专项债务转贷支出
C47: 地方政府专项债务还本支出
A48: 调入资金 | C48: 年终结余
A49: 收入总计 | B49: =SUM(B41:B42) -> 157,235 | C49: 支出总计 | D49: =SUM(D41:D42) -> 157,235

Sheet 表11
A2: 2021年政府性基金预算收入表
B3: 单位：万元
A4: 收 入
A5: 项 目 | B5: 预算数
A6: 一、农网还贷资金收入
A7: 二、海南省高等级公路车辆通行附加费收入
A8: 三、港口建设费收入
A9: 四、散装水泥专项资金收入
A10: 五、新型墙体材料专项基金收入
A11: 六、旅游发展基金收入
A12: 七、新菜地开发建设基金收入
A13: 八、新增建设用地土地有偿使用费收入
A14: 九、南水北调工程建设基金收入
A15: 十、城市公用事业附加收入
A16: 十一、国有土地收益基金收入
A17: 十二、农业土地开发资金收入
A18: 十三、国有土地使用权出让收入 | B18: =SUM(B19:B23) -> 40,000
A19: 土地出让价款收入 | B19: 40,000
A20: 补缴的土地价款
A21: 划拨土地收入
A22: 缴纳新增建设用地土地有偿使用费
A23: 其他土地出让收入
A24: 十四、大中型水库库区基金收入
A25: 十五、彩票公益金收入 | B25: =SUM(B26:B27) -> 0
A26: 福利彩票公益金收入
A27: 体育彩票公益金收入
A28: 十六、城市基础设施配套费收入 | B28: 1,380
A29: 十七、污水处理费收入 | B29: 1,200
A30: 十八、国家重大水利工程建设基金收入 | B30: =SUM(B31:B33) -> 0
A31: 南水北调工程建设资金
A32: 三峡工程后续工作资金
A33: 省级重大水利工程建设资金
A34: 十九、车辆通行费 | B34: 55
A35: 二十、其他政府性基金收入 | B35: 110,000
A41: 收入合计 | B41: =SUM(B6:B14,B15:B18,B24:B25,B28:B30,B34:B35) -> 152,635
A42: 转移性收入 | B42: =SUM(B43,B45:B48) -> 4,600
A43: 政府性基金转移收入 | B43: =SUM(B44:B44) -> 4,600
A44: 政府性基金补助收入 | B44: 4,600
A45: 上年结余收入
A46: 地方政府专项债务转贷收入
A48: 调入资金
A49: 收入总计 | B49: =SUM(B41:B42) -> 157,235

Sheet 表12
A2: 2021年政府性基金预算支出表
B3: 单位：万元
A4: 项 目 | B4: 预算数
A5: 一、文化体育与传媒支出
A6: 二、社会保障和就业支出 | B6: 4,600
A7: 三、节能环保支出
A8: 四、城乡社区支出 | B8: =SUM(B9,B21,B24,B26:B26,B27,B29) -> 36,580
A9: 国有土地使用权出让收入安排的支出 | B9: =SUM(B10:B20) -> 34,000
A10: 征地和拆迁补偿支出 | B10: 8,800
A11: 土地开发支出
A12: 城市建设支出 | B12: 6,000
A13: 农村基础设施建设支出 | B13: 1,500
A14: 补助被征地农民支出 | B14: 2,000
A15: 土地出让业务支出 | B15: 1,050
A16: 廉租住房支出
A17: 支付破产或改制企业职工安置费
A18: 棚户区改造支出
A19: 公共租赁住房支出
A20: 其他国有土地使用权出让收入安排的支出 | B20: 14,650
A21: 城市公用事业附加安排的支出 | B21: =SUM(B22:B23) -> 0
A22: 城市公共设施
A23: 其他城市公用事业附加安排的支出
A24: 国有土地收益基金支出 | B24: =SUM(B25:B25) -> 0
A25: 其他国有土地收益基金支出
A26: 农业土地开发资金支出
A27: 城市基础设施配套费安排的支出 | B27: =SUM(B28:B28) -> 1380
A28: 城市公共设施 | B28: 1,380
A29: 污水处理费安排的支出 | B29: 1,200
A30: 五、农林水支出
A31: 六、交通运输支出 | B31: =SUM(B32) -> 55
A32: 车辆通行费安排的支出 | B32: =SUM(B33:B33) -> 55
A33: 其他车辆通行费安排的支出 | B33: 55
A34: 七、资源勘探信息等支出 | B34: =SUM(B35) -> 0
A35: 散装水泥专项资金支出 | B35: =SUM(B36:B36) -> 0
A36: 其他散装水泥专项资金支出
A37: 八、地方政府专项债务付息支出 | B37: 3,400
A38: 九、其他支出 | B38: =SUM(B39:B39) -> 36,600
A39: 其他政府性基金支出 | B39: 36,600
A40: 支出合计 | B40: =SUM(B5,B6,B7,B8,B30,B31,B34,B37,B38) -> 81,235
A41: 转移性支出 | B41: =SUM(B42,B44:B47) -> 76,000
A42: 政府性基金转移支付 | B42: =SUM(B43:B43) -> 0
A43: 政府性基金上解支出
A44: 调出资金 | B44: 76,000
A45: 地方政府专项债务转贷支出
A46: 地方政府专项债务还本支出
A47: 年终结余
A48: 支出总计 | B48: =SUM(B40:B41) -> 157,235

Sheet 表13
A2: 2021年沅江市政府性基金转移支付情况表
B3: 单位：万元
A4: 项目 | B4: 预算数
A5: 一、国有土地收益基金收入
A6: 二、农业土地开发资金收入
A7: 三、国有土地使用权出让收入
A8: 土地出让价款收入
A9: 补缴的土地价款
A10: 划拨土地收入
A11: 其他土地出让收入
A12: 四、大中型水库库区基金收入
A13: 五、彩票公益金收入
A14: 福利彩票公益金收入
A15: 体育彩票公益金收入
A16: 六、城市基础设施配套费收入
A17: 七、小型水库移民扶助基金收入
A18: 八、车辆通行费收入
A19: 九、污水处理费收入
A20: 十、其他政府性基金收入
A22: 合计 | B22: =SUM(B12+B13+B20) -> 0
A23: 说明：我市2019年政府性基金转移支付无提前下达数据

Sheet 13-1
A2: 2021年沅江市政府性基金转移支付情况表（分地区）
B3: 单位：万元
A4: 地 区 | B4: 预算数
A5: 胭脂湖街道
A6: 琼湖街道
A7: 新湾镇
A8: 南嘴镇
A9: 草尾镇
A10: 阳罗洲镇
A11: 四季红镇
A12: 黄茅洲镇
A13: 南大膳镇
A14: 共华镇
A15: 泗湖山镇
A16: 茶盘洲镇
A17: 合计
A18: 说明：我市2019年政府性基金转移支付无提前下达数据

Sheet 13.2
A2: 2021年沅江市政府性基金转移支付情况表（分项目）
B3: 单位：万元
A4: 项目 | B4: 预算数
A5: 一、国有土地收益基金收入
A6: 二、农业土地开发资金收入
A7: 三、国有土地使用权出让收入
A8: 土地出让价款收入
A9: 补缴的土地价款
A10: 划拨土地收入
A11: 其他土地出让收入
A12: 四、大中型水库库区基金收入
A13: 五、彩票公益金收入
A14: 福利彩票公益金收入
A15: 体育彩票公益金收入
A16: 六、城市基础设施配套费收入
A17: 七、小型水库移民扶助基金收入
A18: 八、车辆通行费收入
A19: 九、污水处理费收入
A20: 十、其他政府性基金收入
A22: 合计 | B22: =SUM(B12+B13+B20) -> 0
A23: 说明：我市2019年政府性基金转移支付无提前下达数据

Sheet 表14
A1: 2020年度限额下达表
O2: 单位：万元
A3: 地区编码 | B3: 地区名称 | C3: 下达日期 | D3: 下达类型 | E3: 债务总限额 | H3: 新增债务限额
E4: 合计 | F4: 一般债务总限额 | G4: 专项债务总限额 | H4: 合计 | I4: 新增一般债务限额 | J4: 其中：新增外债限额 | K4: 新增专项债务限额 | L4: 新增土地储备专项债务限额 | M4: 新增收费公路专项债务限额 | N4: 新增棚改专项债务限额 | O4: 新增其他专项债务限额
A5: 430981 | B5: 沅江市 | C5: 2020-7-12 | D5: 调整 | E5: 411,693.00 | F5: 321,843.00 | G5: 89,850.00 | H5: 80,100.00 | I5: 18,200.00 | J5: 0.00 | K5: 61,900.00 | L5: 0.00 | M5: 0.00 | N5: 0.00 | O5: 0.00
A6: 沅江市小计 | E6: 411,693.00 | F6: 321,843.00 | G6: 89,850.00 | H6: 80,100.00 | I6: 18,200.00 | J6: 0.00 | K6: 61,900.00 | L6: 0.00 | M6: 0.00 | N6: 0.00 | O6: 0.00

Sheet 表15
A1: 截止2020年12月政府债券余额汇总表
A3: 地区：430981 沅江市 | D3: 截止期间：2020年12月 | K3: 单位：万元
A4: 地区 | B4: 余额总计 | C4: 新增债券 | F4: 置换债券 | I4: 偿还到期政府债券
C5: 合计 | D5: 一般债券 | E5: 专项债券 | F5: 合计 | G5: 一般债券 | H5: 专项债券 | I5: 合计 | J5: 一般债券 | K5: 专项债券
A6: 沅江市 | B6: 411,703.81 | C6: 183,993.53 | D6: 94,143.53 | E6: 89,850.00 | F6: 191,500.86 | G6: 191,500.86 | H6: 0.00 | I6: 36,209.42 | J6: 36,209.42 | K6: 0.00

Sheet 表16
A2: 2021年沅江市国有资本经营预算收支总表
D3: 单位：千元
A4: 收 入 | C4: 支 出
A5: 项 目 | B5: 本年预算 | C5: 项 目 | D5: 本年预算
A6: 一、利润收入 | C6: 一、社会保障和就业支出
C7: 二、国有资本经营预算支出 | D7: 15000.00
A8: 二、股利、股息收入 | B8: 15000.00 | C8: 其他国有资本经营预算支出 | D8: 15000.00
A9: 琼湖投资公司 | B9: 10000.00 | C9: 三、转移性支出
A10: 桔城投资公司 | B10: 5000.00 | C10: 调出资金
A13: 三、产权转让收入
A15: 四、清算收入
A17: 五、其他国有资本经营收入
A24: 本年收入合计 | B24: 15000.00 | C24: 本年支出合计 | D24: 15000.00

Sheet 表17
A2: 2021年沅江市国有资本经营预算收入表
B3: 单位：千元
A4: 收 入
A5: 项 目 | B5: 本年预算
A6: 一、利润收入
A8: 二、股利、股息收入 | B8: 15000.00
A9: 琼湖投资公司 | B9: 10000.00
A10: 桔城投资公司 | B10: 5000.00
A13: 三、产权转让收入
A15: 四、清算收入
A17: 五、其他国有资本经营收入
A24: 本年收入合计 | B24: 15000.00

Sheet 表18
A2: 2021年沅江市国有资本经营预算支出表
B3: 单位：千元
A4: 支 出
A5: 项 目 | B5: 本年预算
A6: 一、社会保障和就业支出
A7: 二、国有资本经营预算支出 | B7: 15000.00
A8: 其他国有资本经营预算支出 | B8: 15000.00
A9: 三、转移性支出
A10: 调出资金
A24: 本年支出合计 | B24: 15000.00

Sheet 表19
A2: 2021年社会保险基金预算总表
A3: 沅江市 | H3: 单位：万元
A4: 项 目 | B4: 合计 | C4: 机关事业养老保险基金 | D4: 城乡居民养老保险基金 | E4: 失业保险基金 | F4: 职工基本医疗(生育）保险基金 | G4: 城乡居民基本 医疗保险基金 | H4: 工伤保险基金
A5: 一、上年结余 | B5: =SUM(C5:H5) -> 109,286.00 | C5: 0 | D5: 65,147.00 | E5: 2,761.00 | F5: 22,082.00 | G5: 16,839.00 | H5: 2,457.00
A6: 二、本年收入 | B6: 139,661.00 | C6: 50,168.00 | D6: 18,985.00 | E6: 470.00 | F6: 14,572.00 | G6: 53,904.00 | H6: 1,562.00
A7: 其中： 1、保险费收入 | B7: 64,668.00 | C7: 26,050.00 | D7: 4,956.00 | E7: 425.00 | F7: 14,296.00 | G7: 17,429.00 | H7: 1,512.00
A8: 2、利息收入 | B8: 657.00 | C8: 26.00 | D8: 77.00 | E8: 33.00 | F8: 256.00 | G8: 245.00 | H8: 20.00
A9: 3、财政补贴收入 | B9: 73,431.00 | C9: 23,358.00 | D9: 13,939.00 | G9: 36,104.00 | H9: 30.00
A10: 4、其他收入 | B10: 133.00 | D10: 7.00 | G10: 126.00
A11: 5、转移收入 | B11: 772.00 | C11: 734.00 | D11: 6.00 | E11: 12.00 | F11: 20.00
A12: 6、上级补助收入 | B12: 0
A13: 7、下级上解收入 | B13: 0
A14: 三、本年支出 | B14: 131,406.00 | C14: 50,168.00 | D14: 15,090.00 | E14: 416.00 | F14: 12,098.00 | G14: 51,487.00 | H14: 2,147.00
A15: 其中： 1、社会保险待遇支出 | B15: 131,040.00 | C15: 50,081.00 | D15: 14,973.00 | E15: 312.00 | F15: 12,040.00 | G15: 51,487.00 | H15: 2,147.00
A16: 2、其他支出 | B16: 75.00 | E16: 75.00
A17: 3、转移支出 | B17: 262.00 | C17: 87.00 | D17: 117.00 | F17: 58.00
A18: 4、补助下级支出 | B18: 0
A19: 5、上解上级支出 | B19: 29.00 | E19: 29.00
A20: 四、本年收支结余 | B20: 8,255.00 | C20: 0 | D20: 3,895.00 | E20: 54.00 | F20: 2,474.00 | G20: 2,417.00 | H20: -585.00
A21: 五、年末滚存结余 | B21: 117,541.00 | C21: 0 | D21: 69,042.00 | E21: 2,815.00 | F21: 24,556.00 | G21: 19,256.00 | H21: 1,872.00

Sheet 表20
A2: 2021年社会保险基金预算收入表
H4: 单位：元
A5: 项 目 | B5: 合计 | C5: 机关事业养老保险基金 | D5: 城乡居民养老保险基金 | E5: 失业保险基金 | F5: 职工基本医疗(生育）保险基金 | G5: 城乡居民基本 医疗保险基金 | H5: 工伤保险基金
A6: 一、上年结余 | B6: =SUM(C6:H6) -> 109,286.00 | C6: 0 | D6: 65,147.00 | E6: 2,761.00 | F6: 22,082.00 | G6: 16,839.00 | H6: 2,457.00
A7: 二、本年收入 | B7: 139,661.00 | C7: 50,168.00 | D7: 18,985.00 | E7: 470.00 | F7: 14,572.00 | G7: 53,904.00 | H7: 1,562.00
A8: 其中： 1、保险费收入 | B8: 64,668.00 | C8: 26,050.00 | D8: 4,956.00 | E8: 425.00 | F8: 14,296.00 | G8: 17,429.00 | H8: 1,512.00
A9: 2、利息收入 | B9: 657.00 | C9: 26.00 | D9: 77.00 | E9: 33.00 | F9: 256.00 | G9: 245.00 | H9: 20.00
A10: 3、财政补贴收入 | B10: 73,431.00 | C10: 23,358.00 | D10: 13,939.00 | G10: 36,104.00 | H10: 30.00
A11: 4、其他收入 | B11: 133.00 | D11: 7.00 | G11: 126.00
A12: 5、转移收入 | B12: 772.00 | C12: 734.00 | D12: 6.00 | E12: 12.00 | F12: 20.00
A13: 6、上级补助收入 | B13: 0
A14: 7、下级上解收入 | B14: 0

Sheet 表21
A2: 2021年社会保险基金预算支出表
A4: 沅江市 | H4: 单位：元
A5: 项 目 | B5: 合计 | C5: 机关事业养老保险基金 | D5: 城乡居民养老保险基金 | E5: 失业保险基金 | F5: 职工基本医疗(生育）保险基金 | G5: 城乡居民基本 医疗保险基金 | H5: 工伤保险基金
A6: 三、本年支出 | B6: =SUM(C6:H6) -> 131,406.00 | C6: 50,168.00 | D6: 15,090.00 | E6: 416.00 | F6: 12,098.00 | G6: 51,487.00 | H6: 2,147.00
A7: 其中： 1、社会保险待遇支出 | B7: 131,040.00 | C7: 50,081.00 | D7: 14,973.00 | E7: 312.00 | F7: 12,040.00 | G7: 51,487.00 | H7: 2,147.00
A8: 2、其他支出 | B8: 75.00 | E8: 75.00
A9: 3、转移支出 | B9: 262.00 | C9: 87.00 | D9: 117.00 | F9: 58.00
A10: 4、补助下级支出 | B10: 0
A11: 5、上解上级支出 | B11: 29.00 | E11: 29.00

Sheet 表22
A2: 2020年沅江市政府债券还本付息明细表
C3: 单位：万元
A5: 项 目 | B5: 还本额 | C5: 付息额
A6: 一般债券 | B6: 12134 | C6: 11267.00
A7: 专项债券
A8: 合计 | B8: =SUM(B6:B7) -> 12134.00 | C8: =SUM(C6:C7) -> 11267.00

Sheet 表23
A1: 2020年一般债券资金使用安排情况表
D2: 单位：万元
B3: 一般债券
B4: 收入 | C4: 金额 | D4: 项目名称
A5: 2020年 | B5: 18200 | C5: 3900 | D5: 茶草线公路
C6: 1900 | D6: 漉乐线公路
C7: 1600 | D7: 沅江市芙蓉太白小学建设项目
C8: 1700 | D8: 自然村通组路建设
C9: 2100 | D9: 茶草线公路
C10: 7000 | D10: 沅江市乡镇污水管网建设

Sheet 表24
A1: 2020年专项债券资金使用安排情况表
D2: 单位：万元
B3: 专项债券
B4: 收入 | C4: 支出明细 | D4: 项目名称
A5: 2020年 | B5: 61900 | C5: 4600 | D5: 沅江市殡仪馆改扩建工程项目建设
C6: 15000 | D6: 沅江市城区污水收集处理及雨水排放防涝建设工程（一期）
C7: 6900 | D7: 沅江市老城区供水管网改造建设项目
C8: 35400 | D8: 益阳市沅江（省级）高新区智能产业园及配套设施建设项目

Sheet 表25
A2: 2021年沅江市政府债券还本付息明细表
C3: 单位：万元
A5: 项 目 | B5: 还本额 | C5: 付息额
A6: 一般债券 | C6: 11119.00
A7: 专项债券 | C7: 3400.00
A8: 合计 | B8: =SUM(B6:B7) -> 0.00 | C8: =SUM(C6:C7) -> 14519.00

Sheet 表26
A2: 2021年本级安排财政扶贫资金预算分配表
D3: 单位：万元
A4: 序号 | B4: 内容 | C4: 安排 金额 | D4: 备注
B5: 合计 | C5: =SUM(C6:C8) -> 1500
A6: 1 | B6: 基础设施建设 | C6: 1000
A7: 2 | B7: 生产发展 | C7: 300
A8: 3 | B8: 其他扶贫资金 | C8: 200

Sheet 表十一（作废） (hidden)
A1: 表十一
A2: 市直部门单位专项明细表
A3: 单位：千元
A4: 单位名称 | B4: 功能科目 | C4: 项目名称 | D4: 经费拨款
A6: [001001]人大办 | B6: [2010101]行政运行 | C6: 常委会及主任会议专项经费 | D6: 200.00
A7: [001001]人大办 | B7: [2010101]行政运行 | C7: 中心工作专项工作经费 | D7: 100.00
A8: [001001]人大办 | B8: [2010101]行政运行 | C8: 三湘农产品质量安全经费 | D8: 60.00
A9: [001001]人大办 | B9: [2010101]行政运行 | C9: 民族团结行专项 | D9: 100.00
A10: [001001]人大办 | B10: [2010101]行政运行 | C10: 环保世界行专项 | D10: 90.00
A11: [001001]人大办 | B11: [2010101]行政运行 | C11: 三湘农民健康行专项 | D11: 100.00
A12: [001001]人大办 | B12: [2010101]行政运行 | C12: 上级专题调研及视察经费 | D12: 150.00
A13: [001001]人大办 | B13: [2010101]行政运行 | C13: 执法检查经费 | D13: 100.00
A14: [001001]人大办 | B14: [2010101]行政运行 | C14: 监督专项经费 | D14: 150.00
A15: [001001]人大办 | B15: [2010108]代表工作 | C15: 代表工作经费专项 | D15: 402.00
A16: [001001]人大办 | B16: [2010109]人大信访工作 | C16: 信访工作经费 | D16: 40.00
A17: [001001]人大办 | B17: [2010199]其他人大事务支出 | C17: 扶贫工作专项 | D17: 0.00
A18: [001001]人大办 | B18: [2010199]其他人大事务支出 | C18: 老干部专项经费 | D18: 0.00
A19: [001001]人大办 | B19: [2010199]其他人大事务支出 | C19: 委室调研经费专项 | D19: 200.00
A20: [001001]人大办 汇总 | D20: =SUBTOTAL(9,D6:D19) -> 1,692.00
A21: [001002]政协办 | B21: [2010201]行政运行 | C21: 委室调研经费 | D21: 350.00
A22: [001002]政协办 | B22: [2010202]一般行政管理事务 | C22: 全市委员调研经费 | D22: 199.20
A23: [001002]政协办 | B23: [2010202]一般行政管理事务 | C23: 走访外地委员经费 | D23: 70.00
A24: [001002]政协办 | B24: [2010202]一般行政管理事务 | C24: 委员活动及委员工作室工作经费 | D24: 150.00
A25: [001002]政协办 | B25: [2010205]委员视察 | C25: 委员视察经费 | D25: 70.00
A26: [001002]政协办 | B26: [2010206]参政议政 | C26: 双月协商工作经费 | D26: 50.00
A27: [001002]政协办 | B27: [2010206]参政议政 | C27: 民主监督及民主评议工作经费 | D27: 100.00
A28: [001002]政协办 | B28: [2010299]其他政协事务支出 | C28: 上级专题调研及考察经费 | D28: 200.00
A29: [001002]政协办 | B29: [2010299]其他政协事务支出 | C29: 经促会工作经费 | D29: 400.00
A30: [001002]政协办 汇总 | D30: =SUBTOTAL(9,D21:D29) -> 1,589.20
A31: [001003]市委办 | B31: [2013102]一般行政管理事务 | C31: 业务工作及运行维护专项经费 | D31: 321.50
A32: [001003]市委办 | B32: [2013102]一般行政管理事务 | C32: 公务车运行及维护 | D32: 60.00
A33: [001003]市委办 | B33: [2013102]一般行政管理事务 | C33: 调研工作经费 | D33: 310.00
A34: [001003]市委办 | B34: [2013102]一般行政管理事务 | C34: 市全面深化改革领导小组办公室工作经费 | D34: 100.00
A35: [001003]市委办 | B35: [2013102]一般行政管理事务 | C35: 市委保密工作经费 | D35: 80.00
A36: [001003]市委办 | B36: [2013102]一般行政管理事务 | C36: 市委政府保密专网租费 | D36: 52.00
A37: [001003]市委办 | B37: [2013102]一般行政管理事务 | C37: 机要通信专网租费及运行维护费 | D37: 330.00
A38: [001003]市委办 | B38: [2013102]一般行政管理事务 | C38: 督查专项经费 | D38: 330.00
A39: [001003]市委办 | B39: [2013102]一般行政管理事务 | C39: 《沅江工作》编印专项经费 | D39: 130.00
A40: [001003]市委办 | B40: [2013102]一般行政管理事务 | C40: 全市办公室主任业务培训工作经费 | D40: 70.00
A41: [001003]市委办 | B41: [2013102]一般行政管理事务 | C41: 市全面小康领导小组办公室工作经费 | D41: 120.00
A42: [001003]市委办 | B42: [2013102]一般行政管理事务 | C42: 扶贫工作专项经费 | D42: 80.00
A43: [001003]市委办 | B43: [2013102]一般行政管理事务 | C43: 电子政务内网运行维护经费 | D43: 0.00
A44: [001003]市委办 汇总 | D44: =SUBTOTAL(9,D31:D43) -> 1,983.50
A45: [001004]党史办 | B45: [2013102]一般行政管理事务 | C45: “申苏”专项 | D45: 30.00
A46: [001004]党史办 | B46: [2013102]一般行政管理事务 | C46: 联络组经费 | D46: 10.00
A47: [001004]党史办 | B47: [2013102]一般行政管理事务 | C47: 专题编写经费 | D47: 43.50
A48: [001004]党史办 | B48: [2013102]一般行政管理事务 | C48: 《党史专题》、《沅江纪事》、《益阳党史执政实录》编辑工作经费 | D48: 145.00
A49: [001004]党史办 汇总 | D49: =SUBTOTAL(9,D45:D48) -> 228.50
A50: [001005]机关事务服务中心 | B50: [2010302]一般行政管理事务 | C50: 非税收入执收成本 | D50: 0.00
A51: [001005]机关事务服务中心 汇总 | D51: =SUBTOTAL(9,D50) -> 0.00
A52: [001006]组织部 | B52: [2013201]行政运行 | C52: 大组工网建设 | D52: 35.50
A53: [001006]组织部 | B53: [2013201]行政运行 | C53: 党建工作专项经费 | D53: 662.50
A54: [001006]组织部 | B54: [2013202]一般行政管理事务 | C54: 信息调研工作经费 | D54: 50.00
A55: [001006]组织部 | B55: [2013202]一般行政管理事务 | C55: 选调生和大学生村官管理专项 | D55: 100.00
A56: [001006]组织部 | B56: [2013202]一般行政管理事务 | C56: 党代表调研活动经费 | D56: 300.00
A57: [001006]组织部 | B57: [2013202]一般行政管理事务 | C57: 两新工委及指导员津贴 | D57: 400.00
A58: [001006]组织部 | B58: [2013203]机关服务 | C58: 组工干部培训工作经费 | D58: 122.00
A59: [001006]组织部 | B59: [2013299]其他组织事务支出 | C59: 干部档案管理与信息化建设工作经费 | D59: 50.00
A60: [001006]组织部 | B60: [2013299]其他组织事务支出 | C60: 驻村办工作经费 | D60: 50.00
A61: [001006]组织部 | B61: [2013299]其他组织事务支出 | C61: 领导班子年度考核专项经费 | D61: 90.00
A62: [001006]组织部 | B62: [2013299]其他组织事务支出 | C62: 绩效考核办工作经费 | D62: 260.00
A63: [001006]组织部 | B63: [2013302]一般行政管理事务 | C63: 党员教育经费 | D63: 400.00
A64: [001006]组织部 | B64: [2013302]一般行政管理事务 | C64: 干部异地培训经费 | D64: 200.00
A65: [001006]组织部 | B65: [2013302]一般行政管理事务 | C65: 七一表彰 | D65: 300.00
A66: [001006]组织部 汇总 | D66: =SUBTOTAL(9,D52:D65) -> 3,020.00
A67: [001008]统战部 | B67: [2013401]行政运行 | C67: 民族事业补助及宗教执法费用 | D67: 60.00
A68: [001008]统战部 | B68: [2013401]行政运行 | C68: 业务费专项 | D68: 32.00
A69: [001008]统战部 | B69: [2013401]行政运行 | C69: 四大宗教团体管理费用 | D69: 60.00
A70: [001008]统战部 | B70: [2013401]行政运行 | C70: 台办工作经费 | D70: 50.00
A71: [001008]统战部 | B71: [2013401]行政运行 | C71: 黄埔同学会工作经费 | D71: 5.00
A72: [001008]统战部 | B72: [2013401]行政运行 | C72: 建立及维护非公经济代表人士评价体系 | D72: 40.00
A73: [001008]统战部 | B73: [2013401]行政运行 | C73: 专项工作经费 | D73: 423.00
A74: [001008]统战部 | B74: [2013402]一般行政管理事务 | C74: 四同创建工作经费 | D74: 80.00
A75: [001008]统战部 | B75: [2013402]一般行政管理事务 | C75: 党外代表人士队伍建设 | D75: 40.00
A76: [001008]统战部 | B76: [2013402]一般行政管理事务 | C76: 党外知识分子联谊会工作经费 | D76: 120.00
A77: [001008]统战部 汇总 | D77: =SUBTOTAL(9,D67:D76) -> 910.00
A78: [001009]政法委 | B78: [2013102]一般行政管理事务 | C78: 国安工作经费 | D78: 111.00
A79: [001009]政法委 | B79: [2013102]一般行政管理事务 | C79: 维稳工作经费 | D79: 198.50
A80: [001009]政法委 | B80: [2013102]一般行政管理事务 | C80: 法学会工作经费 | D80: 100.00
A81: [001009]政法委 | B81: [2013102]一般行政管理事务 | C81: 扫黑除恶专项斗争工作经费 | D81: 200.00
A82: [001009]政法委 汇总 | D82: =SUBTOTAL(9,D78:D81) -> 609.50
A83: [001010]工商联 | B83: [2012801]行政运行 | C83: "四同创建"工作经费 | D83: 30.00
A84: [001010]工商联 | B84: [2012802]一般行政管理事务 | C84: 招商引资 | D84: 30.00
A85: [001010]工商联 | B85: [2012802]一般行政管理事务 | C85: 精准扶贫 | D85: 30.00
A86: [001010]工商联 | B86: [2012802]一般行政管理事务 | C86: 商会扶持资金 | D86: 70.00
A87: [001010]工商联 | B87: [2012901]行政运行 | C87: 专项工作经费 | D87: 13.00
A88: [001010]工商联 | B88: [2012901]行政运行 | C88: 非公党建工作经费 | D88: 10.00
A89: [001010]工商联 | B89: [2012901]行政运行 | C89: 商会建设、企业维权及教育培训等经费 | D89: 106.00
A90: [001010]工商联 汇总 | D90: =SUBTOTAL(9,D83:D89) -> 289.00
A91: [001011]妇联 | B91: [2012950]事业运行 | C91: 妇女儿童工作经费 | D91: 370.00
A92: [001011]妇联 | B92: [2012950]事业运行 | C92: 乡镇妇联组织工作经费 | D92: 240.00
A93: [001011]妇联 汇总 | D93: =SUBTOTAL(9,D91:D92) -> 610.00
A94: [001012]团委 | B94: [2012902]一般行政管理事务 | C94: 青少年事业发展专项 | D94: 280.00
A95: [001012]团委 | B95: [2012902]一般行政管理事务 | C95: 乡镇大团委建设项目 | D95: 280.00
A96: [001012]团委 汇总 | D96: =SUBTOTAL(9,D94:D95) -> 560.00
A97: [001013]“610”办 | B97: [2013601]行政运行 | C97: 办案经费 | D97: 20.00
A98: [001013]“610”办 | B98: [2013601]行政运行 | C98: 反邪教外勤工作经费 | D98: 20.00
A99: [001013]“610”办 | B99: [2013601]行政运行 | C99: 反邪教工作经费 | D99: 50.00
A100: [001013]“610”办 | B100: [2013601]行政运行 | C100: 教育转化及租车 | D100: 40.00
A101: [001013]“610”办 | B101: [2013601]行政运行 | C101: 反邪教联防联控费用 | D101: 40.00
A102: [001013]“610”办 汇总 | D102: =SUBTOTAL(9,D97:D101) -> 170.00
A103: [001014]政府办 | B103: [2010302]一般行政管理事务 | C103: 督查专项经费 | D103: 120.00
A104: [001014]政府办 | B104: [2010302]一般行政管理事务 | C104: 法律顾问工作专项经费 | D104: 300.00
A105: [001014]政府办 | B105: [2010302]一般行政管理事务 | C105: 政府工作报告专项经费 | D105: 80.00
A106: [001014]政府办 | B106: [2010302]一般行政管理事务 | C106: 法制工作专项经费 | D106: 100.00
A107: [001014]政府办 | B107: [2010302]一般行政管理事务 | C107: 应急专项经费 | D107: 200.00
A108: [001014]政府办 | B108: [2010302]一般行政管理事务 | C108: 提案议案办理经费 | D108: 80.00
A109: [001014]政府办 | B109: [2010302]一般行政管理事务 | C109: 政府法制专项经费 | D109: 100.00
A110: [001014]政府办 | B110: [2010302]一般行政管理事务 | C110: 打击非法集资专项经费 | D110: 91.00
A111: [001014]政府办 | B111: [2010302]一般行政管理事务 | C111: 应急平台及12345平台维修费 | D111: 60.00
A112: [001014]政府办 | B112: [2010302]一般行政管理事务 | C112: 专项工作经费 | D112: 100.00
A113: [001014]政府办 | B113: [2010302]一般行政管理事务 | C113: 公务用车运行维护经费 | D113: 60.00
A114: [001014]政府办 | B114: [2010302]一般行政管理事务 | C114: 市政府重点办专项经费 | D114: 100.00
A115: [001014]政府办 | B115: [2010302]一般行政管理事务 | C115: 市志办工作专项经费 | D115: 80.00
A116: [001014]政府办 | B116: [2010302]一般行政管理事务 | C116: 业务工作及运行维护专项 | D116: 225.00
A117: [001014]政府办 | B117: [2010302]一般行政管理事务 | C117: 重大决策调研专项经费 | D117: 200.00
A118: [001014]政府办 | B118: [2010302]一般行政管理事务 | C118: 报刊杂志及政府专项费用 | D118: 70.00
A119: [001014]政府办 | B119: [2010302]一般行政管理事务 | C119: 电视电话会议系统租金及宽带费 | D119: 80.00
A120: [001014]政府办 | B120: [2010302]一般行政管理事务 | C120: 市长热线专项经费 | D120: 80.00
A121: [001014]政府办 汇总 | D121: =SUBTOTAL(9,D103:D120) -> 2,126.00
A122: [001015]政务中心 | B122: [2010303]机关服务 | C122: 临聘人员经费 | D122: 360.00
A123: [001015]政务中心 | B123: [2010306]政务公开审批 | C123: 并联审批专项 | D123: 50.00
A124: [001015]政务中心 | B124: [2010306]政务公开审批 | C124: 中心运转经费 | D124: 270.00
A125: [001015]政务中心 汇总 | D125: =SUBTOTAL(9,D122:D124) -> 680.00
A126: [001016]信访局 | B126: [2010308]信访事务 | C126: 接访劝返经费 | D126: 70.00
A127: [001016]信访局 | B127: [2010308]信访事务 | C127: 特殊信访人员特困救助金 | D127: 80.00
A128: [001016]信访局 汇总 | D128: =SUBTOTAL(9,D126:D127) -> 150.00
A129: [001017]纪委 | B129: [2011101]行政运行 | C129: 反腐倡廉宣传教育工作专项 | D129: 140.00
A130: [001017]纪委 | B130: [2011101]行政运行 | C130: 作风办问责办工作经费 | D130: 160.00
A131: [001017]纪委 | B131: [2011101]行政运行 | C131: 廉政教育基地和办案点运行维护费 | D131: 80.00
A132: [001017]纪委 | B132: [2011101]行政运行 | C132: 乡镇纪检组织建设工作经费 | D132: 160.00
A133: [001017]纪委 | B133: [2011101]行政运行 | C133: 执法用车运行维护费 | D133: 120.00
A134: [001017]纪委 | B134: [2011101]行政运行 | C134: 纪检监察一体化管理联动工作经费 | D134: 150.00
A135: [001017]纪委 汇总 | D135: =SUBTOTAL(9,D129:D134) -> 810.00
A136: [001018]编委 | B136: [2013102]一般行政管理事务 | C136: 专项工作经费 | D136: 124.50
A137: [001018]编委 | B137: [2013102]一般行政管理事务 | C137: 大编委工作经费 | D137: 15.50
A138: [001018]编委 | B138: [2013102]一般行政管理事务 | C138: 年报和中文域名注册经费 | D138: 20.00
A139: [001018]编委 | B139: [2013102]一般行政管理事务 | C139: 事业法人年检登记费 | D139: 40.00
A140: [001018]编委 | B140: [2013102]一般行政管理事务 | C140: 全市行政事业单位中文域名经费 | D140: 100.00
A141: [001018]编委 汇总 | D141: =SUBTOTAL(9,D136:D140) -> 300.00
A142: [001019]审计局 | B142: [2010804]审计业务 | C142: 预算执行及行政专项审计经费 | D142: 100.00
A143: [001019]审计局 | B143: [2010804]审计业务 | C143: 经济责任审计经费 | D143: 120.00
A144: [001019]审计局 | B144: [2010804]审计业务 | C144: “金审”工程及信息化建设 | D144: 50.00
A145: [001019]审计局 | B145: [2010804]审计业务 | C145: 聘用专家审计费 | D145: 80.00
A146: [001019]审计局 | B146: [2010804]审计业务 | C146: 学习培训经费 | D146: 100.00
A147: [001019]审计局 汇总 | D147: =SUBTOTAL(9,D142:D146) -> 450.00
A148: [001020001]财政局机关 | B148: [2010601]行政运行 | C148: 财政监督专项经费 | D148: 30.00
A149: [001020001]财政局机关 | B149: [2010601]行政运行 | C149: 财政决算编制及培训专项 | D149: 237.50
A150: [001020001]财政局机关 | B150: [2010601]行政运行 | C150: 非税收入成本 | D150: 0.00
A151: [001020001]财政局机关 | B151: [2010601]行政运行 | C151: 预算编制及调查专项经费 | D151: 100.00
A152: [001020001]财政局机关 | B152: [2010601]行政运行 | C152: 财政干部教育培训专项 | D152: 200.00
A153: [001020001]财政局机关 | B153: [2010601]行政运行 | C153: 国库集中支付清算专项 | D153: 300.00
A154: [001020001]财政局机关 | B154: [2010601]行政运行 | C154: 互联网+监督专项经费 | D154: 200.00
A155: [001020001]财政局机关 | B155: [2010601]行政运行 | C155: 国有资产管理专项 | D155: 500.00
A156: [001020001]财政局机关 | B156: [2010601]行政运行 | C156: 绩效评价专项经费 | D156: 300.00
A157: [001020001]财政局机关 | B157: [2010602]一般行政管理事务 | C157: 票据网络维护专项经费 | D157: 589.00
A158: [001020001]财政局机关 汇总 | D158: =SUBTOTAL(9,D148:D157) -> 2,456.50
A159: [001020002]非税局 | B159: [2010601]行政运行 | C159: 非税征管专项经费 | D159: 19.00
A160: [001020002]非税局 | B160: [2010602]一般行政管理事务 | C160: 非税票据工本费 | D160: 300.00
A161: [001020002]非税局 汇总 | D161: =SUBTOTAL(9,D159:D160) -> 319.00
A162: [001020003]乡财局 | B162: [2010601]行政运行 | C162: 乡财乡用网络租凭维护专项经费 | D162: 490.00
A163: [001020003]乡财局 | B163: [2010601]行政运行 | C163: 乡镇财政财务管理专项经费 | D163: 714.50
A164: [001020003]乡财局 汇总 | D164: =SUBTOTAL(9,D162:D163) -> 1,204.50
A165: [001020004]投资评审中心 | B165: [2010601]行政运行 | C165: 投资评审专项经费 | D165: 0.00
A166: [001020004]投资评审中心 汇总 | D166: =SUBTOTAL(9,D165) -> 0.00
A167: [001021]老干局 | B167: [2010201]行政运行 | C167: 老年大学活动经费 | D167: 150.00
A168: [001021]老干局 | B168: [2010201]行政运行 | C168: 业务费 | D168: 20.00
A169: [001021]老干局 | B169: [2010201]行政运行 | C169: 老年设备维修费 | D169: 10.00
A170: [001021]老干局 | B170: [2010201]行政运行 | C170: 特困离退休干部及遗孀帮扶专项 | D170: 100.00
A171: [001021]老干局 | B171: [2010201]行政运行 | C171: 老年协会活动经费 | D171: 200.00
A172: [001021]老干局 | B172: [2010201]行政运行 | C172: 老干特需经费 | D172: 690.00
A173: [001021]老干局 | B173: [2010201]行政运行 | C173: 老年体协活动经费 | D173: 50.00
A174: [001021]老干局 | B174: [2010201]行政运行 | C174: 老年活动用车 | D174: 20.00
A175: [001021]老干局 | B175: [2010201]行政运行 | C175: 关工委工作经费 | D175: 50.00
A176: [001021]老干局 | B176: [2010201]行政运行 | C176: 离退休党工委工作经费 | D176: 50.00
A177: [001021]老干局 | B177: [2010201]行政运行 | C177: 老年活动中心专项经费 | D177: 350.00
A178: [001021]老干局 | B178: [2010302]一般行政管理事务 | C178: 老年活动工作经费 | D178: 120.00
A179: [001021]老干局 汇总 | D179: =SUBTOTAL(9,D167:D178) -> 1,810.00
A180: [001022]总工会 | B180: [2012901]行政运行 | C180: 行政事业单位工会经费 | D180: 1,050.00
A181: [001022]总工会 | B181: [2012901]行政运行 | C181: 帮扶基金 | D181: 68.00
A182: [001022]总工会 汇总 | D182: =SUBTOTAL(9,D180:D181) -> 1,118.00
A183: [001023]统计局 | B183: [2010502]一般行政管理事务 | C183: 专项工作经费 | D183: 40.00
A184: [001023]统计局 | B184: [2010502]一般行政管理事务 | C184: 统计年鉴印刷费 | D184: 20.00
A185: [001023]统计局 | B185: [2010505]专项统计业务 | C185: 五个百户调查及差旅费 | D185: 166.00
A186: [001023]统计局 | B186: [2010505]专项统计业务 | C186: “企业一套表”联网直报经费 | D186: 100.00
A187: [001023]统计局 | B187: [2010507]专项普查活动 | C187: 第四次经济普查经费 | D187: 500.00
A188: [001023]统计局 | B188: [2010508]统计抽样调查 | C188: 粮食产量抽样调查经费 | D188: 222.00
A189: [001023]统计局 汇总 | D189: =SUBTOTAL(9,D183:D188) -> 1,048.00
A190: [001024]信息中心 | B190: [2010305]专项业务活动 | C190: 社区接入电子政务外网电路租赁 | D190: 129.80
A191: [001024]信息中心 | B191: [2010502]一般行政管理事务 | C191: 水电及安防费用 | D191: 139.00
A192: [001024]信息中心 | B192: [2010502]一般行政管理事务 | C192: 专项工作经费 | D192: 29.00
A193: [001024]信息中心 | B193: [2010504]信息事务 | C193: 中心机房及网络维护费 | D193: 172.00
A194: [001024]信息中心 | B194: [2010504]信息事务 | C194: 网络建设专项 | D194: 130.00
A195: [001024]信息中心 | B195: [2010504]信息事务 | C195: 政府网站建设管理专项经费 | D195: 230.00
A196: [001024]信息中心 | B196: [2010504]信息事务 | C196: 全市电子政务网络运行维护费用 | D196: 150.00
A197: [001024]信息中心 | B197: [2010504]信息事务 | C197: 电子政务外网平台一期工程设备维护费 | D197: 103.00
A198: [001024]信息中心 | B198: [2010504]信息事务 | C198: 电子政务外网链路及城域网光纤租费 | D198: 578.00
A199: [001024]信息中心 汇总 | D199: =SUBTOTAL(9,D190:D198) -> 1,660.80
A200: [001025]国库集中支付核算中心 | B200: [2010602]一般行政管理事务 | C200: 年终决算专项费用 | D200: 50.00
A201: [001025]国库集中支付核算中心 | B201: [2010602]一般行政管理事务 | C201: 财务费用 | D201: 360.00
... 568 more rows
